Departmental Family,Entity,Date,Expense Type,Expense Area,Supplier,Transaction Number,Amount
Department for Education,DEPARTMENT FOR EDUCATION,04-Feb-11,TEMPORARY (TEMP) STAFF COSTS,Corporate and Internal Communications Group,CAPITA RESOURCING LTD,4000045864,8840.66
Department for Education,DEPARTMENT FOR EDUCATION,04-Feb-11,TEMPORARY (TEMP) STAFF COSTS,Corporate and Internal Communications Group,CAPITA RESOURCING LTD,4000045864,5745.90
Department for Education,DEPARTMENT FOR EDUCATION,11-Feb-11,TEMPORARY (TEMP) STAFF COSTS,Corporate and Internal Communications Group,CAPITA RESOURCING LTD,4000046255,11813.98
Department for Education,DEPARTMENT FOR EDUCATION,11-Feb-11,TEMPORARY (TEMP) STAFF COSTS,Corporate and Internal Communications Group,CAPITA RESOURCING LTD,4000046255,5511.54
Department for Education,DEPARTMENT FOR EDUCATION,11-Feb-11,COMMUNICATIONS & PUBLICITY,Corporate and Internal Communications Group,REDHOUSE LANE COMMUNICATIONS LTD,4000046278,55362.50
Department for Education,DEPARTMENT FOR EDUCATION,18-Feb-11,COMMUNICATIONS & PUBLICITY,Corporate and Internal Communications Group,ELAN COMPUTING LTD,4000046699,36148.29
Department for Education,DEPARTMENT FOR EDUCATION,23-Feb-11,COMMUNICATIONS & PUBLICITY,Corporate and Internal Communications Group,EDUSERV,4000047117,132683.95
Department for Education,DEPARTMENT FOR EDUCATION,25-Feb-11,TEMPORARY (TEMP) STAFF COSTS,Corporate and Internal Communications Group,CAPITA RESOURCING LTD,4000047586,43832.12
Department for Education,DEPARTMENT FOR EDUCATION,25-Feb-11,TEMPORARY (TEMP) STAFF COSTS,Corporate and Internal Communications Group,CAPITA RESOURCING LTD,4000047586,13340.76
Department for Education,TEACHERS PENSION SCHEME,02-Feb-11,FUNDING TO PAY TEACHERS PENSIONS,Workforce Group - TPS,CAPITA TP NATWEST,1000473,20276977.42
Department for Education,TEACHERS PENSION SCHEME,03-Feb-11,FUNDING TO PAY TEACHERS PENSIONS,Workforce Group - TPS,CAPITA TP HSBC,1000474,281691.87
Department for Education,TEACHERS PENSION SCHEME,03-Feb-11,FUNDING TO PAY TEACHERS PENSIONS,Workforce Group - TPS,CAPITA TP NATWEST,1000475,16380347.62
Department for Education,TEACHERS PENSION SCHEME,04-Feb-11,FUNDING TO PAY TEACHERS PENSIONS,Workforce Group - TPS,CAPITA TP HSBC,1000476,224825.89
Department for Education,TEACHERS PENSION SCHEME,04-Feb-11,FUNDING TO PAY TEACHERS PENSIONS,Workforce Group - TPS,CAPITA TP NATWEST,1000477,15109014.63
Department for Education,TEACHERS PENSION SCHEME,08-Feb-11,FUNDING TO PAY TEACHERS PENSIONS,Workforce Group - TPS,CAPITA TP HSBC,1000478,193537.89
Department for Education,TEACHERS PENSION SCHEME,08-Feb-11,FUNDING TO PAY TEACHERS PENSIONS,Workforce Group - TPS,CAPITA TP NATWEST,1000479,43868037.05
Department for Education,TEACHERS PENSION SCHEME,08-Feb-11,FUNDING TO PAY TEACHERS PENSIONS,Workforce Group - TPS,CAPITA TP HSBC,1000480,203260.16
Department for Education,TEACHERS PENSION SCHEME,08-Feb-11,FUNDING TO PAY TEACHERS PENSIONS,Workforce Group - TPS,CAPITA TP NATWEST,1000481,17807695.27
Department for Education,TEACHERS PENSION SCHEME,14-Feb-11,FUNDING TO PAY TEACHERS PENSIONS,Workforce Group - TPS,CAPITA TP HSBC,1000482,185991.52
Department for Education,TEACHERS PENSION SCHEME,14-Feb-11,FUNDING TO PAY TEACHERS PENSIONS,Workforce Group - TPS,CAPITA TP NATWEST,1000483,16276555.97
Department for Education,TEACHERS PENSION SCHEME,14-Feb-11,FUNDING TO PAY TEACHERS PENSIONS,Workforce Group - TPS,CAPITA TP HSBC,1000484,47628.47
Department for Education,TEACHERS PENSION SCHEME,14-Feb-11,FUNDING TO PAY TEACHERS PENSIONS,Workforce Group - TPS,CAPITA TP NATWEST,1000485,16336752.17
Department for Education,TEACHERS PENSION SCHEME,14-Feb-11,FUNDING TO PAY TEACHERS PENSIONS,Workforce Group - TPS,CAPITA TP HSBC,1000486,183949.36
Department for Education,TEACHERS PENSION SCHEME,14-Feb-11,FUNDING TO PAY TEACHERS PENSIONS,Workforce Group - TPS,CAPITA TP NATWEST,1000487,15302805.23
Department for Education,TEACHERS PENSION SCHEME,15-Feb-11,FUNDING TO PAY TEACHERS PENSIONS,Workforce Group - TPS,CAPITA TP HSBC,1000488,304779.17
Department for Education,TEACHERS PENSION SCHEME,15-Feb-11,FUNDING TO PAY TEACHERS PENSIONS,Workforce Group - TPS,CAPITA TP NATWEST,1000489,17525394.82
Department for Education,TEACHERS PENSION SCHEME,15-Feb-11,FUNDING TO PAY TEACHERS PENSIONS,Workforce Group - TPS,CAPITA TP HSBC,1000490,439828.87
Department for Education,TEACHERS PENSION SCHEME,15-Feb-11,FUNDING TO PAY TEACHERS PENSIONS,Workforce Group - TPS,CAPITA TP NATWEST,1000491,42345540.92
Department for Education,TEACHERS PENSION SCHEME,16-Feb-11,FUNDING TO PAY TEACHERS PENSIONS,Workforce Group - TPS,CAPITA TP HSBC,1000492,189579.28
Department for Education,TEACHERS PENSION SCHEME,16-Feb-11,FUNDING TO PAY TEACHERS PENSIONS,Workforce Group - TPS,CAPITA TP NATWEST,1000493,16070478.97
Department for Education,TEACHERS PENSION SCHEME,18-Feb-11,FUNDING TO PAY TEACHERS PENSIONS,Workforce Group - TPS,CAPITA TP NATWEST,1000495,15675210.87
Department for Education,TEACHERS PENSION SCHEME,21-Feb-11,FUNDING TO PAY TEACHERS PENSIONS,Workforce Group - TPS,CAPITA TP HSBC,1000496,207478.36
Department for Education,TEACHERS PENSION SCHEME,21-Feb-11,FUNDING TO PAY TEACHERS PENSIONS,Workforce Group - TPS,CAPITA TP NATWEST,1000497,15940767.48
Department for Education,TEACHERS PENSION SCHEME,22-Feb-11,FUNDING TO PAY TEACHERS PENSIONS,Workforce Group - TPS,CAPITA TP HSBC,1000498,174312.40
Department for Education,TEACHERS PENSION SCHEME,22-Feb-11,FUNDING TO PAY TEACHERS PENSIONS,Workforce Group - TPS,CAPITA TP NATWEST,1000499,42985913.08
Department for Education,TEACHERS PENSION SCHEME,23-Feb-11,FUNDING TO PAY TEACHERS PENSIONS,Workforce Group - TPS,CAPITA TP HSBC,1000500,118012.00
Department for Education,TEACHERS PENSION SCHEME,23-Feb-11,FUNDING TO PAY TEACHERS PENSIONS,Workforce Group - TPS,CAPITA TP NATWEST,1000501,88242035.18
Department for Education,TEACHERS PENSION SCHEME,23-Feb-11,FUNDING TO PAY TEACHERS PENSIONS,Workforce Group - TPS,CAPITA TP NATWEST,1000503,19548637.63
Department for Education,TEACHERS PENSION SCHEME,24-Feb-11,FUNDING TO PAY TEACHERS PENSIONS,Workforce Group - TPS,CAPITA TP HSBC,1000504,86090.72
Department for Education,TEACHERS PENSION SCHEME,24-Feb-11,FUNDING TO PAY TEACHERS PENSIONS,Workforce Group - TPS,CAPITA TP NATWEST,1000505,15572382.31
Department for Education,TEACHERS PENSION SCHEME,25-Feb-11,FUNDING TO PAY TEACHERS PENSIONS,Workforce Group - TPS,CAPITA TP HSBC,1000506,179013.41
Department for Education,TEACHERS PENSION SCHEME,25-Feb-11,FUNDING TO PAY TEACHERS PENSIONS,Workforce Group - TPS,CAPITA TP NATWEST,1000507,15526005.71
Department for Education,TEACHERS PENSION SCHEME,28-Feb-11,FUNDING TO PAY TEACHERS PENSIONS,Workforce Group - TPS,CAPITA TP NATWEST,1000509,41821743.43
Department for Education,TEACHERS PENSION SCHEME,28-Feb-11,FUNDING TO PAY TEACHERS PENSIONS,Workforce Group - TPS,CAPITA TP HSBC,1000510,142286.59
Department for Education,TEACHERS PENSION SCHEME,28-Feb-11,FUNDING TO PAY TEACHERS PENSIONS,Workforce Group - TPS,CAPITA TP NATWEST,1000511,65815576.97
Department for Education,DEPARTMENT FOR EDUCATION,04-Feb-11,CURRENT GRANTS,Children Young People and Families Supporting Delivery Group,CORNWALL COUNCIL,705020,25863.40
Department for Education,DEPARTMENT FOR EDUCATION,09-Feb-11,COMMUNICATIONS & PUBLICITY,Children Young People and Families Group,WALKGROVE LTD,705022,29435.16
Department for Education,DEPARTMENT FOR EDUCATION,08-Feb-11,CONTRACT PROGRAMME EXPENDITURE,Children Young People and Families Safeguarding Group,NSPCC,1000323,346854.76
Department for Education,DEPARTMENT FOR EDUCATION,11-Feb-11,CONTRACT PROGRAMME EXPENDITURE,Children Young People and Families Group,BDP MEDIA GROUP LTD,1000327,57124.59
Department for Education,DEPARTMENT FOR EDUCATION,01-Feb-11,GRANT IN AID,Children Young People and Families Group,CAFCASS,2000308,10493816.00
Department for Education,DEPARTMENT FOR EDUCATION,08-Feb-11,GRANT IN AID,Supporting Children and Young People Group 2,OFFICE OF THE CHILDRENS COMMISSIONER,2000313,462854.46
Department for Education,DEPARTMENT FOR EDUCATION,08-Feb-11,CONTRACT PROGRAMME EXPENDITURE,Children Young People and Families Early Years Extended Schools and Special Needs,EUROPEAN AGENCY FOR DEVELOPMENT IN SPECIAL NEEDS EDUCATION,3000047,66214.83
Department for Education,DEPARTMENT FOR EDUCATION,01-Feb-11,CURRENT GRANTS,Supporting Children and Young People Group 2,BLACKBURN WITH DARWEN BOROUGH COUNCIL,4000045292,71334.00
Department for Education,DEPARTMENT FOR EDUCATION,01-Feb-11,CURRENT GRANTS,Supporting Children and Young People Group 2,BRIGHTON & HOVE CITY COUNCIL,4000045293,110289.00
Department for Education,DEPARTMENT FOR EDUCATION,01-Feb-11,CURRENT GRANTS,Children Young People and Families Group,CAFCASS,4000045296,867175.36
Department for Education,DEPARTMENT FOR EDUCATION,01-Feb-11,CONTRACT PROGRAMME EXPENDITURE,Children Young People and Families Group,CONTACT A FAMILY,4000045302,26437.50
Department for Education,DEPARTMENT FOR EDUCATION,01-Feb-11,MANAGEMENT CONSULTANCY,Children Young People and Families Group,DIGITAL PUBLIC,4000045304,48414.70
Department for Education,DEPARTMENT FOR EDUCATION,01-Feb-11,CONTRACT PROGRAMME EXPENDITURE,Children Young People and Families Group,ENGINE GROUP LTD,4000045308,104567.96
Department for Education,DEPARTMENT FOR EDUCATION,01-Feb-11,CURRENT GRANTS,Supporting Children and Young People Group 2,LONDON BOROUGH OF WANDSWORTH COUNCIL,4000045316,169648.00
Department for Education,DEPARTMENT FOR EDUCATION,01-Feb-11,OTHER PROGRAMME EXPENSES,Supporting Children and Young People Group 2,NATIONAL YOUTH AGENCY,4000045324,144979.47
Department for Education,DEPARTMENT FOR EDUCATION,01-Feb-11,CURRENT GRANTS,Supporting Children and Young People Group 2,NOTTINGHAM CITY COUNCIL,4000045326,85821.00
Department for Education,DEPARTMENT FOR EDUCATION,01-Feb-11,CURRENT GRANTS,Supporting Children and Young People Group 2,SOMERSET COUNTY COUNCIL,4000045335,84900.00
Department for Education,DEPARTMENT FOR EDUCATION,01-Feb-11,CURRENT GRANTS,Supporting Children and Young People Group 2,WORCESTERSHIRE COUNTY COUNCIL,4000045346,85353.00
Department for Education,DEPARTMENT FOR EDUCATION,01-Feb-11,CURRENT GRANTS,Supporting Children and Young People Group 2,YORK CITY COUNCIL,4000045347,83500.00
Department for Education,DEPARTMENT FOR EDUCATION,02-Feb-11,CURRENT GRANTS,Children Young People and Families Group,ADVISORY CENTRE FOR EDUCATION,4000045533,121847.00
Department for Education,DEPARTMENT FOR EDUCATION,02-Feb-11,CURRENT GRANTS,Children Young People and Families Group,BRISTOL CITY COUNCIL,4000045539,43750.00
Department for Education,DEPARTMENT FOR EDUCATION,02-Feb-11,CURRENT GRANTS,Children Young People and Families Group,FAMILY RIGHTS GROUP LTD,4000045550,79009.00
Department for Education,DEPARTMENT FOR EDUCATION,02-Feb-11,CURRENT GRANTS,Children Young People and Families Early Years Extended Schools and Special Needs,RNIB,4000045566,50000.00
Department for Education,DEPARTMENT FOR EDUCATION,02-Feb-11,CONTRACT PROGRAMME EXPENDITURE,Children Young People and Families Early Years Extended Schools and Special Needs,ROYAL COLLEGE OF SPEECH & LANGUAGE THERAPISTS,4000045567,67552.15
Department for Education,DEPARTMENT FOR EDUCATION,02-Feb-11,CURRENT GRANTS,Children Young People and Families Group,YOUNG MINDS,4000045581,108926.50
Department for Education,DEPARTMENT FOR EDUCATION,03-Feb-11,CAPITAL GRANTS,Children Young People and Families Early Years Extended Schools and Special Needs,CITY OF BRADFORD METROPOLITAN DISTRICT COUNCIL,4000045618,687390.00
Department for Education,DEPARTMENT FOR EDUCATION,03-Feb-11,CAPITAL GRANTS,Children Young People and Families Early Years Extended Schools and Special Needs,ESSEX COUNTY COUNCIL,4000045619,4719858.00
Department for Education,DEPARTMENT FOR EDUCATION,03-Feb-11,CAPITAL GRANTS,Children Young People and Families Early Years Extended Schools and Special Needs,LONDON BOROUGH OF HILLINGDON  COUNCIL,4000045620,751001.00
Department for Education,DEPARTMENT FOR EDUCATION,03-Feb-11,CAPITAL GRANTS,Children Young People and Families Early Years Extended Schools and Special Needs,LONDON BOROUGH OF NEWHAM,4000045621,425829.00
Department for Education,DEPARTMENT FOR EDUCATION,03-Feb-11,MISCELLANEOUS EXPENDITURE,Children Young People and Families Improving Information Sharing and Management Group,BIRMINGHAM CITY COUNCIL,4000045629,-54.01
Department for Education,DEPARTMENT FOR EDUCATION,03-Feb-11,CURRENT GRANTS,Children Young People and Families Group,BOOK TRUST,4000045634,241030.00
Department for Education,DEPARTMENT FOR EDUCATION,03-Feb-11,COMMUNICATIONS & PUBLICITY,Children Young People and Families Group,CENTRAL OFFICE OF INFORMATION,4000045650,71524.25
Department for Education,DEPARTMENT FOR EDUCATION,03-Feb-11,CONTRACT PROGRAMME EXPENDITURE,Children Young People and Families Group,KINGS COLLEGE LONDON,4000045695,90028.49
Department for Education,DEPARTMENT FOR EDUCATION,03-Feb-11,CURRENT GRANTS,Children Young People and Families Supporting Delivery Group,NATIONAL CHILDRENS BUREAU,4000045744,457689.00
Department for Education,DEPARTMENT FOR EDUCATION,03-Feb-11,CONTRACT PROGRAMME EXPENDITURE,Children Young People and Families Early Years Extended Schools and Special Needs,PARADIGM,4000045759,58750.00
Department for Education,DEPARTMENT FOR EDUCATION,03-Feb-11,MANAGEMENT CONSULTANCY,Children Young People and Families Group,TRIBAL EDUCATION LIMITED,4000045815,95309.18
Department for Education,DEPARTMENT FOR EDUCATION,04-Feb-11,TEMPORARY (TEMP) STAFF COSTS,Children Young People and Families Group,CAPITA RESOURCING LTD,4000045864,12212.79
Department for Education,DEPARTMENT FOR EDUCATION,04-Feb-11,TEMPORARY (TEMP) STAFF COSTS,Children Young People and Families Group,CAPITA RESOURCING LTD,4000045864,7033.60
Department for Education,DEPARTMENT FOR EDUCATION,04-Feb-11,CONTRACT PROGRAMME EXPENDITURE,Children Young People and Families Group,CAPITA RESOURCING LTD,4000045864,16484.40
Department for Education,DEPARTMENT FOR EDUCATION,04-Feb-11,CURRENT GRANTS,Supporting Children and Young People Group 2,FIRST LIGHT MOVIES LTD,4000045874,186550.00
Department for Education,DEPARTMENT FOR EDUCATION,07-Feb-11,CONTRACT PROGRAMME EXPENDITURE,Children Young People and Families Safeguarding Group,BEAT BULLYING LTD,4000045931,38513.00
Department for Education,DEPARTMENT FOR EDUCATION,07-Feb-11,CONTRACT PROGRAMME EXPENDITURE,Children Young People and Families Group,KINGS COLLEGE LONDON,4000045954,191232.00
Department for Education,DEPARTMENT FOR EDUCATION,07-Feb-11,IS/IT,Children Young People and Families Improving Information Sharing and Management Group,LOGICA UK LTD,4000045955,184704.60
Department for Education,DEPARTMENT FOR EDUCATION,07-Feb-11,CONTRACT PROGRAMME EXPENDITURE,Supporting Children and Young People Group 2,NATIONAL CHILDRENS BUREAU,4000045959,28932.00
Department for Education,DEPARTMENT FOR EDUCATION,07-Feb-11,CONTRACT PROGRAMME EXPENDITURE,Supporting Children and Young People Group 2,NATIONAL CHILDRENS BUREAU,4000045959,140902.01
Department for Education,DEPARTMENT FOR EDUCATION,07-Feb-11,CONTRACT PROGRAMME EXPENDITURE,Children Young People and Families Early Years Extended Schools and Special Needs,NATIONAL CHILDRENS BUREAU,4000045959,19620.00
Department for Education,DEPARTMENT FOR EDUCATION,07-Feb-11,RESEARCH & DEVELOPMENT COSTS,Children Young People and Families Early Years Extended Schools and Special Needs,NCB,4000045960,40076.00
Department for Education,DEPARTMENT FOR EDUCATION,07-Feb-11,CONTRACT PROGRAMME EXPENDITURE,Children Young People and Families Supporting Delivery Group,SPRINGBOARD,4000045968,491453.44
Department for Education,DEPARTMENT FOR EDUCATION,07-Feb-11,CONTRACT PROGRAMME EXPENDITURE,Supporting Children and Young People Group 2,YHA ENGLAND & WALES LTD,4000045977,110000.00
Department for Education,DEPARTMENT FOR EDUCATION,08-Feb-11,CONTRACT PROGRAMME EXPENDITURE,Children Young People and Families Safeguarding Group,BEAT BULLYING LTD,4000046002,35597.00
Department for Education,DEPARTMENT FOR EDUCATION,08-Feb-11,CONTRACT PROGRAMME EXPENDITURE,Children Young People and Families Safeguarding Group,COI CENTRAL OFFICE OF INFORMATION,4000046010,33152.63
Department for Education,DEPARTMENT FOR EDUCATION,08-Feb-11,PROFESSIONAL FEES,Supporting Children and Young People Group 2,HM REVENUE AND CUSTOMS,4000046021,50000.00
Department for Education,DEPARTMENT FOR EDUCATION,08-Feb-11,PROFESSIONAL FEES,Supporting Children and Young People Group 2,HM REVENUE AND CUSTOMS,4000046021,29939.76
Department for Education,DEPARTMENT FOR EDUCATION,08-Feb-11,CURRENT GRANTS,Children Young People and Families Supporting Delivery Group,LEEDS CITY COUNCIL,4000046032,434845.31
Department for Education,DEPARTMENT FOR EDUCATION,08-Feb-11,STAFF EXPENSES / COSTS,Children Young People and Families Early Years Extended Schools and Special Needs,NATIONAL SCHOOL OF GOVERNMENT,4000046041,895.00
Department for Education,DEPARTMENT FOR EDUCATION,08-Feb-11,CONTRACT PROGRAMME EXPENDITURE,Children Young People and Families Safeguarding Group,ROSPA,4000046054,114584.00
Department for Education,DEPARTMENT FOR EDUCATION,08-Feb-11,CURRENT GRANTS,Children Young People and Families Supporting Delivery Group,WARRINGTON BOROUGH COUNCIL,4000046075,79300.00
Department for Education,DEPARTMENT FOR EDUCATION,09-Feb-11,CONTRACT PROGRAMME EXPENDITURE,Children Young People and Families Group,NETMUMS LTD,4000046134,59724.08
Department for Education,DEPARTMENT FOR EDUCATION,10-Feb-11,CONTRACT PROGRAMME EXPENDITURE,Supporting Children and Young People Group 2,SKILLS ACTIVE,4000046206,25350.00
Department for Education,DEPARTMENT FOR EDUCATION,10-Feb-11,CONTRACT PROGRAMME EXPENDITURE,Children Young People and Families Group,THE FOSTERING NETWORK,4000046211,33804.00
Department for Education,DEPARTMENT FOR EDUCATION,11-Feb-11,TEMPORARY (TEMP) STAFF COSTS,Children Young People and Families Group,CAPITA RESOURCING LTD,4000046255,13135.69
Department for Education,DEPARTMENT FOR EDUCATION,11-Feb-11,PROFESSIONAL FEES,Children Young People and Families Group,CAPITA RESOURCING LTD,4000046255,3246.24
Department for Education,DEPARTMENT FOR EDUCATION,11-Feb-11,TEMPORARY (TEMP) STAFF COSTS,Children Young People and Families Group,CAPITA RESOURCING LTD,4000046255,16693.78
Department for Education,DEPARTMENT FOR EDUCATION,11-Feb-11,CONTRACT PROGRAMME EXPENDITURE,Children Young People and Families Group,CAPITA RESOURCING LTD,4000046255,9312.96
Department for Education,DEPARTMENT FOR EDUCATION,11-Feb-11,CONTRACT PROGRAMME EXPENDITURE,Children Young People and Families Supporting Delivery Group,THE LEARNING TRUST,4000046286,27518.82
Department for Education,DEPARTMENT FOR EDUCATION,11-Feb-11,RESEARCH & DEVELOPMENT COSTS,Children Young People and Families Early Years Extended Schools and Special Needs,TNS UK LTD,4000046287,35908.00
Department for Education,DEPARTMENT FOR EDUCATION,14-Feb-11,CAPITAL GRANTS,Supporting Children and Young People Group 2,BIG LOTTERY FUND,4000046331,13124636.00
Department for Education,DEPARTMENT FOR EDUCATION,14-Feb-11,CURRENT GRANTS,Supporting Children and Young People Group 2,BIG LOTTERY FUND,4000046331,33318.00
Department for Education,DEPARTMENT FOR EDUCATION,14-Feb-11,CURRENT GRANTS,Children Young People and Families Early Years Extended Schools and Special Needs,BOOK TRUST,4000046332,635014.00
Department for Education,DEPARTMENT FOR EDUCATION,14-Feb-11,CONTRACT PROGRAMME EXPENDITURE,Children Young People and Families Safeguarding Group,CHILD ACCIDENT PREVENTION TRUST,4000046338,117094.00
Department for Education,DEPARTMENT FOR EDUCATION,14-Feb-11,CONTRACT PROGRAMME EXPENDITURE,Children Young People and Families Early Years Extended Schools and Special Needs,CONTINYOU SOLUTIONS LTD,4000046339,98400.00
Department for Education,DEPARTMENT FOR EDUCATION,14-Feb-11,STAFF EXPENSES / COSTS,Children Young People and Families Early Years Extended Schools and Special Needs,CRIMINAL RECORDS BUREAU,4000046341,149220.00
Department for Education,DEPARTMENT FOR EDUCATION,14-Feb-11,OTHER PROGRAMME EXPENSES,Supporting Children and Young People Group 2,FIRST LIGHT MOVIES LTD,4000046350,183106.00
Department for Education,DEPARTMENT FOR EDUCATION,14-Feb-11,STAFF EXPENSES / COSTS,Children Young People and Families Early Years Extended Schools and Special Needs,THE MEDIA GROUP TMG TV LTD,4000046390,126718.20
Department for Education,DEPARTMENT FOR EDUCATION,15-Feb-11,CURRENT GRANTS,Children Young People and Families Early Years Extended Schools and Special Needs,ACADEMY OF YOUTH LTD T/A UNIVERSITY OF FIRST AGE,4000046432,39583.00
Department for Education,DEPARTMENT FOR EDUCATION,15-Feb-11,CONTRACT PROGRAMME EXPENDITURE,Supporting Children and Young People Group 2,BIG LOTTERY FUND,4000046441,764478.00
Department for Education,DEPARTMENT FOR EDUCATION,15-Feb-11,CURRENT GRANTS,Children Young People and Families Early Years Extended Schools and Special Needs,CANTERBURY CHRIST CHURCH UNIVERSITY COLLEGE,4000046446,42885.00
Department for Education,DEPARTMENT FOR EDUCATION,15-Feb-11,MISCELLANEOUS EXPENDITURE,Supporting Children and Young People Group 1,DEPARTMENT OF HEALTH,4000046456,60000.00
Department for Education,DEPARTMENT FOR EDUCATION,15-Feb-11,CONTRACT PROGRAMME EXPENDITURE,Supporting Children and Young People Group 2,GHK CONSULTING LTD,4000046462,162424.00
Department for Education,DEPARTMENT FOR EDUCATION,16-Feb-11,CURRENT GRANTS,Children Young People and Families Early Years Extended Schools and Special Needs,NATIONAL AUTISTIC SOCIETY,4000046555,67000.00
Department for Education,DEPARTMENT FOR EDUCATION,17-Feb-11,CAPITAL GRANTS,Children Young People and Families Early Years Extended Schools and Special Needs,DARLINGTON BOROUGH COUNCIL,4000046570,883845.00
Department for Education,DEPARTMENT FOR EDUCATION,17-Feb-11,CAPITAL GRANTS,Children Young People and Families Early Years Extended Schools and Special Needs,LONDON BOROUGH OF BARKING & DAGENHAM COUNCIL,4000046571,886814.00
Department for Education,DEPARTMENT FOR EDUCATION,17-Feb-11,CAPITAL GRANTS,Children Young People and Families Early Years Extended Schools and Special Needs,NORTH LINCOLNSHIRE COUNCIL,4000046572,867415.00
Department for Education,DEPARTMENT FOR EDUCATION,17-Feb-11,CONTRACT PROGRAMME EXPENDITURE,Children Young People and Families Early Years Extended Schools and Special Needs,SERCO LTD,4000046640,493855.91
Department for Education,DEPARTMENT FOR EDUCATION,18-Feb-11,CURRENT GRANTS,Supporting Children and Young People Group 2,CATCH22 CHARITY LTD SOUTHAMPTON,4000046692,102855.00
Department for Education,DEPARTMENT FOR EDUCATION,18-Feb-11,CURRENT GRANTS,Supporting Children and Young People Group 2,ECORYS UK LTD,4000046697,605.26
Department for Education,DEPARTMENT FOR EDUCATION,18-Feb-11,OTHER PROGRAMME EXPENSES,Supporting Children and Young People Group 2,ECORYS UK LTD,4000046697,174330.13
Department for Education,DEPARTMENT FOR EDUCATION,18-Feb-11,RESEARCH & DEVELOPMENT COSTS,Children Young People and Families Group,KINGS COLLEGE LONDON,4000046701,979631.00
Department for Education,DEPARTMENT FOR EDUCATION,18-Feb-11,CONTRACT PROGRAMME EXPENDITURE,Children Young People and Families Group,KINGS COLLEGE LONDON,4000046702,90028.49
Department for Education,DEPARTMENT FOR EDUCATION,18-Feb-11,CONTRACT PROGRAMME EXPENDITURE,Children Young People and Families Group,RELATE,4000046715,63618.00
Department for Education,DEPARTMENT FOR EDUCATION,18-Feb-11,CONTRACT PROGRAMME EXPENDITURE,Children Young People and Families Group,RELATE,4000046715,12766.80
Department for Education,DEPARTMENT FOR EDUCATION,18-Feb-11,CONTRACT PROGRAMME EXPENDITURE,Children Young People and Families Safeguarding Group,ROSPA,4000046717,288217.20
Department for Education,DEPARTMENT FOR EDUCATION,18-Feb-11,CONTRACT PROGRAMME EXPENDITURE,Children Young People and Families Early Years Extended Schools and Special Needs,SERCO LTD,4000046720,355081.07
Department for Education,DEPARTMENT FOR EDUCATION,18-Feb-11,CONTRACT PROGRAMME EXPENDITURE,Children Young People and Families Early Years Extended Schools and Special Needs,SERCO LTD,4000046720,66239.44
Department for Education,DEPARTMENT FOR EDUCATION,21-Feb-11,STAFF EXPENSES / COSTS,Children Young People and Families Early Years Extended Schools and Special Needs,ATLANTIC DATA LTD,4000046911,25893.12
Department for Education,DEPARTMENT FOR EDUCATION,21-Feb-11,CURRENT GRANTS,Children Young People and Families Group,CAFCASS,4000046920,188910.07
Department for Education,DEPARTMENT FOR EDUCATION,21-Feb-11,STAFF EXPENSES / COSTS,Children Young People and Families Early Years Extended Schools and Special Needs,CAPITA EDUCATION RESOURCING,4000046921,125158.20
Department for Education,DEPARTMENT FOR EDUCATION,21-Feb-11,CURRENT GRANTS,Children Young People and Families Early Years Extended Schools and Special Needs,CONTACT A FAMILY,4000046927,71027.25
Department for Education,DEPARTMENT FOR EDUCATION,21-Feb-11,CURRENT GRANTS,Children Young People and Families Supporting Delivery Group,HARINGEY COUNCIL,4000046936,128072.00
Department for Education,DEPARTMENT FOR EDUCATION,21-Feb-11,STAFF EXPENSES / COSTS,Children Young People and Families Group,OXYGEN LIVE LTD,4000046957,1268.40
Department for Education,DEPARTMENT FOR EDUCATION,21-Feb-11,COMMUNICATIONS & PUBLICITY,Children Young People and Families Group,OXYGEN LIVE LTD,4000046957,26179.58
Department for Education,DEPARTMENT FOR EDUCATION,21-Feb-11,MANAGEMENT CONSULTANCY,Children Young People and Families Improving Information Sharing and Management Group,PA CONSULTING,4000046959,408000.00
Department for Education,DEPARTMENT FOR EDUCATION,21-Feb-11,CONTRACT PROGRAMME EXPENDITURE,Children Young People and Families Group,PARENT INNOVATION CONSORTIUM,4000046960,40701.60
Department for Education,DEPARTMENT FOR EDUCATION,21-Feb-11,CONTRACT PROGRAMME EXPENDITURE,Children Young People and Families Supporting Delivery Group,SPRINGBOARD,4000046970,313266.00
Department for Education,DEPARTMENT FOR EDUCATION,22-Feb-11,MANAGEMENT CONSULTANCY,Children Young People and Families Improving Information Sharing and Management Group,ATKINS LTD,4000047009,59162.40
Department for Education,DEPARTMENT FOR EDUCATION,22-Feb-11,CONTRACT PROGRAMME EXPENDITURE,Children Young People and Families Group,BRITISH ASSOCIATION FOR ADOPTION & FOSTERING,4000047013,80823.16
Department for Education,DEPARTMENT FOR EDUCATION,22-Feb-11,CONTRACT PROGRAMME EXPENDITURE,Children Young People and Families Early Years Extended Schools and Special Needs,DOLPHIN COMPUTER ACCESS LTD,4000047019,34625.69
Department for Education,DEPARTMENT FOR EDUCATION,22-Feb-11,OTHER PROGRAMME EXPENSES,Supporting Children and Young People Group 2,NATIONAL YOUTH AGENCY,4000047029,129676.73
Department for Education,DEPARTMENT FOR EDUCATION,23-Feb-11,PROFESSIONAL FEES,Children Young People and Families Supporting Delivery Group,CAMBRIDGE EDUCATION HEAD OFFICE,4000047101,152013.96
Department for Education,DEPARTMENT FOR EDUCATION,23-Feb-11,CONTRACT PROGRAMME EXPENDITURE,Children Young People and Families Group,NATIONAL CENTRE FOR SOCIAL RESEARCH,4000047131,87666.00
Department for Education,DEPARTMENT FOR EDUCATION,23-Feb-11,CONTRACT PROGRAMME EXPENDITURE,Supporting Children and Young People Group 2,NATIONAL CENTRE FOR SOCIAL RESEARCH,4000047131,-18381.12
Department for Education,DEPARTMENT FOR EDUCATION,23-Feb-11,CURRENT GRANTS,Children Young People and Families Early Years Extended Schools and Special Needs,THE FAMILY FUND TRUST,4000047141,2245000.00
Department for Education,DEPARTMENT FOR EDUCATION,23-Feb-11,CONTRACT PROGRAMME EXPENDITURE,Children Young People and Families Group,UNIVERSITY OF BRISTOL,4000047148,75330.00
Department for Education,DEPARTMENT FOR EDUCATION,24-Feb-11,CURRENT GRANTS,Children Young People and Families Early Years Extended Schools and Special Needs,BARNSLEY MBC,4000047151,208764.00
Department for Education,DEPARTMENT FOR EDUCATION,24-Feb-11,CAPITAL GRANTS,Children Young People and Families Early Years Extended Schools and Special Needs,BARNSLEY MBC,4000047151,-53400.00
Department for Education,DEPARTMENT FOR EDUCATION,24-Feb-11,CURRENT GRANTS,Children Young People and Families Early Years Extended Schools and Special Needs,BARNSLEY MBC,4000047151,22340.00
Department for Education,DEPARTMENT FOR EDUCATION,24-Feb-11,CURRENT GRANTS,Children Young People and Families Early Years Extended Schools and Special Needs,BARNSLEY MBC,4000047151,71239.00
Department for Education,DEPARTMENT FOR EDUCATION,24-Feb-11,CURRENT GRANTS,Children Young People and Families Early Years Extended Schools and Special Needs,BARNSLEY MBC,4000047151,1436636.00
Department for Education,DEPARTMENT FOR EDUCATION,24-Feb-11,CURRENT GRANTS,Children Young People and Families Early Years Extended Schools and Special Needs,BARNSLEY MBC,4000047151,559312.00
Department for Education,DEPARTMENT FOR EDUCATION,24-Feb-11,CURRENT GRANTS,Children Young People and Families Early Years Extended Schools and Special Needs,BEDFORD BOROUGH COUNCIL,4000047152,137999.00
Department for Education,DEPARTMENT FOR EDUCATION,24-Feb-11,CAPITAL GRANTS,Children Young People and Families Early Years Extended Schools and Special Needs,BEDFORD BOROUGH COUNCIL,4000047152,48040.00
Department for Education,DEPARTMENT FOR EDUCATION,24-Feb-11,CURRENT GRANTS,Children Young People and Families Early Years Extended Schools and Special Needs,BEDFORD BOROUGH COUNCIL,4000047152,14893.00
Department for Education,DEPARTMENT FOR EDUCATION,24-Feb-11,CURRENT GRANTS,Children Young People and Families Early Years Extended Schools and Special Needs,BEDFORD BOROUGH COUNCIL,4000047152,-37107.00
Department for Education,DEPARTMENT FOR EDUCATION,24-Feb-11,CURRENT GRANTS,Children Young People and Families Early Years Extended Schools and Special Needs,BEDFORD BOROUGH COUNCIL,4000047152,758049.00
Department for Education,DEPARTMENT FOR EDUCATION,24-Feb-11,CURRENT GRANTS,Children Young People and Families Early Years Extended Schools and Special Needs,BEDFORD BOROUGH COUNCIL,4000047152,114312.00
Department for Education,DEPARTMENT FOR EDUCATION,24-Feb-11,CURRENT GRANTS,Children Young People and Families Early Years Extended Schools and Special Needs,BIRMINGHAM CITY COUNCIL,4000047153,1079773.00
Department for Education,DEPARTMENT FOR EDUCATION,24-Feb-11,CAPITAL GRANTS,Children Young People and Families Early Years Extended Schools and Special Needs,BIRMINGHAM CITY COUNCIL,4000047153,124317.00
Department for Education,DEPARTMENT FOR EDUCATION,24-Feb-11,CURRENT GRANTS,Children Young People and Families Early Years Extended Schools and Special Needs,BIRMINGHAM CITY COUNCIL,4000047153,29787.00
Department for Education,DEPARTMENT FOR EDUCATION,24-Feb-11,CURRENT GRANTS,Children Young People and Families Early Years Extended Schools and Special Needs,BIRMINGHAM CITY COUNCIL,4000047153,-158412.00
Department for Education,DEPARTMENT FOR EDUCATION,24-Feb-11,CURRENT GRANTS,Children Young People and Families Early Years Extended Schools and Special Needs,BIRMINGHAM CITY COUNCIL,4000047153,10277969.00
Department for Education,DEPARTMENT FOR EDUCATION,24-Feb-11,CURRENT GRANTS,Children Young People and Families Early Years Extended Schools and Special Needs,BIRMINGHAM CITY COUNCIL,4000047153,1455062.00
Department for Education,DEPARTMENT FOR EDUCATION,24-Feb-11,CURRENT GRANTS,Children Young People and Families Early Years Extended Schools and Special Needs,BOLTON MBC,4000047154,227800.00
Department for Education,DEPARTMENT FOR EDUCATION,24-Feb-11,CURRENT GRANTS,Children Young People and Families Early Years Extended Schools and Special Needs,BOLTON MBC,4000047154,22340.00
Department for Education,DEPARTMENT FOR EDUCATION,24-Feb-11,CURRENT GRANTS,Children Young People and Families Early Years Extended Schools and Special Needs,BOLTON MBC,4000047154,-26899.00
Department for Education,DEPARTMENT FOR EDUCATION,24-Feb-11,CURRENT GRANTS,Children Young People and Families Early Years Extended Schools and Special Needs,BOLTON MBC,4000047154,2041742.00
Department for Education,DEPARTMENT FOR EDUCATION,24-Feb-11,CURRENT GRANTS,Children Young People and Families Early Years Extended Schools and Special Needs,BOLTON MBC,4000047154,457247.00
Department for Education,DEPARTMENT FOR EDUCATION,24-Feb-11,CURRENT GRANTS,Children Young People and Families Early Years Extended Schools and Special Needs,BOURNEMOUTH BOROUGH COUNCIL,4000047155,90575.00
Department for Education,DEPARTMENT FOR EDUCATION,24-Feb-11,CAPITAL GRANTS,Children Young People and Families Early Years Extended Schools and Special Needs,BOURNEMOUTH BOROUGH COUNCIL,4000047155,-1856.00
Department for Education,DEPARTMENT FOR EDUCATION,24-Feb-11,CURRENT GRANTS,Children Young People and Families Early Years Extended Schools and Special Needs,BOURNEMOUTH BOROUGH COUNCIL,4000047155,14893.00
Department for Education,DEPARTMENT FOR EDUCATION,24-Feb-11,CURRENT GRANTS,Children Young People and Families Early Years Extended Schools and Special Needs,BOURNEMOUTH BOROUGH COUNCIL,4000047155,42532.00
Department for Education,DEPARTMENT FOR EDUCATION,24-Feb-11,CURRENT GRANTS,Children Young People and Families Early Years Extended Schools and Special Needs,BOURNEMOUTH BOROUGH COUNCIL,4000047155,935918.00
Department for Education,DEPARTMENT FOR EDUCATION,24-Feb-11,CURRENT GRANTS,Children Young People and Families Early Years Extended Schools and Special Needs,BOURNEMOUTH BOROUGH COUNCIL,4000047155,114312.00
Department for Education,DEPARTMENT FOR EDUCATION,24-Feb-11,CURRENT GRANTS,Children Young People and Families Early Years Extended Schools and Special Needs,BRIGHTON & HOVE CITY COUNCIL,4000047156,214237.00
Department for Education,DEPARTMENT FOR EDUCATION,24-Feb-11,CAPITAL GRANTS,Children Young People and Families Early Years Extended Schools and Special Needs,BRIGHTON & HOVE CITY COUNCIL,4000047156,-80750.00
Department for Education,DEPARTMENT FOR EDUCATION,24-Feb-11,CURRENT GRANTS,Children Young People and Families Early Years Extended Schools and Special Needs,BRIGHTON & HOVE CITY COUNCIL,4000047156,22340.00
Department for Education,DEPARTMENT FOR EDUCATION,24-Feb-11,CURRENT GRANTS,Children Young People and Families Early Years Extended Schools and Special Needs,BRIGHTON & HOVE CITY COUNCIL,4000047156,26732.00
Department for Education,DEPARTMENT FOR EDUCATION,24-Feb-11,CURRENT GRANTS,Children Young People and Families Early Years Extended Schools and Special Needs,BRIGHTON & HOVE CITY COUNCIL,4000047156,1573349.00
Department for Education,DEPARTMENT FOR EDUCATION,24-Feb-11,CURRENT GRANTS,Children Young People and Families Early Years Extended Schools and Special Needs,BRIGHTON & HOVE CITY COUNCIL,4000047156,228624.00
Department for Education,DEPARTMENT FOR EDUCATION,24-Feb-11,CURRENT GRANTS,Children Young People and Families Early Years Extended Schools and Special Needs,BRISTOL CITY COUNCIL,4000047157,340125.00
Department for Education,DEPARTMENT FOR EDUCATION,24-Feb-11,CAPITAL GRANTS,Children Young People and Families Early Years Extended Schools and Special Needs,BRISTOL CITY COUNCIL,4000047157,118176.00
Department for Education,DEPARTMENT FOR EDUCATION,24-Feb-11,CURRENT GRANTS,Children Young People and Families Early Years Extended Schools and Special Needs,BRISTOL CITY COUNCIL,4000047157,29787.00
Department for Education,DEPARTMENT FOR EDUCATION,24-Feb-11,CURRENT GRANTS,Children Young People and Families Early Years Extended Schools and Special Needs,BRISTOL CITY COUNCIL,4000047157,87634.00
Department for Education,DEPARTMENT FOR EDUCATION,24-Feb-11,CURRENT GRANTS,Children Young People and Families Early Years Extended Schools and Special Needs,BRISTOL CITY COUNCIL,4000047157,2855038.00
Department for Education,DEPARTMENT FOR EDUCATION,24-Feb-11,CURRENT GRANTS,Children Young People and Families Early Years Extended Schools and Special Needs,BRISTOL CITY COUNCIL,4000047157,457248.00
Department for Education,DEPARTMENT FOR EDUCATION,24-Feb-11,CURRENT GRANTS,Children Young People and Families Early Years Extended Schools and Special Needs,BUCKINGHAMSHIRE COUNTY COUNCIL,4000047158,422588.00
Department for Education,DEPARTMENT FOR EDUCATION,24-Feb-11,CAPITAL GRANTS,Children Young People and Families Early Years Extended Schools and Special Needs,BUCKINGHAMSHIRE COUNTY COUNCIL,4000047158,-104400.00
Department for Education,DEPARTMENT FOR EDUCATION,24-Feb-11,CURRENT GRANTS,Children Young People and Families Early Years Extended Schools and Special Needs,BUCKINGHAMSHIRE COUNTY COUNCIL,4000047158,29787.00
Department for Education,DEPARTMENT FOR EDUCATION,24-Feb-11,CURRENT GRANTS,Children Young People and Families Early Years Extended Schools and Special Needs,BUCKINGHAMSHIRE COUNTY COUNCIL,4000047158,-7958.00
Department for Education,DEPARTMENT FOR EDUCATION,24-Feb-11,CURRENT GRANTS,Children Young People and Families Early Years Extended Schools and Special Needs,BUCKINGHAMSHIRE COUNTY COUNCIL,4000047158,2665114.00
Department for Education,DEPARTMENT FOR EDUCATION,24-Feb-11,CURRENT GRANTS,Children Young People and Families Early Years Extended Schools and Special Needs,BUCKINGHAMSHIRE COUNTY COUNCIL,4000047158,151875.00
Department for Education,DEPARTMENT FOR EDUCATION,24-Feb-11,CURRENT GRANTS,Children Young People and Families Early Years Extended Schools and Special Needs,BURY MBC,4000047159,156550.00
Department for Education,DEPARTMENT FOR EDUCATION,24-Feb-11,CAPITAL GRANTS,Children Young People and Families Early Years Extended Schools and Special Needs,BURY MBC,4000047159,45725.00
Department for Education,DEPARTMENT FOR EDUCATION,24-Feb-11,CURRENT GRANTS,Children Young People and Families Early Years Extended Schools and Special Needs,BURY MBC,4000047159,14893.00
Department for Education,DEPARTMENT FOR EDUCATION,24-Feb-11,CURRENT GRANTS,Children Young People and Families Early Years Extended Schools and Special Needs,BURY MBC,4000047159,-15917.00
Department for Education,DEPARTMENT FOR EDUCATION,24-Feb-11,CURRENT GRANTS,Children Young People and Families Early Years Extended Schools and Special Needs,BURY MBC,4000047159,1424935.00
Department for Education,DEPARTMENT FOR EDUCATION,24-Feb-11,CURRENT GRANTS,Children Young People and Families Early Years Extended Schools and Special Needs,BURY MBC,4000047159,114312.00
Department for Education,DEPARTMENT FOR EDUCATION,24-Feb-11,CURRENT GRANTS,Children Young People and Families Early Years Extended Schools and Special Needs,CALDERDALE MBC,4000047160,173305.00
Department for Education,DEPARTMENT FOR EDUCATION,24-Feb-11,CAPITAL GRANTS,Children Young People and Families Early Years Extended Schools and Special Needs,CALDERDALE MBC,4000047160,-44175.00
Department for Education,DEPARTMENT FOR EDUCATION,24-Feb-11,CURRENT GRANTS,Children Young People and Families Early Years Extended Schools and Special Needs,CALDERDALE MBC,4000047160,22340.00
Department for Education,DEPARTMENT FOR EDUCATION,24-Feb-11,CURRENT GRANTS,Children Young People and Families Early Years Extended Schools and Special Needs,CALDERDALE MBC,4000047160,-31837.00
Department for Education,DEPARTMENT FOR EDUCATION,24-Feb-11,CURRENT GRANTS,Children Young People and Families Early Years Extended Schools and Special Needs,CALDERDALE MBC,4000047160,1525451.00
Department for Education,DEPARTMENT FOR EDUCATION,24-Feb-11,CURRENT GRANTS,Children Young People and Families Early Years Extended Schools and Special Needs,CALDERDALE MBC,4000047160,342936.00
Department for Education,DEPARTMENT FOR EDUCATION,24-Feb-11,CURRENT GRANTS,Children Young People and Families Early Years Extended Schools and Special Needs,CAMBRIDGESHIRE COUNTY COUNCIL,4000047161,547025.00
Department for Education,DEPARTMENT FOR EDUCATION,24-Feb-11,CAPITAL GRANTS,Children Young People and Families Early Years Extended Schools and Special Needs,CAMBRIDGESHIRE COUNTY COUNCIL,4000047161,135281.00
Department for Education,DEPARTMENT FOR EDUCATION,24-Feb-11,CURRENT GRANTS,Children Young People and Families Early Years Extended Schools and Special Needs,CAMBRIDGESHIRE COUNTY COUNCIL,4000047161,29787.00
Department for Education,DEPARTMENT FOR EDUCATION,24-Feb-11,CURRENT GRANTS,Children Young People and Families Early Years Extended Schools and Special Needs,CAMBRIDGESHIRE COUNTY COUNCIL,4000047161,-51459.00
Department for Education,DEPARTMENT FOR EDUCATION,24-Feb-11,CURRENT GRANTS,Children Young People and Families Early Years Extended Schools and Special Needs,CAMBRIDGESHIRE COUNTY COUNCIL,4000047161,3203585.00
Department for Education,DEPARTMENT FOR EDUCATION,24-Feb-11,CURRENT GRANTS,Children Young People and Families Early Years Extended Schools and Special Needs,CAMBRIDGESHIRE COUNTY COUNCIL,4000047161,228624.00
Department for Education,DEPARTMENT FOR EDUCATION,24-Feb-11,CURRENT GRANTS,Children Young People and Families Early Years Extended Schools and Special Needs,CENTRAL BEDFORDSHIRE COUNCIL,4000047162,229125.00
Department for Education,DEPARTMENT FOR EDUCATION,24-Feb-11,CAPITAL GRANTS,Children Young People and Families Early Years Extended Schools and Special Needs,CENTRAL BEDFORDSHIRE COUNCIL,4000047162,-56980.00
Department for Education,DEPARTMENT FOR EDUCATION,24-Feb-11,CURRENT GRANTS,Children Young People and Families Early Years Extended Schools and Special Needs,CENTRAL BEDFORDSHIRE COUNCIL,4000047162,22340.00
Department for Education,DEPARTMENT FOR EDUCATION,24-Feb-11,CURRENT GRANTS,Children Young People and Families Early Years Extended Schools and Special Needs,CENTRAL BEDFORDSHIRE COUNCIL,4000047162,-14184.00
Department for Education,DEPARTMENT FOR EDUCATION,24-Feb-11,CURRENT GRANTS,Children Young People and Families Early Years Extended Schools and Special Needs,CENTRAL BEDFORDSHIRE COUNCIL,4000047162,1205898.00
Department for Education,DEPARTMENT FOR EDUCATION,24-Feb-11,CURRENT GRANTS,Children Young People and Families Early Years Extended Schools and Special Needs,CHESHIRE WEST & CHESTER COUNCIL,4000047163,277822.00
Department for Education,DEPARTMENT FOR EDUCATION,24-Feb-11,CAPITAL GRANTS,Children Young People and Families Early Years Extended Schools and Special Needs,CHESHIRE WEST & CHESTER COUNCIL,4000047163,87687.00
Department for Education,DEPARTMENT FOR EDUCATION,24-Feb-11,CURRENT GRANTS,Children Young People and Families Early Years Extended Schools and Special Needs,CHESHIRE WEST & CHESTER COUNCIL,4000047163,22340.00
Department for Education,DEPARTMENT FOR EDUCATION,24-Feb-11,CURRENT GRANTS,Children Young People and Families Early Years Extended Schools and Special Needs,CHESHIRE WEST & CHESTER COUNCIL,4000047163,-16058.00
Department for Education,DEPARTMENT FOR EDUCATION,24-Feb-11,CURRENT GRANTS,Children Young People and Families Early Years Extended Schools and Special Needs,CHESHIRE WEST & CHESTER COUNCIL,4000047163,1813611.00
Department for Education,DEPARTMENT FOR EDUCATION,24-Feb-11,CURRENT GRANTS,Children Young People and Families Early Years Extended Schools and Special Needs,CHESHIRE WEST & CHESTER COUNCIL,4000047163,360342.00
Department for Education,DEPARTMENT FOR EDUCATION,24-Feb-11,CURRENT GRANTS,Children Young People and Families Early Years Extended Schools and Special Needs,CITY OF BRADFORD METROPOLITAN DISTRICT COUNCIL,4000047164,457525.00
Department for Education,DEPARTMENT FOR EDUCATION,24-Feb-11,CAPITAL GRANTS,Children Young People and Families Early Years Extended Schools and Special Needs,CITY OF BRADFORD METROPOLITAN DISTRICT COUNCIL,4000047164,-221550.00
Department for Education,DEPARTMENT FOR EDUCATION,24-Feb-11,CURRENT GRANTS,Children Young People and Families Early Years Extended Schools and Special Needs,CITY OF BRADFORD METROPOLITAN DISTRICT COUNCIL,4000047164,159975.00
Department for Education,DEPARTMENT FOR EDUCATION,24-Feb-11,CURRENT GRANTS,Children Young People and Families Early Years Extended Schools and Special Needs,CITY OF BRADFORD METROPOLITAN DISTRICT COUNCIL,4000047164,68702.00
Department for Education,DEPARTMENT FOR EDUCATION,24-Feb-11,CURRENT GRANTS,Children Young People and Families Early Years Extended Schools and Special Needs,CITY OF BRADFORD METROPOLITAN DISTRICT COUNCIL,4000047164,3893781.00
Department for Education,DEPARTMENT FOR EDUCATION,24-Feb-11,CURRENT GRANTS,Children Young People and Families Early Years Extended Schools and Special Needs,CITY OF BRADFORD METROPOLITAN DISTRICT COUNCIL,4000047164,946498.00
Department for Education,DEPARTMENT FOR EDUCATION,24-Feb-11,CURRENT GRANTS,Children Young People and Families Early Years Extended Schools and Special Needs,CORNWALL COUNCIL,4000047165,328122.00
Department for Education,DEPARTMENT FOR EDUCATION,24-Feb-11,CAPITAL GRANTS,Children Young People and Families Early Years Extended Schools and Special Needs,CORNWALL COUNCIL,4000047165,54191.00
Department for Education,DEPARTMENT FOR EDUCATION,24-Feb-11,CURRENT GRANTS,Children Young People and Families Early Years Extended Schools and Special Needs,CORNWALL COUNCIL,4000047165,-102850.00
Department for Education,DEPARTMENT FOR EDUCATION,24-Feb-11,CURRENT GRANTS,Children Young People and Families Early Years Extended Schools and Special Needs,CORNWALL COUNCIL,4000047165,116075.00
Department for Education,DEPARTMENT FOR EDUCATION,24-Feb-11,CURRENT GRANTS,Children Young People and Families Early Years Extended Schools and Special Needs,CORNWALL COUNCIL,4000047165,2299733.00
Department for Education,DEPARTMENT FOR EDUCATION,24-Feb-11,CURRENT GRANTS,Children Young People and Families Early Years Extended Schools and Special Needs,CORNWALL COUNCIL,4000047165,812494.00
Department for Education,DEPARTMENT FOR EDUCATION,24-Feb-11,CURRENT GRANTS,Children Young People and Families Early Years Extended Schools and Special Needs,CORPORATION OF LONDON,4000047166,-38.00
Department for Education,DEPARTMENT FOR EDUCATION,24-Feb-11,CURRENT GRANTS,Children Young People and Families Early Years Extended Schools and Special Needs,CORPORATION OF LONDON,4000047166,14893.00
Department for Education,DEPARTMENT FOR EDUCATION,24-Feb-11,CURRENT GRANTS,Children Young People and Families Early Years Extended Schools and Special Needs,CORPORATION OF LONDON,4000047166,-52637.00
Department for Education,DEPARTMENT FOR EDUCATION,24-Feb-11,CURRENT GRANTS,Children Young People and Families Early Years Extended Schools and Special Needs,CORPORATION OF LONDON,4000047166,119739.00
Department for Education,DEPARTMENT FOR EDUCATION,24-Feb-11,CURRENT GRANTS,Children Young People and Families Early Years Extended Schools and Special Needs,COVENTRY CITY COUNCIL,4000047167,566666.00
Department for Education,DEPARTMENT FOR EDUCATION,24-Feb-11,CURRENT GRANTS,Children Young People and Families Early Years Extended Schools and Special Needs,COVENTRY CITY COUNCIL,4000047167,306925.00
Department for Education,DEPARTMENT FOR EDUCATION,24-Feb-11,CAPITAL GRANTS,Children Young People and Families Early Years Extended Schools and Special Needs,COVENTRY CITY COUNCIL,4000047167,73863.00
Department for Education,DEPARTMENT FOR EDUCATION,24-Feb-11,CURRENT GRANTS,Children Young People and Families Early Years Extended Schools and Special Needs,COVENTRY CITY COUNCIL,4000047167,22340.00
Department for Education,DEPARTMENT FOR EDUCATION,24-Feb-11,CURRENT GRANTS,Children Young People and Families Early Years Extended Schools and Special Needs,COVENTRY CITY COUNCIL,4000047167,99083.00
Department for Education,DEPARTMENT FOR EDUCATION,24-Feb-11,CURRENT GRANTS,Children Young People and Families Early Years Extended Schools and Special Needs,COVENTRY CITY COUNCIL,4000047167,2101013.00
Department for Education,DEPARTMENT FOR EDUCATION,24-Feb-11,CURRENT GRANTS,Children Young People and Families Early Years Extended Schools and Special Needs,COVENTRY CITY COUNCIL,4000047167,492871.00
Department for Education,DEPARTMENT FOR EDUCATION,24-Feb-11,CURRENT GRANTS,Children Young People and Families Early Years Extended Schools and Special Needs,DARLINGTON BOROUGH COUNCIL,4000047168,80050.00
Department for Education,DEPARTMENT FOR EDUCATION,24-Feb-11,CAPITAL GRANTS,Children Young People and Families Early Years Extended Schools and Special Needs,DARLINGTON BOROUGH COUNCIL,4000047168,18655.00
Department for Education,DEPARTMENT FOR EDUCATION,24-Feb-11,CURRENT GRANTS,Children Young People and Families Early Years Extended Schools and Special Needs,DARLINGTON BOROUGH COUNCIL,4000047168,14893.00
Department for Education,DEPARTMENT FOR EDUCATION,24-Feb-11,CURRENT GRANTS,Children Young People and Families Early Years Extended Schools and Special Needs,DARLINGTON BOROUGH COUNCIL,4000047168,41249.00
Department for Education,DEPARTMENT FOR EDUCATION,24-Feb-11,CURRENT GRANTS,Children Young People and Families Early Years Extended Schools and Special Needs,DARLINGTON BOROUGH COUNCIL,4000047168,694941.00
Department for Education,DEPARTMENT FOR EDUCATION,24-Feb-11,CURRENT GRANTS,Children Young People and Families Early Years Extended Schools and Special Needs,DARLINGTON BOROUGH COUNCIL,4000047168,228624.00
Department for Education,DEPARTMENT FOR EDUCATION,24-Feb-11,CURRENT GRANTS,Children Young People and Families Early Years Extended Schools and Special Needs,DERBY CITY COUNCIL,4000047169,181075.00
Department for Education,DEPARTMENT FOR EDUCATION,24-Feb-11,CAPITAL GRANTS,Children Young People and Families Early Years Extended Schools and Special Needs,DERBY CITY COUNCIL,4000047169,-32977.00
Department for Education,DEPARTMENT FOR EDUCATION,24-Feb-11,CURRENT GRANTS,Children Young People and Families Early Years Extended Schools and Special Needs,DERBY CITY COUNCIL,4000047169,22340.00
Department for Education,DEPARTMENT FOR EDUCATION,24-Feb-11,CURRENT GRANTS,Children Young People and Families Early Years Extended Schools and Special Needs,DERBY CITY COUNCIL,4000047169,-48000.00
Department for Education,DEPARTMENT FOR EDUCATION,24-Feb-11,CURRENT GRANTS,Children Young People and Families Early Years Extended Schools and Special Needs,DERBY CITY COUNCIL,4000047169,1412358.00
Department for Education,DEPARTMENT FOR EDUCATION,24-Feb-11,CURRENT GRANTS,Children Young People and Families Early Years Extended Schools and Special Needs,DERBY CITY COUNCIL,4000047169,-68932.00
Department for Education,DEPARTMENT FOR EDUCATION,24-Feb-11,CURRENT GRANTS,Children Young People and Families Early Years Extended Schools and Special Needs,DERBY CITY COUNCIL,4000047169,457248.00
Department for Education,DEPARTMENT FOR EDUCATION,24-Feb-11,CURRENT GRANTS,Children Young People and Families Early Years Extended Schools and Special Needs,DERBYSHIRE COUNTY COUNCIL,4000047170,629300.00
Department for Education,DEPARTMENT FOR EDUCATION,24-Feb-11,CURRENT GRANTS,Children Young People and Families Early Years Extended Schools and Special Needs,DERBYSHIRE COUNTY COUNCIL,4000047170,29787.00
Department for Education,DEPARTMENT FOR EDUCATION,24-Feb-11,CURRENT GRANTS,Children Young People and Families Early Years Extended Schools and Special Needs,DERBYSHIRE COUNTY COUNCIL,4000047170,-161922.00
Department for Education,DEPARTMENT FOR EDUCATION,24-Feb-11,CURRENT GRANTS,Children Young People and Families Early Years Extended Schools and Special Needs,DERBYSHIRE COUNTY COUNCIL,4000047170,4163518.00
Department for Education,DEPARTMENT FOR EDUCATION,24-Feb-11,CURRENT GRANTS,Children Young People and Families Early Years Extended Schools and Special Needs,DERBYSHIRE COUNTY COUNCIL,4000047170,571560.00
Department for Education,DEPARTMENT FOR EDUCATION,24-Feb-11,CURRENT GRANTS,Children Young People and Families Early Years Extended Schools and Special Needs,DEVON COUNTY COUNCIL,4000047171,475175.00
Department for Education,DEPARTMENT FOR EDUCATION,24-Feb-11,CAPITAL GRANTS,Children Young People and Families Early Years Extended Schools and Special Needs,DEVON COUNTY COUNCIL,4000047171,154475.00
Department for Education,DEPARTMENT FOR EDUCATION,24-Feb-11,CURRENT GRANTS,Children Young People and Families Early Years Extended Schools and Special Needs,DEVON COUNTY COUNCIL,4000047171,29787.00
Department for Education,DEPARTMENT FOR EDUCATION,24-Feb-11,CURRENT GRANTS,Children Young People and Families Early Years Extended Schools and Special Needs,DEVON COUNTY COUNCIL,4000047171,-108642.00
Department for Education,DEPARTMENT FOR EDUCATION,24-Feb-11,CURRENT GRANTS,Children Young People and Families Early Years Extended Schools and Special Needs,DEVON COUNTY COUNCIL,4000047171,3701379.00
Department for Education,DEPARTMENT FOR EDUCATION,24-Feb-11,CURRENT GRANTS,Children Young People and Families Early Years Extended Schools and Special Needs,DEVON COUNTY COUNCIL,4000047171,457248.00
Department for Education,DEPARTMENT FOR EDUCATION,24-Feb-11,CURRENT GRANTS,Children Young People and Families Early Years Extended Schools and Special Needs,DONCASTER MBC,4000047172,238968.00
Department for Education,DEPARTMENT FOR EDUCATION,24-Feb-11,CAPITAL GRANTS,Children Young People and Families Early Years Extended Schools and Special Needs,DONCASTER MBC,4000047172,-19919.00
Department for Education,DEPARTMENT FOR EDUCATION,24-Feb-11,CURRENT GRANTS,Children Young People and Families Early Years Extended Schools and Special Needs,DONCASTER MBC,4000047172,22340.00
Department for Education,DEPARTMENT FOR EDUCATION,24-Feb-11,CURRENT GRANTS,Children Young People and Families Early Years Extended Schools and Special Needs,DONCASTER MBC,4000047172,76804.00
Department for Education,DEPARTMENT FOR EDUCATION,24-Feb-11,CURRENT GRANTS,Children Young People and Families Early Years Extended Schools and Special Needs,DONCASTER MBC,4000047172,2022286.00
Department for Education,DEPARTMENT FOR EDUCATION,24-Feb-11,CURRENT GRANTS,Children Young People and Families Early Years Extended Schools and Special Needs,DONCASTER MBC,4000047172,687435.00
Department for Education,DEPARTMENT FOR EDUCATION,24-Feb-11,CURRENT GRANTS,Children Young People and Families Early Years Extended Schools and Special Needs,DORSET COUNTY COUNCIL,4000047173,174229.00
Department for Education,DEPARTMENT FOR EDUCATION,24-Feb-11,CAPITAL GRANTS,Children Young People and Families Early Years Extended Schools and Special Needs,DORSET COUNTY COUNCIL,4000047173,-67094.00
Department for Education,DEPARTMENT FOR EDUCATION,24-Feb-11,CURRENT GRANTS,Children Young People and Families Early Years Extended Schools and Special Needs,DORSET COUNTY COUNCIL,4000047173,29787.00
Department for Education,DEPARTMENT FOR EDUCATION,24-Feb-11,CURRENT GRANTS,Children Young People and Families Early Years Extended Schools and Special Needs,DORSET COUNTY COUNCIL,4000047173,-31814.00
Department for Education,DEPARTMENT FOR EDUCATION,24-Feb-11,CURRENT GRANTS,Children Young People and Families Early Years Extended Schools and Special Needs,DORSET COUNTY COUNCIL,4000047173,1770500.00
Department for Education,DEPARTMENT FOR EDUCATION,24-Feb-11,CURRENT GRANTS,Children Young People and Families Early Years Extended Schools and Special Needs,DORSET COUNTY COUNCIL,4000047173,114312.00
Department for Education,DEPARTMENT FOR EDUCATION,24-Feb-11,CURRENT GRANTS,Children Young People and Families Early Years Extended Schools and Special Needs,DUDLEY MBC,4000047174,214065.00
Department for Education,DEPARTMENT FOR EDUCATION,24-Feb-11,CAPITAL GRANTS,Children Young People and Families Early Years Extended Schools and Special Needs,DUDLEY MBC,4000047174,-5000.00
Department for Education,DEPARTMENT FOR EDUCATION,24-Feb-11,CURRENT GRANTS,Children Young People and Families Early Years Extended Schools and Special Needs,DUDLEY MBC,4000047174,22340.00
Department for Education,DEPARTMENT FOR EDUCATION,24-Feb-11,CURRENT GRANTS,Children Young People and Families Early Years Extended Schools and Special Needs,DUDLEY MBC,4000047174,-125524.00
Department for Education,DEPARTMENT FOR EDUCATION,24-Feb-11,CURRENT GRANTS,Children Young People and Families Early Years Extended Schools and Special Needs,DUDLEY MBC,4000047174,1861125.00
Department for Education,DEPARTMENT FOR EDUCATION,24-Feb-11,CURRENT GRANTS,Children Young People and Families Early Years Extended Schools and Special Needs,DUDLEY MBC,4000047174,383311.00
Department for Education,DEPARTMENT FOR EDUCATION,24-Feb-11,CURRENT GRANTS,Children Young People and Families Early Years Extended Schools and Special Needs,DURHAM COUNTY COUNCIL,4000047175,443150.00
Department for Education,DEPARTMENT FOR EDUCATION,24-Feb-11,CAPITAL GRANTS,Children Young People and Families Early Years Extended Schools and Special Needs,DURHAM COUNTY COUNCIL,4000047175,156225.00
Department for Education,DEPARTMENT FOR EDUCATION,24-Feb-11,CURRENT GRANTS,Children Young People and Families Early Years Extended Schools and Special Needs,DURHAM COUNTY COUNCIL,4000047175,29787.00
Department for Education,DEPARTMENT FOR EDUCATION,24-Feb-11,CURRENT GRANTS,Children Young People and Families Early Years Extended Schools and Special Needs,DURHAM COUNTY COUNCIL,4000047175,-136075.00
Department for Education,DEPARTMENT FOR EDUCATION,24-Feb-11,CURRENT GRANTS,Children Young People and Families Early Years Extended Schools and Special Needs,DURHAM COUNTY COUNCIL,4000047175,2719120.00
Department for Education,DEPARTMENT FOR EDUCATION,24-Feb-11,CURRENT GRANTS,Children Young People and Families Early Years Extended Schools and Special Needs,DURHAM COUNTY COUNCIL,4000047175,1470370.00
Department for Education,DEPARTMENT FOR EDUCATION,24-Feb-11,CURRENT GRANTS,Children Young People and Families Early Years Extended Schools and Special Needs,EAST RIDING OF YORKSHIRE,4000047176,244475.00
Department for Education,DEPARTMENT FOR EDUCATION,24-Feb-11,CAPITAL GRANTS,Children Young People and Families Early Years Extended Schools and Special Needs,EAST RIDING OF YORKSHIRE,4000047176,80800.00
Department for Education,DEPARTMENT FOR EDUCATION,24-Feb-11,CURRENT GRANTS,Children Young People and Families Early Years Extended Schools and Special Needs,EAST RIDING OF YORKSHIRE,4000047176,29787.00
Department for Education,DEPARTMENT FOR EDUCATION,24-Feb-11,CURRENT GRANTS,Children Young People and Families Early Years Extended Schools and Special Needs,EAST RIDING OF YORKSHIRE,4000047176,-25206.00
Department for Education,DEPARTMENT FOR EDUCATION,24-Feb-11,CURRENT GRANTS,Children Young People and Families Early Years Extended Schools and Special Needs,EAST RIDING OF YORKSHIRE,4000047176,1633685.00
Department for Education,DEPARTMENT FOR EDUCATION,24-Feb-11,CURRENT GRANTS,Children Young People and Families Early Years Extended Schools and Special Needs,EAST RIDING OF YORKSHIRE,4000047176,114312.00
Department for Education,DEPARTMENT FOR EDUCATION,24-Feb-11,CURRENT GRANTS,Children Young People and Families Early Years Extended Schools and Special Needs,EAST SUSSEX COUNTY COUNCIL,4000047177,566666.00
Department for Education,DEPARTMENT FOR EDUCATION,24-Feb-11,CURRENT GRANTS,Children Young People and Families Early Years Extended Schools and Special Needs,EAST SUSSEX COUNTY COUNCIL,4000047177,430625.00
Department for Education,DEPARTMENT FOR EDUCATION,24-Feb-11,CAPITAL GRANTS,Children Young People and Families Early Years Extended Schools and Special Needs,EAST SUSSEX COUNTY COUNCIL,4000047177,25675.00
Department for Education,DEPARTMENT FOR EDUCATION,24-Feb-11,CURRENT GRANTS,Children Young People and Families Early Years Extended Schools and Special Needs,EAST SUSSEX COUNTY COUNCIL,4000047177,29787.00
Department for Education,DEPARTMENT FOR EDUCATION,24-Feb-11,CURRENT GRANTS,Children Young People and Families Early Years Extended Schools and Special Needs,EAST SUSSEX COUNTY COUNCIL,4000047177,-57426.00
Department for Education,DEPARTMENT FOR EDUCATION,24-Feb-11,CURRENT GRANTS,Children Young People and Families Early Years Extended Schools and Special Needs,EAST SUSSEX COUNTY COUNCIL,4000047177,2525377.00
Department for Education,DEPARTMENT FOR EDUCATION,24-Feb-11,CURRENT GRANTS,Children Young People and Families Early Years Extended Schools and Special Needs,EAST SUSSEX COUNTY COUNCIL,4000047177,721560.00
Department for Education,DEPARTMENT FOR EDUCATION,24-Feb-11,CURRENT GRANTS,Children Young People and Families Early Years Extended Schools and Special Needs,GATESHEAD MBC,4000047178,190562.00
Department for Education,DEPARTMENT FOR EDUCATION,24-Feb-11,CURRENT GRANTS,Children Young People and Families Early Years Extended Schools and Special Needs,GATESHEAD MBC,4000047178,14893.00
Department for Education,DEPARTMENT FOR EDUCATION,24-Feb-11,CURRENT GRANTS,Children Young People and Families Early Years Extended Schools and Special Needs,GATESHEAD MBC,4000047178,46169.00
Department for Education,DEPARTMENT FOR EDUCATION,24-Feb-11,CURRENT GRANTS,Children Young People and Families Early Years Extended Schools and Special Needs,GATESHEAD MBC,4000047178,1114618.00
Department for Education,DEPARTMENT FOR EDUCATION,24-Feb-11,CURRENT GRANTS,Children Young People and Families Early Years Extended Schools and Special Needs,GATESHEAD MBC,4000047178,456348.00
Department for Education,DEPARTMENT FOR EDUCATION,24-Feb-11,CURRENT GRANTS,Children Young People and Families Early Years Extended Schools and Special Needs,GLOUCESTERSHIRE COUNTY COUNCIL,4000047179,566666.00
Department for Education,DEPARTMENT FOR EDUCATION,24-Feb-11,CURRENT GRANTS,Children Young People and Families Early Years Extended Schools and Special Needs,GLOUCESTERSHIRE COUNTY COUNCIL,4000047179,364963.00
Department for Education,DEPARTMENT FOR EDUCATION,24-Feb-11,CAPITAL GRANTS,Children Young People and Families Early Years Extended Schools and Special Needs,GLOUCESTERSHIRE COUNTY COUNCIL,4000047179,-341806.00
Department for Education,DEPARTMENT FOR EDUCATION,24-Feb-11,CURRENT GRANTS,Children Young People and Families Early Years Extended Schools and Special Needs,GLOUCESTERSHIRE COUNTY COUNCIL,4000047179,29787.00
Department for Education,DEPARTMENT FOR EDUCATION,24-Feb-11,CURRENT GRANTS,Children Young People and Families Early Years Extended Schools and Special Needs,GLOUCESTERSHIRE COUNTY COUNCIL,4000047179,21348.00
Department for Education,DEPARTMENT FOR EDUCATION,24-Feb-11,CURRENT GRANTS,Children Young People and Families Early Years Extended Schools and Special Needs,GLOUCESTERSHIRE COUNTY COUNCIL,4000047179,3102110.00
Department for Education,DEPARTMENT FOR EDUCATION,24-Feb-11,CURRENT GRANTS,Children Young People and Families Early Years Extended Schools and Special Needs,GLOUCESTERSHIRE COUNTY COUNCIL,4000047179,228624.00
Department for Education,DEPARTMENT FOR EDUCATION,24-Feb-11,CURRENT GRANTS,Children Young People and Families Early Years Extended Schools and Special Needs,HALTON BOROUGH COUNCIL,4000047180,137925.00
Department for Education,DEPARTMENT FOR EDUCATION,24-Feb-11,CAPITAL GRANTS,Children Young People and Families Early Years Extended Schools and Special Needs,HALTON BOROUGH COUNCIL,4000047180,-18685.00
Department for Education,DEPARTMENT FOR EDUCATION,24-Feb-11,CURRENT GRANTS,Children Young People and Families Early Years Extended Schools and Special Needs,HALTON BOROUGH COUNCIL,4000047180,14893.00
Department for Education,DEPARTMENT FOR EDUCATION,24-Feb-11,CURRENT GRANTS,Children Young People and Families Early Years Extended Schools and Special Needs,HALTON BOROUGH COUNCIL,4000047180,1000.00
Department for Education,DEPARTMENT FOR EDUCATION,24-Feb-11,CURRENT GRANTS,Children Young People and Families Early Years Extended Schools and Special Needs,HALTON BOROUGH COUNCIL,4000047180,970836.00
Department for Education,DEPARTMENT FOR EDUCATION,24-Feb-11,CURRENT GRANTS,Children Young People and Families Early Years Extended Schools and Special Needs,HALTON BOROUGH COUNCIL,4000047180,574385.00
Department for Education,DEPARTMENT FOR EDUCATION,24-Feb-11,CURRENT GRANTS,Children Young People and Families Early Years Extended Schools and Special Needs,HAMPSHIRE COUNTY COUNCIL,4000047181,1126625.00
Department for Education,DEPARTMENT FOR EDUCATION,24-Feb-11,CAPITAL GRANTS,Children Young People and Families Early Years Extended Schools and Special Needs,HAMPSHIRE COUNTY COUNCIL,4000047181,309029.00
Department for Education,DEPARTMENT FOR EDUCATION,24-Feb-11,CURRENT GRANTS,Children Young People and Families Early Years Extended Schools and Special Needs,HAMPSHIRE COUNTY COUNCIL,4000047181,29787.00
Department for Education,DEPARTMENT FOR EDUCATION,24-Feb-11,CURRENT GRANTS,Children Young People and Families Early Years Extended Schools and Special Needs,HAMPSHIRE COUNTY COUNCIL,4000047181,-46214.00
Department for Education,DEPARTMENT FOR EDUCATION,24-Feb-11,CURRENT GRANTS,Children Young People and Families Early Years Extended Schools and Special Needs,HAMPSHIRE COUNTY COUNCIL,4000047181,6415456.00
Department for Education,DEPARTMENT FOR EDUCATION,24-Feb-11,CURRENT GRANTS,Children Young People and Families Early Years Extended Schools and Special Needs,HAMPSHIRE COUNTY COUNCIL,4000047181,228624.00
Department for Education,DEPARTMENT FOR EDUCATION,24-Feb-11,CURRENT GRANTS,Children Young People and Families Early Years Extended Schools and Special Needs,HEREFORDSHIRE COUNCIL,4000047182,129443.00
Department for Education,DEPARTMENT FOR EDUCATION,24-Feb-11,CAPITAL GRANTS,Children Young People and Families Early Years Extended Schools and Special Needs,HEREFORDSHIRE COUNCIL,4000047182,-8763.00
Department for Education,DEPARTMENT FOR EDUCATION,24-Feb-11,CURRENT GRANTS,Children Young People and Families Early Years Extended Schools and Special Needs,HEREFORDSHIRE COUNCIL,4000047182,14893.00
Department for Education,DEPARTMENT FOR EDUCATION,24-Feb-11,CURRENT GRANTS,Children Young People and Families Early Years Extended Schools and Special Needs,HEREFORDSHIRE COUNCIL,4000047182,41787.00
Department for Education,DEPARTMENT FOR EDUCATION,24-Feb-11,CURRENT GRANTS,Children Young People and Families Early Years Extended Schools and Special Needs,HEREFORDSHIRE COUNCIL,4000047182,905092.00
Department for Education,DEPARTMENT FOR EDUCATION,24-Feb-11,CURRENT GRANTS,Children Young People and Families Early Years Extended Schools and Special Needs,HEREFORDSHIRE COUNCIL,4000047182,111948.00
Department for Education,DEPARTMENT FOR EDUCATION,24-Feb-11,CURRENT GRANTS,Children Young People and Families Early Years Extended Schools and Special Needs,HERTFORDSHIRE,4000047183,962400.00
Department for Education,DEPARTMENT FOR EDUCATION,24-Feb-11,CAPITAL GRANTS,Children Young People and Families Early Years Extended Schools and Special Needs,HERTFORDSHIRE,4000047183,343425.00
Department for Education,DEPARTMENT FOR EDUCATION,24-Feb-11,CURRENT GRANTS,Children Young People and Families Early Years Extended Schools and Special Needs,HERTFORDSHIRE,4000047183,29787.00
Department for Education,DEPARTMENT FOR EDUCATION,24-Feb-11,CURRENT GRANTS,Children Young People and Families Early Years Extended Schools and Special Needs,HERTFORDSHIRE,4000047183,216736.00
Department for Education,DEPARTMENT FOR EDUCATION,24-Feb-11,CURRENT GRANTS,Children Young People and Families Early Years Extended Schools and Special Needs,HERTFORDSHIRE,4000047183,5696412.00
Department for Education,DEPARTMENT FOR EDUCATION,24-Feb-11,CURRENT GRANTS,Children Young People and Families Early Years Extended Schools and Special Needs,HERTFORDSHIRE,4000047183,-116883.00
Department for Education,DEPARTMENT FOR EDUCATION,24-Feb-11,CURRENT GRANTS,Children Young People and Families Early Years Extended Schools and Special Needs,ISLE OF WIGHT COUNCIL,4000047184,118275.00
Department for Education,DEPARTMENT FOR EDUCATION,24-Feb-11,CAPITAL GRANTS,Children Young People and Families Early Years Extended Schools and Special Needs,ISLE OF WIGHT COUNCIL,4000047184,-14142.00
Department for Education,DEPARTMENT FOR EDUCATION,24-Feb-11,CURRENT GRANTS,Children Young People and Families Early Years Extended Schools and Special Needs,ISLE OF WIGHT COUNCIL,4000047184,14893.00
Department for Education,DEPARTMENT FOR EDUCATION,24-Feb-11,CURRENT GRANTS,Children Young People and Families Early Years Extended Schools and Special Needs,ISLE OF WIGHT COUNCIL,4000047184,-12496.00
Department for Education,DEPARTMENT FOR EDUCATION,24-Feb-11,CURRENT GRANTS,Children Young People and Families Early Years Extended Schools and Special Needs,ISLE OF WIGHT COUNCIL,4000047184,684994.00
Department for Education,DEPARTMENT FOR EDUCATION,24-Feb-11,CURRENT GRANTS,Children Young People and Families Early Years Extended Schools and Special Needs,ISLE OF WIGHT COUNCIL,4000047184,-43024.00
Department for Education,DEPARTMENT FOR EDUCATION,24-Feb-11,CURRENT GRANTS,Children Young People and Families Early Years Extended Schools and Special Needs,ISLE OF WIGHT COUNCIL,4000047184,93367.00
Department for Education,DEPARTMENT FOR EDUCATION,24-Feb-11,CURRENT GRANTS,Children Young People and Families Early Years Extended Schools and Special Needs,KENT COUNTY COUNCIL,4000047185,1331419.00
Department for Education,DEPARTMENT FOR EDUCATION,24-Feb-11,CAPITAL GRANTS,Children Young People and Families Early Years Extended Schools and Special Needs,KENT COUNTY COUNCIL,4000047185,-548410.00
Department for Education,DEPARTMENT FOR EDUCATION,24-Feb-11,CURRENT GRANTS,Children Young People and Families Early Years Extended Schools and Special Needs,KENT COUNTY COUNCIL,4000047185,29787.00
Department for Education,DEPARTMENT FOR EDUCATION,24-Feb-11,CURRENT GRANTS,Children Young People and Families Early Years Extended Schools and Special Needs,KENT COUNTY COUNCIL,4000047185,-330134.00
Department for Education,DEPARTMENT FOR EDUCATION,24-Feb-11,CURRENT GRANTS,Children Young People and Families Early Years Extended Schools and Special Needs,KENT COUNTY COUNCIL,4000047185,7783770.00
Department for Education,DEPARTMENT FOR EDUCATION,24-Feb-11,CURRENT GRANTS,Children Young People and Families Early Years Extended Schools and Special Needs,KENT COUNTY COUNCIL,4000047185,520438.00
Department for Education,DEPARTMENT FOR EDUCATION,24-Feb-11,CURRENT GRANTS,Children Young People and Families Early Years Extended Schools and Special Needs,KIRKLEES COUNCIL,4000047186,323954.00
Department for Education,DEPARTMENT FOR EDUCATION,24-Feb-11,CAPITAL GRANTS,Children Young People and Families Early Years Extended Schools and Special Needs,KIRKLEES COUNCIL,4000047186,117075.00
Department for Education,DEPARTMENT FOR EDUCATION,24-Feb-11,CURRENT GRANTS,Children Young People and Families Early Years Extended Schools and Special Needs,KIRKLEES COUNCIL,4000047186,29787.00
Department for Education,DEPARTMENT FOR EDUCATION,24-Feb-11,CURRENT GRANTS,Children Young People and Families Early Years Extended Schools and Special Needs,KIRKLEES COUNCIL,4000047186,-78350.00
Department for Education,DEPARTMENT FOR EDUCATION,24-Feb-11,CURRENT GRANTS,Children Young People and Families Early Years Extended Schools and Special Needs,KIRKLEES COUNCIL,4000047186,3162286.00
Department for Education,DEPARTMENT FOR EDUCATION,24-Feb-11,CURRENT GRANTS,Children Young People and Families Early Years Extended Schools and Special Needs,KIRKLEES COUNCIL,4000047186,424795.00
Department for Education,DEPARTMENT FOR EDUCATION,24-Feb-11,CURRENT GRANTS,Children Young People and Families Early Years Extended Schools and Special Needs,LEEDS CITY COUNCIL,4000047187,508814.00
Department for Education,DEPARTMENT FOR EDUCATION,24-Feb-11,CAPITAL GRANTS,Children Young People and Families Early Years Extended Schools and Special Needs,LEEDS CITY COUNCIL,4000047187,9575.00
Department for Education,DEPARTMENT FOR EDUCATION,24-Feb-11,CURRENT GRANTS,Children Young People and Families Early Years Extended Schools and Special Needs,LEEDS CITY COUNCIL,4000047187,29787.00
Department for Education,DEPARTMENT FOR EDUCATION,24-Feb-11,CURRENT GRANTS,Children Young People and Families Early Years Extended Schools and Special Needs,LEEDS CITY COUNCIL,4000047187,-895229.00
Department for Education,DEPARTMENT FOR EDUCATION,24-Feb-11,CURRENT GRANTS,Children Young People and Families Early Years Extended Schools and Special Needs,LEEDS CITY COUNCIL,4000047187,4507517.00
Department for Education,DEPARTMENT FOR EDUCATION,24-Feb-11,CURRENT GRANTS,Children Young People and Families Early Years Extended Schools and Special Needs,LEEDS CITY COUNCIL,4000047187,917371.00
Department for Education,DEPARTMENT FOR EDUCATION,24-Feb-11,CURRENT GRANTS,Children Young People and Families Early Years Extended Schools and Special Needs,LEICESTERSHIRE COUNTY COUNCIL,4000047188,461975.00
Department for Education,DEPARTMENT FOR EDUCATION,24-Feb-11,CAPITAL GRANTS,Children Young People and Families Early Years Extended Schools and Special Needs,LEICESTERSHIRE COUNTY COUNCIL,4000047188,-111835.00
Department for Education,DEPARTMENT FOR EDUCATION,24-Feb-11,CURRENT GRANTS,Children Young People and Families Early Years Extended Schools and Special Needs,LEICESTERSHIRE COUNTY COUNCIL,4000047188,29787.00
Department for Education,DEPARTMENT FOR EDUCATION,24-Feb-11,CURRENT GRANTS,Children Young People and Families Early Years Extended Schools and Special Needs,LEICESTERSHIRE COUNTY COUNCIL,4000047188,-62691.00
Department for Education,DEPARTMENT FOR EDUCATION,24-Feb-11,CURRENT GRANTS,Children Young People and Families Early Years Extended Schools and Special Needs,LEICESTERSHIRE COUNTY COUNCIL,4000047188,2994389.00
Department for Education,DEPARTMENT FOR EDUCATION,24-Feb-11,CURRENT GRANTS,Children Young People and Families Early Years Extended Schools and Special Needs,LEICESTERSHIRE COUNTY COUNCIL,4000047188,150000.00
Department for Education,DEPARTMENT FOR EDUCATION,24-Feb-11,CURRENT GRANTS,Children Young People and Families Early Years Extended Schools and Special Needs,LINCOLNSHIRE COUNTY COUNCIL,4000047189,484267.00
Department for Education,DEPARTMENT FOR EDUCATION,24-Feb-11,CAPITAL GRANTS,Children Young People and Families Early Years Extended Schools and Special Needs,LINCOLNSHIRE COUNTY COUNCIL,4000047189,168897.00
Department for Education,DEPARTMENT FOR EDUCATION,24-Feb-11,CURRENT GRANTS,Children Young People and Families Early Years Extended Schools and Special Needs,LINCOLNSHIRE COUNTY COUNCIL,4000047189,29787.00
Department for Education,DEPARTMENT FOR EDUCATION,24-Feb-11,CURRENT GRANTS,Children Young People and Families Early Years Extended Schools and Special Needs,LINCOLNSHIRE COUNTY COUNCIL,4000047189,102538.00
Department for Education,DEPARTMENT FOR EDUCATION,24-Feb-11,CURRENT GRANTS,Children Young People and Families Early Years Extended Schools and Special Needs,LINCOLNSHIRE COUNTY COUNCIL,4000047189,3548911.00
Department for Education,DEPARTMENT FOR EDUCATION,24-Feb-11,CURRENT GRANTS,Children Young People and Families Early Years Extended Schools and Special Needs,LINCOLNSHIRE COUNTY COUNCIL,4000047189,713669.00
Department for Education,DEPARTMENT FOR EDUCATION,24-Feb-11,CURRENT GRANTS,Children Young People and Families Early Years Extended Schools and Special Needs,LIVERPOOL CITY COUNCIL,4000047190,520050.00
Department for Education,DEPARTMENT FOR EDUCATION,24-Feb-11,CAPITAL GRANTS,Children Young People and Families Early Years Extended Schools and Special Needs,LIVERPOOL CITY COUNCIL,4000047190,-96295.00
Department for Education,DEPARTMENT FOR EDUCATION,24-Feb-11,CURRENT GRANTS,Children Young People and Families Early Years Extended Schools and Special Needs,LIVERPOOL CITY COUNCIL,4000047190,29787.00
Department for Education,DEPARTMENT FOR EDUCATION,24-Feb-11,CURRENT GRANTS,Children Young People and Families Early Years Extended Schools and Special Needs,LIVERPOOL CITY COUNCIL,4000047190,-791499.00
Department for Education,DEPARTMENT FOR EDUCATION,24-Feb-11,CURRENT GRANTS,Children Young People and Families Early Years Extended Schools and Special Needs,LIVERPOOL CITY COUNCIL,4000047190,3321948.00
Department for Education,DEPARTMENT FOR EDUCATION,24-Feb-11,CURRENT GRANTS,Children Young People and Families Early Years Extended Schools and Special Needs,LIVERPOOL CITY COUNCIL,4000047190,1211087.00
Department for Education,DEPARTMENT FOR EDUCATION,24-Feb-11,CURRENT GRANTS,Children Young People and Families Early Years Extended Schools and Special Needs,LONDON BOROUGH OF BARNET COUNCIL,4000047191,304200.00
Department for Education,DEPARTMENT FOR EDUCATION,24-Feb-11,CAPITAL GRANTS,Children Young People and Families Early Years Extended Schools and Special Needs,LONDON BOROUGH OF BARNET COUNCIL,4000047191,-19275.00
Department for Education,DEPARTMENT FOR EDUCATION,24-Feb-11,CURRENT GRANTS,Children Young People and Families Early Years Extended Schools and Special Needs,LONDON BOROUGH OF BARNET COUNCIL,4000047191,29787.00
Department for Education,DEPARTMENT FOR EDUCATION,24-Feb-11,CURRENT GRANTS,Children Young People and Families Early Years Extended Schools and Special Needs,LONDON BOROUGH OF BARNET COUNCIL,4000047191,-52448.00
Department for Education,DEPARTMENT FOR EDUCATION,24-Feb-11,CURRENT GRANTS,Children Young People and Families Early Years Extended Schools and Special Needs,LONDON BOROUGH OF BARNET COUNCIL,4000047191,2139941.00
Department for Education,DEPARTMENT FOR EDUCATION,24-Feb-11,CURRENT GRANTS,Children Young People and Families Early Years Extended Schools and Special Needs,LONDON BOROUGH OF BARNET COUNCIL,4000047191,138750.00
Department for Education,DEPARTMENT FOR EDUCATION,24-Feb-11,CURRENT GRANTS,Children Young People and Families Early Years Extended Schools and Special Needs,LONDON BOROUGH OF BEXLEY COUNCIL,4000047192,566526.00
Department for Education,DEPARTMENT FOR EDUCATION,24-Feb-11,CURRENT GRANTS,Children Young People and Families Early Years Extended Schools and Special Needs,LONDON BOROUGH OF BEXLEY COUNCIL,4000047192,184924.00
Department for Education,DEPARTMENT FOR EDUCATION,24-Feb-11,CAPITAL GRANTS,Children Young People and Families Early Years Extended Schools and Special Needs,LONDON BOROUGH OF BEXLEY COUNCIL,4000047192,-23970.00
Department for Education,DEPARTMENT FOR EDUCATION,24-Feb-11,CURRENT GRANTS,Children Young People and Families Early Years Extended Schools and Special Needs,LONDON BOROUGH OF BEXLEY COUNCIL,4000047192,22340.00
Department for Education,DEPARTMENT FOR EDUCATION,24-Feb-11,CURRENT GRANTS,Children Young People and Families Early Years Extended Schools and Special Needs,LONDON BOROUGH OF BEXLEY COUNCIL,4000047192,10509.00
Department for Education,DEPARTMENT FOR EDUCATION,24-Feb-11,CURRENT GRANTS,Children Young People and Families Early Years Extended Schools and Special Needs,LONDON BOROUGH OF BEXLEY COUNCIL,4000047192,1226012.00
Department for Education,DEPARTMENT FOR EDUCATION,24-Feb-11,CURRENT GRANTS,Children Young People and Families Early Years Extended Schools and Special Needs,LONDON BOROUGH OF BEXLEY COUNCIL,4000047192,108278.00
Department for Education,DEPARTMENT FOR EDUCATION,24-Feb-11,CURRENT GRANTS,Children Young People and Families Early Years Extended Schools and Special Needs,LONDON BOROUGH OF BRENT,4000047193,223575.00
Department for Education,DEPARTMENT FOR EDUCATION,24-Feb-11,CAPITAL GRANTS,Children Young People and Families Early Years Extended Schools and Special Needs,LONDON BOROUGH OF BRENT,4000047193,-58400.00
Department for Education,DEPARTMENT FOR EDUCATION,24-Feb-11,CURRENT GRANTS,Children Young People and Families Early Years Extended Schools and Special Needs,LONDON BOROUGH OF BRENT,4000047193,22340.00
Department for Education,DEPARTMENT FOR EDUCATION,24-Feb-11,CURRENT GRANTS,Children Young People and Families Early Years Extended Schools and Special Needs,LONDON BOROUGH OF BRENT,4000047193,-102638.00
Department for Education,DEPARTMENT FOR EDUCATION,24-Feb-11,CURRENT GRANTS,Children Young People and Families Early Years Extended Schools and Special Needs,LONDON BOROUGH OF BRENT,4000047193,2163737.00
Department for Education,DEPARTMENT FOR EDUCATION,24-Feb-11,CURRENT GRANTS,Children Young People and Families Early Years Extended Schools and Special Needs,LONDON BOROUGH OF BRENT,4000047193,263711.00
Department for Education,DEPARTMENT FOR EDUCATION,24-Feb-11,CURRENT GRANTS,Children Young People and Families Early Years Extended Schools and Special Needs,LONDON BOROUGH OF BROMLEY COUNCIL,4000047194,296650.00
Department for Education,DEPARTMENT FOR EDUCATION,24-Feb-11,CAPITAL GRANTS,Children Young People and Families Early Years Extended Schools and Special Needs,LONDON BOROUGH OF BROMLEY COUNCIL,4000047194,93825.00
Department for Education,DEPARTMENT FOR EDUCATION,24-Feb-11,CURRENT GRANTS,Children Young People and Families Early Years Extended Schools and Special Needs,LONDON BOROUGH OF BROMLEY COUNCIL,4000047194,22340.00
Department for Education,DEPARTMENT FOR EDUCATION,24-Feb-11,CURRENT GRANTS,Children Young People and Families Early Years Extended Schools and Special Needs,LONDON BOROUGH OF BROMLEY COUNCIL,4000047194,-18382.00
Department for Education,DEPARTMENT FOR EDUCATION,24-Feb-11,CURRENT GRANTS,Children Young People and Families Early Years Extended Schools and Special Needs,LONDON BOROUGH OF BROMLEY COUNCIL,4000047194,1719414.00
Department for Education,DEPARTMENT FOR EDUCATION,24-Feb-11,CURRENT GRANTS,Children Young People and Families Early Years Extended Schools and Special Needs,LONDON BOROUGH OF BROMLEY COUNCIL,4000047194,114312.00
Department for Education,DEPARTMENT FOR EDUCATION,24-Feb-11,CURRENT GRANTS,Children Young People and Families Early Years Extended Schools and Special Needs,LONDON BOROUGH OF CAMDEN,4000047195,566666.00
Department for Education,DEPARTMENT FOR EDUCATION,24-Feb-11,CURRENT GRANTS,Children Young People and Families Early Years Extended Schools and Special Needs,LONDON BOROUGH OF CAMDEN,4000047195,186550.00
Department for Education,DEPARTMENT FOR EDUCATION,24-Feb-11,CAPITAL GRANTS,Children Young People and Families Early Years Extended Schools and Special Needs,LONDON BOROUGH OF CAMDEN,4000047195,51195.00
Department for Education,DEPARTMENT FOR EDUCATION,24-Feb-11,CURRENT GRANTS,Children Young People and Families Early Years Extended Schools and Special Needs,LONDON BOROUGH OF CAMDEN,4000047195,47592.00
Department for Education,DEPARTMENT FOR EDUCATION,24-Feb-11,CURRENT GRANTS,Children Young People and Families Early Years Extended Schools and Special Needs,LONDON BOROUGH OF CAMDEN,4000047195,-240121.00
Department for Education,DEPARTMENT FOR EDUCATION,24-Feb-11,CURRENT GRANTS,Children Young People and Families Early Years Extended Schools and Special Needs,LONDON BOROUGH OF CAMDEN,4000047195,669170.00
Department for Education,DEPARTMENT FOR EDUCATION,24-Feb-11,CURRENT GRANTS,Children Young People and Families Early Years Extended Schools and Special Needs,LONDON BOROUGH OF CAMDEN,4000047195,558060.00
Department for Education,DEPARTMENT FOR EDUCATION,24-Feb-11,CURRENT GRANTS,Children Young People and Families Early Years Extended Schools and Special Needs,LONDON BOROUGH OF GREENWICH,4000047196,280300.00
Department for Education,DEPARTMENT FOR EDUCATION,24-Feb-11,CAPITAL GRANTS,Children Young People and Families Early Years Extended Schools and Special Needs,LONDON BOROUGH OF GREENWICH,4000047196,42766.00
Department for Education,DEPARTMENT FOR EDUCATION,24-Feb-11,CURRENT GRANTS,Children Young People and Families Early Years Extended Schools and Special Needs,LONDON BOROUGH OF GREENWICH,4000047196,22340.00
Department for Education,DEPARTMENT FOR EDUCATION,24-Feb-11,CURRENT GRANTS,Children Young People and Families Early Years Extended Schools and Special Needs,LONDON BOROUGH OF GREENWICH,4000047196,-118626.00
Department for Education,DEPARTMENT FOR EDUCATION,24-Feb-11,CURRENT GRANTS,Children Young People and Families Early Years Extended Schools and Special Needs,LONDON BOROUGH OF GREENWICH,4000047196,1774246.00
Department for Education,DEPARTMENT FOR EDUCATION,24-Feb-11,CURRENT GRANTS,Children Young People and Families Early Years Extended Schools and Special Needs,LONDON BOROUGH OF GREENWICH,4000047196,600950.00
Department for Education,DEPARTMENT FOR EDUCATION,24-Feb-11,CURRENT GRANTS,Children Young People and Families Early Years Extended Schools and Special Needs,LONDON BOROUGH OF HAMMERSMITH & FULHAM COUNCIL,4000047197,150825.00
Department for Education,DEPARTMENT FOR EDUCATION,24-Feb-11,CAPITAL GRANTS,Children Young People and Families Early Years Extended Schools and Special Needs,LONDON BOROUGH OF HAMMERSMITH & FULHAM COUNCIL,4000047197,44925.00
Department for Education,DEPARTMENT FOR EDUCATION,24-Feb-11,CURRENT GRANTS,Children Young People and Families Early Years Extended Schools and Special Needs,LONDON BOROUGH OF HAMMERSMITH & FULHAM COUNCIL,4000047197,14893.00
Department for Education,DEPARTMENT FOR EDUCATION,24-Feb-11,CURRENT GRANTS,Children Young People and Families Early Years Extended Schools and Special Needs,LONDON BOROUGH OF HAMMERSMITH & FULHAM COUNCIL,4000047197,89430.00
Department for Education,DEPARTMENT FOR EDUCATION,24-Feb-11,CURRENT GRANTS,Children Young People and Families Early Years Extended Schools and Special Needs,LONDON BOROUGH OF HAMMERSMITH & FULHAM COUNCIL,4000047197,1201591.00
Department for Education,DEPARTMENT FOR EDUCATION,24-Feb-11,CURRENT GRANTS,Children Young People and Families Early Years Extended Schools and Special Needs,LONDON BOROUGH OF HAMMERSMITH & FULHAM COUNCIL,4000047197,337128.00
Department for Education,DEPARTMENT FOR EDUCATION,24-Feb-11,CURRENT GRANTS,Children Young People and Families Early Years Extended Schools and Special Needs,LONDON BOROUGH OF HARROW COUNCIL,4000047198,193775.00
Department for Education,DEPARTMENT FOR EDUCATION,24-Feb-11,CAPITAL GRANTS,Children Young People and Families Early Years Extended Schools and Special Needs,LONDON BOROUGH OF HARROW COUNCIL,4000047198,55650.00
Department for Education,DEPARTMENT FOR EDUCATION,24-Feb-11,CURRENT GRANTS,Children Young People and Families Early Years Extended Schools and Special Needs,LONDON BOROUGH OF HARROW COUNCIL,4000047198,22340.00
Department for Education,DEPARTMENT FOR EDUCATION,24-Feb-11,CURRENT GRANTS,Children Young People and Families Early Years Extended Schools and Special Needs,LONDON BOROUGH OF HARROW COUNCIL,4000047198,-24288.00
Department for Education,DEPARTMENT FOR EDUCATION,24-Feb-11,CURRENT GRANTS,Children Young People and Families Early Years Extended Schools and Special Needs,LONDON BOROUGH OF HARROW COUNCIL,4000047198,1187377.00
Department for Education,DEPARTMENT FOR EDUCATION,24-Feb-11,CURRENT GRANTS,Children Young People and Families Early Years Extended Schools and Special Needs,LONDON BOROUGH OF HAVERING COUNCIL,4000047199,226172.00
Department for Education,DEPARTMENT FOR EDUCATION,24-Feb-11,CAPITAL GRANTS,Children Young People and Families Early Years Extended Schools and Special Needs,LONDON BOROUGH OF HAVERING COUNCIL,4000047199,61761.00
Department for Education,DEPARTMENT FOR EDUCATION,24-Feb-11,CURRENT GRANTS,Children Young People and Families Early Years Extended Schools and Special Needs,LONDON BOROUGH OF HAVERING COUNCIL,4000047199,22340.00
Department for Education,DEPARTMENT FOR EDUCATION,24-Feb-11,CURRENT GRANTS,Children Young People and Families Early Years Extended Schools and Special Needs,LONDON BOROUGH OF HAVERING COUNCIL,4000047199,43050.00
Department for Education,DEPARTMENT FOR EDUCATION,24-Feb-11,CURRENT GRANTS,Children Young People and Families Early Years Extended Schools and Special Needs,LONDON BOROUGH OF HAVERING COUNCIL,4000047199,1047531.00
Department for Education,DEPARTMENT FOR EDUCATION,24-Feb-11,CURRENT GRANTS,Children Young People and Families Early Years Extended Schools and Special Needs,LONDON BOROUGH OF HAVERING COUNCIL,4000047199,9349.00
Department for Education,DEPARTMENT FOR EDUCATION,24-Feb-11,CURRENT GRANTS,Children Young People and Families Early Years Extended Schools and Special Needs,LONDON BOROUGH OF HILLINGDON  COUNCIL,4000047200,241400.00
Department for Education,DEPARTMENT FOR EDUCATION,24-Feb-11,CAPITAL GRANTS,Children Young People and Families Early Years Extended Schools and Special Needs,LONDON BOROUGH OF HILLINGDON  COUNCIL,4000047200,50244.00
Department for Education,DEPARTMENT FOR EDUCATION,24-Feb-11,CURRENT GRANTS,Children Young People and Families Early Years Extended Schools and Special Needs,LONDON BOROUGH OF HILLINGDON  COUNCIL,4000047200,22340.00
Department for Education,DEPARTMENT FOR EDUCATION,24-Feb-11,CURRENT GRANTS,Children Young People and Families Early Years Extended Schools and Special Needs,LONDON BOROUGH OF HILLINGDON  COUNCIL,4000047200,-29030.00
Department for Education,DEPARTMENT FOR EDUCATION,24-Feb-11,CURRENT GRANTS,Children Young People and Families Early Years Extended Schools and Special Needs,LONDON BOROUGH OF HILLINGDON  COUNCIL,4000047200,1583427.00
Department for Education,DEPARTMENT FOR EDUCATION,24-Feb-11,CURRENT GRANTS,Children Young People and Families Early Years Extended Schools and Special Needs,LONDON BOROUGH OF HILLINGDON  COUNCIL,4000047200,114312.00
Department for Education,DEPARTMENT FOR EDUCATION,24-Feb-11,CURRENT GRANTS,Children Young People and Families Early Years Extended Schools and Special Needs,LONDON BOROUGH OF ISLINGTON COUNCIL,4000047201,228575.00
Department for Education,DEPARTMENT FOR EDUCATION,24-Feb-11,CAPITAL GRANTS,Children Young People and Families Early Years Extended Schools and Special Needs,LONDON BOROUGH OF ISLINGTON COUNCIL,4000047201,-58433.00
Department for Education,DEPARTMENT FOR EDUCATION,24-Feb-11,CURRENT GRANTS,Children Young People and Families Early Years Extended Schools and Special Needs,LONDON BOROUGH OF ISLINGTON COUNCIL,4000047201,14893.00
Department for Education,DEPARTMENT FOR EDUCATION,24-Feb-11,CURRENT GRANTS,Children Young People and Families Early Years Extended Schools and Special Needs,LONDON BOROUGH OF ISLINGTON COUNCIL,4000047201,173375.00
Department for Education,DEPARTMENT FOR EDUCATION,24-Feb-11,CURRENT GRANTS,Children Young People and Families Early Years Extended Schools and Special Needs,LONDON BOROUGH OF ISLINGTON COUNCIL,4000047201,1795718.00
Department for Education,DEPARTMENT FOR EDUCATION,24-Feb-11,CURRENT GRANTS,Children Young People and Families Early Years Extended Schools and Special Needs,LONDON BOROUGH OF ISLINGTON COUNCIL,4000047201,730935.00
Department for Education,DEPARTMENT FOR EDUCATION,24-Feb-11,CURRENT GRANTS,Children Young People and Families Early Years Extended Schools and Special Needs,LONDON BOROUGH OF LAMBETH COUNCIL,4000047202,319275.00
Department for Education,DEPARTMENT FOR EDUCATION,24-Feb-11,CAPITAL GRANTS,Children Young People and Families Early Years Extended Schools and Special Needs,LONDON BOROUGH OF LAMBETH COUNCIL,4000047202,76036.00
Department for Education,DEPARTMENT FOR EDUCATION,24-Feb-11,CURRENT GRANTS,Children Young People and Families Early Years Extended Schools and Special Needs,LONDON BOROUGH OF LAMBETH COUNCIL,4000047202,22340.00
Department for Education,DEPARTMENT FOR EDUCATION,24-Feb-11,CURRENT GRANTS,Children Young People and Families Early Years Extended Schools and Special Needs,LONDON BOROUGH OF LAMBETH COUNCIL,4000047202,-317852.00
Department for Education,DEPARTMENT FOR EDUCATION,24-Feb-11,CURRENT GRANTS,Children Young People and Families Early Years Extended Schools and Special Needs,LONDON BOROUGH OF LAMBETH COUNCIL,4000047202,3003848.00
Department for Education,DEPARTMENT FOR EDUCATION,24-Feb-11,CURRENT GRANTS,Children Young People and Families Early Years Extended Schools and Special Needs,LONDON BOROUGH OF LAMBETH COUNCIL,4000047202,712185.00
Department for Education,DEPARTMENT FOR EDUCATION,24-Feb-11,CURRENT GRANTS,Children Young People and Families Early Years Extended Schools and Special Needs,LONDON BOROUGH OF LAMBETH COUNCIL,4000047202,25000.00
Department for Education,DEPARTMENT FOR EDUCATION,24-Feb-11,CURRENT GRANTS,Children Young People and Families Early Years Extended Schools and Special Needs,LONDON BOROUGH OF MERTON COUNCIL,4000047203,153555.00
Department for Education,DEPARTMENT FOR EDUCATION,24-Feb-11,CAPITAL GRANTS,Children Young People and Families Early Years Extended Schools and Special Needs,LONDON BOROUGH OF MERTON COUNCIL,4000047203,-40400.00
Department for Education,DEPARTMENT FOR EDUCATION,24-Feb-11,CURRENT GRANTS,Children Young People and Families Early Years Extended Schools and Special Needs,LONDON BOROUGH OF MERTON COUNCIL,4000047203,14893.00
Department for Education,DEPARTMENT FOR EDUCATION,24-Feb-11,CURRENT GRANTS,Children Young People and Families Early Years Extended Schools and Special Needs,LONDON BOROUGH OF MERTON COUNCIL,4000047203,-15110.00
Department for Education,DEPARTMENT FOR EDUCATION,24-Feb-11,CURRENT GRANTS,Children Young People and Families Early Years Extended Schools and Special Needs,LONDON BOROUGH OF MERTON COUNCIL,4000047203,981561.00
Department for Education,DEPARTMENT FOR EDUCATION,24-Feb-11,CURRENT GRANTS,Children Young People and Families Early Years Extended Schools and Special Needs,LONDON BOROUGH OF MERTON COUNCIL,4000047203,114312.00
Department for Education,DEPARTMENT FOR EDUCATION,24-Feb-11,CURRENT GRANTS,Children Young People and Families Early Years Extended Schools and Special Needs,LONDON BOROUGH OF NEWHAM,4000047204,296250.00
Department for Education,DEPARTMENT FOR EDUCATION,24-Feb-11,CAPITAL GRANTS,Children Young People and Families Early Years Extended Schools and Special Needs,LONDON BOROUGH OF NEWHAM,4000047204,4165.00
Department for Education,DEPARTMENT FOR EDUCATION,24-Feb-11,CURRENT GRANTS,Children Young People and Families Early Years Extended Schools and Special Needs,LONDON BOROUGH OF NEWHAM,4000047204,29787.00
Department for Education,DEPARTMENT FOR EDUCATION,24-Feb-11,CURRENT GRANTS,Children Young People and Families Early Years Extended Schools and Special Needs,LONDON BOROUGH OF NEWHAM,4000047204,-207618.00
Department for Education,DEPARTMENT FOR EDUCATION,24-Feb-11,CURRENT GRANTS,Children Young People and Families Early Years Extended Schools and Special Needs,LONDON BOROUGH OF NEWHAM,4000047204,2718098.00
Department for Education,DEPARTMENT FOR EDUCATION,24-Feb-11,CURRENT GRANTS,Children Young People and Families Early Years Extended Schools and Special Needs,LONDON BOROUGH OF NEWHAM,4000047204,855179.00
Department for Education,DEPARTMENT FOR EDUCATION,24-Feb-11,CURRENT GRANTS,Children Young People and Families Early Years Extended Schools and Special Needs,LONDON BOROUGH OF REDBRIDGE,4000047205,218775.00
Department for Education,DEPARTMENT FOR EDUCATION,24-Feb-11,CAPITAL GRANTS,Children Young People and Families Early Years Extended Schools and Special Needs,LONDON BOROUGH OF REDBRIDGE,4000047205,79361.00
Department for Education,DEPARTMENT FOR EDUCATION,24-Feb-11,CURRENT GRANTS,Children Young People and Families Early Years Extended Schools and Special Needs,LONDON BOROUGH OF REDBRIDGE,4000047205,22340.00
Department for Education,DEPARTMENT FOR EDUCATION,24-Feb-11,CURRENT GRANTS,Children Young People and Families Early Years Extended Schools and Special Needs,LONDON BOROUGH OF REDBRIDGE,4000047205,-79171.00
Department for Education,DEPARTMENT FOR EDUCATION,24-Feb-11,CURRENT GRANTS,Children Young People and Families Early Years Extended Schools and Special Needs,LONDON BOROUGH OF REDBRIDGE,4000047205,1505759.00
Department for Education,DEPARTMENT FOR EDUCATION,24-Feb-11,CURRENT GRANTS,Children Young People and Families Early Years Extended Schools and Special Needs,LONDON BOROUGH OF REDBRIDGE,4000047205,114312.00
Department for Education,DEPARTMENT FOR EDUCATION,24-Feb-11,CURRENT GRANTS,Children Young People and Families Early Years Extended Schools and Special Needs,LONDON BOROUGH OF SOUTHWARK COUNCIL,4000047206,271650.00
Department for Education,DEPARTMENT FOR EDUCATION,24-Feb-11,CAPITAL GRANTS,Children Young People and Families Early Years Extended Schools and Special Needs,LONDON BOROUGH OF SOUTHWARK COUNCIL,4000047206,99275.00
Department for Education,DEPARTMENT FOR EDUCATION,24-Feb-11,CURRENT GRANTS,Children Young People and Families Early Years Extended Schools and Special Needs,LONDON BOROUGH OF SOUTHWARK COUNCIL,4000047206,29787.00
Department for Education,DEPARTMENT FOR EDUCATION,24-Feb-11,CURRENT GRANTS,Children Young People and Families Early Years Extended Schools and Special Needs,LONDON BOROUGH OF SOUTHWARK COUNCIL,4000047206,-152571.00
Department for Education,DEPARTMENT FOR EDUCATION,24-Feb-11,CURRENT GRANTS,Children Young People and Families Early Years Extended Schools and Special Needs,LONDON BOROUGH OF SOUTHWARK COUNCIL,4000047206,2692291.00
Department for Education,DEPARTMENT FOR EDUCATION,24-Feb-11,CURRENT GRANTS,Children Young People and Families Early Years Extended Schools and Special Needs,LONDON BOROUGH OF SOUTHWARK COUNCIL,4000047206,845247.00
Department for Education,DEPARTMENT FOR EDUCATION,24-Feb-11,CURRENT GRANTS,Children Young People and Families Early Years Extended Schools and Special Needs,LONDON BOROUGH OF SUTTON,4000047207,181075.00
Department for Education,DEPARTMENT FOR EDUCATION,24-Feb-11,CAPITAL GRANTS,Children Young People and Families Early Years Extended Schools and Special Needs,LONDON BOROUGH OF SUTTON,4000047207,-42059.00
Department for Education,DEPARTMENT FOR EDUCATION,24-Feb-11,CURRENT GRANTS,Children Young People and Families Early Years Extended Schools and Special Needs,LONDON BOROUGH OF SUTTON,4000047207,14893.00
Department for Education,DEPARTMENT FOR EDUCATION,24-Feb-11,CURRENT GRANTS,Children Young People and Families Early Years Extended Schools and Special Needs,LONDON BOROUGH OF SUTTON,4000047207,52038.00
Department for Education,DEPARTMENT FOR EDUCATION,24-Feb-11,CURRENT GRANTS,Children Young People and Families Early Years Extended Schools and Special Needs,LONDON BOROUGH OF SUTTON,4000047207,1146752.00
Department for Education,DEPARTMENT FOR EDUCATION,24-Feb-11,CURRENT GRANTS,Children Young People and Families Early Years Extended Schools and Special Needs,LONDON BOROUGH OF SUTTON,4000047207,156562.00
Department for Education,DEPARTMENT FOR EDUCATION,24-Feb-11,CURRENT GRANTS,Children Young People and Families Early Years Extended Schools and Special Needs,LONDON BOROUGH OF WALTHAM FOREST COUNCIL,4000047208,207294.00
Department for Education,DEPARTMENT FOR EDUCATION,24-Feb-11,CAPITAL GRANTS,Children Young People and Families Early Years Extended Schools and Special Needs,LONDON BOROUGH OF WALTHAM FOREST COUNCIL,4000047208,-55975.00
Department for Education,DEPARTMENT FOR EDUCATION,24-Feb-11,CURRENT GRANTS,Children Young People and Families Early Years Extended Schools and Special Needs,LONDON BOROUGH OF WALTHAM FOREST COUNCIL,4000047208,22340.00
Department for Education,DEPARTMENT FOR EDUCATION,24-Feb-11,CURRENT GRANTS,Children Young People and Families Early Years Extended Schools and Special Needs,LONDON BOROUGH OF WALTHAM FOREST COUNCIL,4000047208,3352.00
Department for Education,DEPARTMENT FOR EDUCATION,24-Feb-11,CURRENT GRANTS,Children Young People and Families Early Years Extended Schools and Special Needs,LONDON BOROUGH OF WALTHAM FOREST COUNCIL,4000047208,2067157.00
Department for Education,DEPARTMENT FOR EDUCATION,24-Feb-11,CURRENT GRANTS,Children Young People and Families Early Years Extended Schools and Special Needs,LONDON BOROUGH OF WALTHAM FOREST COUNCIL,4000047208,490224.00
Department for Education,DEPARTMENT FOR EDUCATION,24-Feb-11,CURRENT GRANTS,Children Young People and Families Early Years Extended Schools and Special Needs,LONDON BOROUGH OF WANDSWORTH COUNCIL,4000047209,228150.00
Department for Education,DEPARTMENT FOR EDUCATION,24-Feb-11,CAPITAL GRANTS,Children Young People and Families Early Years Extended Schools and Special Needs,LONDON BOROUGH OF WANDSWORTH COUNCIL,4000047209,-46192.00
Department for Education,DEPARTMENT FOR EDUCATION,24-Feb-11,CURRENT GRANTS,Children Young People and Families Early Years Extended Schools and Special Needs,LONDON BOROUGH OF WANDSWORTH COUNCIL,4000047209,22340.00
Department for Education,DEPARTMENT FOR EDUCATION,24-Feb-11,CURRENT GRANTS,Children Young People and Families Early Years Extended Schools and Special Needs,LONDON BOROUGH OF WANDSWORTH COUNCIL,4000047209,-72908.00
Department for Education,DEPARTMENT FOR EDUCATION,24-Feb-11,CURRENT GRANTS,Children Young People and Families Early Years Extended Schools and Special Needs,LONDON BOROUGH OF WANDSWORTH COUNCIL,4000047209,2091240.00
Department for Education,DEPARTMENT FOR EDUCATION,24-Feb-11,CURRENT GRANTS,Children Young People and Families Early Years Extended Schools and Special Needs,LONDON BOROUGH OF WANDSWORTH COUNCIL,4000047209,273687.00
Department for Education,DEPARTMENT FOR EDUCATION,24-Feb-11,CURRENT GRANTS,Children Young People and Families Early Years Extended Schools and Special Needs,LUTON BOROUGH COUNCIL,4000047210,185141.00
Department for Education,DEPARTMENT FOR EDUCATION,24-Feb-11,CAPITAL GRANTS,Children Young People and Families Early Years Extended Schools and Special Needs,LUTON BOROUGH COUNCIL,4000047210,68075.00
Department for Education,DEPARTMENT FOR EDUCATION,24-Feb-11,CURRENT GRANTS,Children Young People and Families Early Years Extended Schools and Special Needs,LUTON BOROUGH COUNCIL,4000047210,62699.00
Department for Education,DEPARTMENT FOR EDUCATION,24-Feb-11,CURRENT GRANTS,Children Young People and Families Early Years Extended Schools and Special Needs,LUTON BOROUGH COUNCIL,4000047210,99049.00
Department for Education,DEPARTMENT FOR EDUCATION,24-Feb-11,CURRENT GRANTS,Children Young People and Families Early Years Extended Schools and Special Needs,LUTON BOROUGH COUNCIL,4000047210,1781240.00
Department for Education,DEPARTMENT FOR EDUCATION,24-Feb-11,CURRENT GRANTS,Children Young People and Families Early Years Extended Schools and Special Needs,LUTON BOROUGH COUNCIL,4000047210,117094.00
Department for Education,DEPARTMENT FOR EDUCATION,24-Feb-11,CURRENT GRANTS,Children Young People and Families Early Years Extended Schools and Special Needs,MANCHESTER CITY COUNCIL,4000047211,494025.00
Department for Education,DEPARTMENT FOR EDUCATION,24-Feb-11,CAPITAL GRANTS,Children Young People and Families Early Years Extended Schools and Special Needs,MANCHESTER CITY COUNCIL,4000047211,-43397.00
Department for Education,DEPARTMENT FOR EDUCATION,24-Feb-11,CURRENT GRANTS,Children Young People and Families Early Years Extended Schools and Special Needs,MANCHESTER CITY COUNCIL,4000047211,29787.00
Department for Education,DEPARTMENT FOR EDUCATION,24-Feb-11,CURRENT GRANTS,Children Young People and Families Early Years Extended Schools and Special Needs,MANCHESTER CITY COUNCIL,4000047211,-228395.00
Department for Education,DEPARTMENT FOR EDUCATION,24-Feb-11,CURRENT GRANTS,Children Young People and Families Early Years Extended Schools and Special Needs,MANCHESTER CITY COUNCIL,4000047211,1131597.00
Department for Education,DEPARTMENT FOR EDUCATION,24-Feb-11,CURRENT GRANTS,Children Young People and Families Early Years Extended Schools and Special Needs,MANCHESTER CITY COUNCIL,4000047211,1350824.00
Department for Education,DEPARTMENT FOR EDUCATION,24-Feb-11,CURRENT GRANTS,Children Young People and Families Early Years Extended Schools and Special Needs,MEDWAY COUNCIL,4000047212,258341.00
Department for Education,DEPARTMENT FOR EDUCATION,24-Feb-11,CAPITAL GRANTS,Children Young People and Families Early Years Extended Schools and Special Needs,MEDWAY COUNCIL,4000047212,-70025.00
Department for Education,DEPARTMENT FOR EDUCATION,24-Feb-11,CURRENT GRANTS,Children Young People and Families Early Years Extended Schools and Special Needs,MEDWAY COUNCIL,4000047212,22340.00
Department for Education,DEPARTMENT FOR EDUCATION,24-Feb-11,CURRENT GRANTS,Children Young People and Families Early Years Extended Schools and Special Needs,MEDWAY COUNCIL,4000047212,65285.00
Department for Education,DEPARTMENT FOR EDUCATION,24-Feb-11,CURRENT GRANTS,Children Young People and Families Early Years Extended Schools and Special Needs,MEDWAY COUNCIL,4000047212,1530744.00
Department for Education,DEPARTMENT FOR EDUCATION,24-Feb-11,CURRENT GRANTS,Children Young People and Families Early Years Extended Schools and Special Needs,MEDWAY COUNCIL,4000047212,114312.00
Department for Education,DEPARTMENT FOR EDUCATION,24-Feb-11,CURRENT GRANTS,Children Young People and Families Early Years Extended Schools and Special Needs,MILTON KEYNES COUNCIL,4000047213,191325.00
Department for Education,DEPARTMENT FOR EDUCATION,24-Feb-11,CAPITAL GRANTS,Children Young People and Families Early Years Extended Schools and Special Needs,MILTON KEYNES COUNCIL,4000047213,-42789.00
Department for Education,DEPARTMENT FOR EDUCATION,24-Feb-11,CURRENT GRANTS,Children Young People and Families Early Years Extended Schools and Special Needs,MILTON KEYNES COUNCIL,4000047213,22340.00
Department for Education,DEPARTMENT FOR EDUCATION,24-Feb-11,CURRENT GRANTS,Children Young People and Families Early Years Extended Schools and Special Needs,MILTON KEYNES COUNCIL,4000047213,-111932.00
Department for Education,DEPARTMENT FOR EDUCATION,24-Feb-11,CURRENT GRANTS,Children Young People and Families Early Years Extended Schools and Special Needs,MILTON KEYNES COUNCIL,4000047213,1589087.00
Department for Education,DEPARTMENT FOR EDUCATION,24-Feb-11,CURRENT GRANTS,Children Young People and Families Early Years Extended Schools and Special Needs,MILTON KEYNES COUNCIL,4000047213,107881.00
Department for Education,DEPARTMENT FOR EDUCATION,24-Feb-11,CURRENT GRANTS,Children Young People and Families Early Years Extended Schools and Special Needs,NORFOLK COUNTY COUNCIL,4000047214,642400.00
Department for Education,DEPARTMENT FOR EDUCATION,24-Feb-11,CURRENT GRANTS,Children Young People and Families Early Years Extended Schools and Special Needs,NORFOLK COUNTY COUNCIL,4000047214,29787.00
Department for Education,DEPARTMENT FOR EDUCATION,24-Feb-11,CURRENT GRANTS,Children Young People and Families Early Years Extended Schools and Special Needs,NORFOLK COUNTY COUNCIL,4000047214,-7706.00
Department for Education,DEPARTMENT FOR EDUCATION,24-Feb-11,CURRENT GRANTS,Children Young People and Families Early Years Extended Schools and Special Needs,NORFOLK COUNTY COUNCIL,4000047214,4112233.00
Department for Education,DEPARTMENT FOR EDUCATION,24-Feb-11,CURRENT GRANTS,Children Young People and Families Early Years Extended Schools and Special Needs,NORFOLK COUNTY COUNCIL,4000047214,992497.00
Department for Education,DEPARTMENT FOR EDUCATION,24-Feb-11,CURRENT GRANTS,Children Young People and Families Early Years Extended Schools and Special Needs,NORTH EAST LINCOLNSHIRE COUNCIL,4000047215,159350.00
Department for Education,DEPARTMENT FOR EDUCATION,24-Feb-11,CAPITAL GRANTS,Children Young People and Families Early Years Extended Schools and Special Needs,NORTH EAST LINCOLNSHIRE COUNCIL,4000047215,23918.00
Department for Education,DEPARTMENT FOR EDUCATION,24-Feb-11,CURRENT GRANTS,Children Young People and Families Early Years Extended Schools and Special Needs,NORTH EAST LINCOLNSHIRE COUNCIL,4000047215,14893.00
Department for Education,DEPARTMENT FOR EDUCATION,24-Feb-11,CURRENT GRANTS,Children Young People and Families Early Years Extended Schools and Special Needs,NORTH EAST LINCOLNSHIRE COUNCIL,4000047215,-40206.00
Department for Education,DEPARTMENT FOR EDUCATION,24-Feb-11,CURRENT GRANTS,Children Young People and Families Early Years Extended Schools and Special Needs,NORTH EAST LINCOLNSHIRE COUNCIL,4000047215,1071699.00
Department for Education,DEPARTMENT FOR EDUCATION,24-Feb-11,CURRENT GRANTS,Children Young People and Families Early Years Extended Schools and Special Needs,NORTH EAST LINCOLNSHIRE COUNCIL,4000047215,596110.00
Department for Education,DEPARTMENT FOR EDUCATION,24-Feb-11,CURRENT GRANTS,Children Young People and Families Early Years Extended Schools and Special Needs,NORTH TYNESIDE,4000047216,149475.00
Department for Education,DEPARTMENT FOR EDUCATION,24-Feb-11,CURRENT GRANTS,Children Young People and Families Early Years Extended Schools and Special Needs,NORTH TYNESIDE,4000047216,14893.00
Department for Education,DEPARTMENT FOR EDUCATION,24-Feb-11,CURRENT GRANTS,Children Young People and Families Early Years Extended Schools and Special Needs,NORTH TYNESIDE,4000047216,53767.00
Department for Education,DEPARTMENT FOR EDUCATION,24-Feb-11,CURRENT GRANTS,Children Young People and Families Early Years Extended Schools and Special Needs,NORTH TYNESIDE,4000047216,1145268.00
Department for Education,DEPARTMENT FOR EDUCATION,24-Feb-11,CURRENT GRANTS,Children Young People and Families Early Years Extended Schools and Special Needs,NORTH TYNESIDE,4000047216,342936.00
Department for Education,DEPARTMENT FOR EDUCATION,24-Feb-11,CURRENT GRANTS,Children Young People and Families Early Years Extended Schools and Special Needs,NORTH YORKSHIRE COUNTY COUNCIL,4000047217,435775.00
Department for Education,DEPARTMENT FOR EDUCATION,24-Feb-11,CURRENT GRANTS,Children Young People and Families Early Years Extended Schools and Special Needs,NORTH YORKSHIRE COUNTY COUNCIL,4000047217,29787.00
Department for Education,DEPARTMENT FOR EDUCATION,24-Feb-11,CURRENT GRANTS,Children Young People and Families Early Years Extended Schools and Special Needs,NORTH YORKSHIRE COUNTY COUNCIL,4000047217,65300.00
Department for Education,DEPARTMENT FOR EDUCATION,24-Feb-11,CURRENT GRANTS,Children Young People and Families Early Years Extended Schools and Special Needs,NORTH YORKSHIRE COUNTY COUNCIL,4000047217,3185665.00
Department for Education,DEPARTMENT FOR EDUCATION,24-Feb-11,CURRENT GRANTS,Children Young People and Families Early Years Extended Schools and Special Needs,NORTH YORKSHIRE COUNTY COUNCIL,4000047217,241812.00
Department for Education,DEPARTMENT FOR EDUCATION,24-Feb-11,CURRENT GRANTS,Children Young People and Families Early Years Extended Schools and Special Needs,NORTHAMPTONSHIRE COUNTY COUNCIL,4000047218,588450.00
Department for Education,DEPARTMENT FOR EDUCATION,24-Feb-11,CAPITAL GRANTS,Children Young People and Families Early Years Extended Schools and Special Needs,NORTHAMPTONSHIRE COUNTY COUNCIL,4000047218,38050.00
Department for Education,DEPARTMENT FOR EDUCATION,24-Feb-11,CURRENT GRANTS,Children Young People and Families Early Years Extended Schools and Special Needs,NORTHAMPTONSHIRE COUNTY COUNCIL,4000047218,29787.00
Department for Education,DEPARTMENT FOR EDUCATION,24-Feb-11,CURRENT GRANTS,Children Young People and Families Early Years Extended Schools and Special Needs,NORTHAMPTONSHIRE COUNTY COUNCIL,4000047218,-115358.00
Department for Education,DEPARTMENT FOR EDUCATION,24-Feb-11,CURRENT GRANTS,Children Young People and Families Early Years Extended Schools and Special Needs,NORTHAMPTONSHIRE COUNTY COUNCIL,4000047218,4203349.00
Department for Education,DEPARTMENT FOR EDUCATION,24-Feb-11,CURRENT GRANTS,Children Young People and Families Early Years Extended Schools and Special Needs,NORTHAMPTONSHIRE COUNTY COUNCIL,4000047218,457248.00
Department for Education,DEPARTMENT FOR EDUCATION,24-Feb-11,CURRENT GRANTS,Children Young People and Families Early Years Extended Schools and Special Needs,NORTHUMBERLAND COUNTY COUNCIL,4000047219,255975.00
Department for Education,DEPARTMENT FOR EDUCATION,24-Feb-11,CAPITAL GRANTS,Children Young People and Families Early Years Extended Schools and Special Needs,NORTHUMBERLAND COUNTY COUNCIL,4000047219,38100.00
Department for Education,DEPARTMENT FOR EDUCATION,24-Feb-11,CURRENT GRANTS,Children Young People and Families Early Years Extended Schools and Special Needs,NORTHUMBERLAND COUNTY COUNCIL,4000047219,125000.00
Department for Education,DEPARTMENT FOR EDUCATION,24-Feb-11,CURRENT GRANTS,Children Young People and Families Early Years Extended Schools and Special Needs,NORTHUMBERLAND COUNTY COUNCIL,4000047219,-46390.00
Department for Education,DEPARTMENT FOR EDUCATION,24-Feb-11,CURRENT GRANTS,Children Young People and Families Early Years Extended Schools and Special Needs,NORTHUMBERLAND COUNTY COUNCIL,4000047219,1636607.00
Department for Education,DEPARTMENT FOR EDUCATION,24-Feb-11,CURRENT GRANTS,Children Young People and Families Early Years Extended Schools and Special Needs,NORTHUMBERLAND COUNTY COUNCIL,4000047219,599639.00
Department for Education,DEPARTMENT FOR EDUCATION,24-Feb-11,CURRENT GRANTS,Children Young People and Families Early Years Extended Schools and Special Needs,NOTTINGHAM CITY COUNCIL,4000047220,260717.00
Department for Education,DEPARTMENT FOR EDUCATION,24-Feb-11,CAPITAL GRANTS,Children Young People and Families Early Years Extended Schools and Special Needs,NOTTINGHAM CITY COUNCIL,4000047220,-14409.00
Department for Education,DEPARTMENT FOR EDUCATION,24-Feb-11,CURRENT GRANTS,Children Young People and Families Early Years Extended Schools and Special Needs,NOTTINGHAM CITY COUNCIL,4000047220,22340.00
Department for Education,DEPARTMENT FOR EDUCATION,24-Feb-11,CURRENT GRANTS,Children Young People and Families Early Years Extended Schools and Special Needs,NOTTINGHAM CITY COUNCIL,4000047220,17593.00
Department for Education,DEPARTMENT FOR EDUCATION,24-Feb-11,CURRENT GRANTS,Children Young People and Families Early Years Extended Schools and Special Needs,NOTTINGHAM CITY COUNCIL,4000047220,1157681.00
Department for Education,DEPARTMENT FOR EDUCATION,24-Feb-11,CURRENT GRANTS,Children Young People and Families Early Years Extended Schools and Special Needs,NOTTINGHAM CITY COUNCIL,4000047220,854296.00
Department for Education,DEPARTMENT FOR EDUCATION,24-Feb-11,CURRENT GRANTS,Children Young People and Families Early Years Extended Schools and Special Needs,NOTTINGHAM CITY COUNCIL,4000047220,17001.00
Department for Education,DEPARTMENT FOR EDUCATION,24-Feb-11,CURRENT GRANTS,Children Young People and Families Early Years Extended Schools and Special Needs,NOTTINGHAMSHIRE COUNTY COUNCIL,4000047221,563424.00
Department for Education,DEPARTMENT FOR EDUCATION,24-Feb-11,CURRENT GRANTS,Children Young People and Families Early Years Extended Schools and Special Needs,NOTTINGHAMSHIRE COUNTY COUNCIL,4000047221,639750.00
Department for Education,DEPARTMENT FOR EDUCATION,24-Feb-11,CURRENT GRANTS,Children Young People and Families Early Years Extended Schools and Special Needs,NOTTINGHAMSHIRE COUNTY COUNCIL,4000047221,178167.00
Department for Education,DEPARTMENT FOR EDUCATION,24-Feb-11,CURRENT GRANTS,Children Young People and Families Early Years Extended Schools and Special Needs,NOTTINGHAMSHIRE COUNTY COUNCIL,4000047221,-79587.00
Department for Education,DEPARTMENT FOR EDUCATION,24-Feb-11,CURRENT GRANTS,Children Young People and Families Early Years Extended Schools and Special Needs,NOTTINGHAMSHIRE COUNTY COUNCIL,4000047221,3463347.00
Department for Education,DEPARTMENT FOR EDUCATION,24-Feb-11,CURRENT GRANTS,Children Young People and Families Early Years Extended Schools and Special Needs,NOTTINGHAMSHIRE COUNTY COUNCIL,4000047221,1115270.00
Department for Education,DEPARTMENT FOR EDUCATION,24-Feb-11,CURRENT GRANTS,Children Young People and Families Early Years Extended Schools and Special Needs,OLDHAM MBC,4000047222,562690.00
Department for Education,DEPARTMENT FOR EDUCATION,24-Feb-11,CURRENT GRANTS,Children Young People and Families Early Years Extended Schools and Special Needs,OLDHAM MBC,4000047222,196175.00
Department for Education,DEPARTMENT FOR EDUCATION,24-Feb-11,CAPITAL GRANTS,Children Young People and Families Early Years Extended Schools and Special Needs,OLDHAM MBC,4000047222,17901.00
Department for Education,DEPARTMENT FOR EDUCATION,24-Feb-11,CURRENT GRANTS,Children Young People and Families Early Years Extended Schools and Special Needs,OLDHAM MBC,4000047222,22340.00
Department for Education,DEPARTMENT FOR EDUCATION,24-Feb-11,CURRENT GRANTS,Children Young People and Families Early Years Extended Schools and Special Needs,OLDHAM MBC,4000047222,23134.00
Department for Education,DEPARTMENT FOR EDUCATION,24-Feb-11,CURRENT GRANTS,Children Young People and Families Early Years Extended Schools and Special Needs,OLDHAM MBC,4000047222,1889202.00
Department for Education,DEPARTMENT FOR EDUCATION,24-Feb-11,CURRENT GRANTS,Children Young People and Families Early Years Extended Schools and Special Needs,OLDHAM MBC,4000047222,611926.00
Department for Education,DEPARTMENT FOR EDUCATION,24-Feb-11,CURRENT GRANTS,Children Young People and Families Early Years Extended Schools and Special Needs,OXFORDSHIRE COUNTY COUNCIL,4000047223,509275.00
Department for Education,DEPARTMENT FOR EDUCATION,24-Feb-11,CAPITAL GRANTS,Children Young People and Families Early Years Extended Schools and Special Needs,OXFORDSHIRE COUNTY COUNCIL,4000047223,174400.00
Department for Education,DEPARTMENT FOR EDUCATION,24-Feb-11,CURRENT GRANTS,Children Young People and Families Early Years Extended Schools and Special Needs,OXFORDSHIRE COUNTY COUNCIL,4000047223,225438.00
Department for Education,DEPARTMENT FOR EDUCATION,24-Feb-11,CURRENT GRANTS,Children Young People and Families Early Years Extended Schools and Special Needs,OXFORDSHIRE COUNTY COUNCIL,4000047223,55962.00
Department for Education,DEPARTMENT FOR EDUCATION,24-Feb-11,CURRENT GRANTS,Children Young People and Families Early Years Extended Schools and Special Needs,OXFORDSHIRE COUNTY COUNCIL,4000047223,3608174.00
Department for Education,DEPARTMENT FOR EDUCATION,24-Feb-11,CURRENT GRANTS,Children Young People and Families Early Years Extended Schools and Special Needs,OXFORDSHIRE COUNTY COUNCIL,4000047223,113935.00
Department for Education,DEPARTMENT FOR EDUCATION,24-Feb-11,CURRENT GRANTS,Children Young People and Families Early Years Extended Schools and Special Needs,PETERBOROUGH CITY COUNCIL,4000047224,150625.00
Department for Education,DEPARTMENT FOR EDUCATION,24-Feb-11,CAPITAL GRANTS,Children Young People and Families Early Years Extended Schools and Special Needs,PETERBOROUGH CITY COUNCIL,4000047224,-1376.00
Department for Education,DEPARTMENT FOR EDUCATION,24-Feb-11,CURRENT GRANTS,Children Young People and Families Early Years Extended Schools and Special Needs,PETERBOROUGH CITY COUNCIL,4000047224,14893.00
Department for Education,DEPARTMENT FOR EDUCATION,24-Feb-11,CURRENT GRANTS,Children Young People and Families Early Years Extended Schools and Special Needs,PETERBOROUGH CITY COUNCIL,4000047224,81642.00
Department for Education,DEPARTMENT FOR EDUCATION,24-Feb-11,CURRENT GRANTS,Children Young People and Families Early Years Extended Schools and Special Needs,PETERBOROUGH CITY COUNCIL,4000047224,1354225.00
Department for Education,DEPARTMENT FOR EDUCATION,24-Feb-11,CURRENT GRANTS,Children Young People and Families Early Years Extended Schools and Special Needs,PETERBOROUGH CITY COUNCIL,4000047224,367374.00
Department for Education,DEPARTMENT FOR EDUCATION,24-Feb-11,CURRENT GRANTS,Children Young People and Families Early Years Extended Schools and Special Needs,PLYMOUTH CITY COUNCIL,4000047225,185075.00
Department for Education,DEPARTMENT FOR EDUCATION,24-Feb-11,CAPITAL GRANTS,Children Young People and Families Early Years Extended Schools and Special Needs,PLYMOUTH CITY COUNCIL,4000047225,38812.00
Department for Education,DEPARTMENT FOR EDUCATION,24-Feb-11,CURRENT GRANTS,Children Young People and Families Early Years Extended Schools and Special Needs,PLYMOUTH CITY COUNCIL,4000047225,22340.00
Department for Education,DEPARTMENT FOR EDUCATION,24-Feb-11,CURRENT GRANTS,Children Young People and Families Early Years Extended Schools and Special Needs,PLYMOUTH CITY COUNCIL,4000047225,64825.00
Department for Education,DEPARTMENT FOR EDUCATION,24-Feb-11,CURRENT GRANTS,Children Young People and Families Early Years Extended Schools and Special Needs,PLYMOUTH CITY COUNCIL,4000047225,1528588.00
Department for Education,DEPARTMENT FOR EDUCATION,24-Feb-11,CURRENT GRANTS,Children Young People and Families Early Years Extended Schools and Special Needs,PLYMOUTH CITY COUNCIL,4000047225,457248.00
Department for Education,DEPARTMENT FOR EDUCATION,24-Feb-11,CURRENT GRANTS,Children Young People and Families Early Years Extended Schools and Special Needs,POOLE BOROUGH COUNCIL,4000047226,85100.00
Department for Education,DEPARTMENT FOR EDUCATION,24-Feb-11,CAPITAL GRANTS,Children Young People and Families Early Years Extended Schools and Special Needs,POOLE BOROUGH COUNCIL,4000047226,-11451.00
Department for Education,DEPARTMENT FOR EDUCATION,24-Feb-11,CURRENT GRANTS,Children Young People and Families Early Years Extended Schools and Special Needs,POOLE BOROUGH COUNCIL,4000047226,14893.00
Department for Education,DEPARTMENT FOR EDUCATION,24-Feb-11,CURRENT GRANTS,Children Young People and Families Early Years Extended Schools and Special Needs,POOLE BOROUGH COUNCIL,4000047226,-7300.00
Department for Education,DEPARTMENT FOR EDUCATION,24-Feb-11,CURRENT GRANTS,Children Young People and Families Early Years Extended Schools and Special Needs,POOLE BOROUGH COUNCIL,4000047226,681195.00
Department for Education,DEPARTMENT FOR EDUCATION,24-Feb-11,CURRENT GRANTS,Children Young People and Families Early Years Extended Schools and Special Needs,PORTSMOUTH CITY COUNCIL,4000047227,146716.00
Department for Education,DEPARTMENT FOR EDUCATION,24-Feb-11,CAPITAL GRANTS,Children Young People and Families Early Years Extended Schools and Special Needs,PORTSMOUTH CITY COUNCIL,4000047227,-28122.00
Department for Education,DEPARTMENT FOR EDUCATION,24-Feb-11,CURRENT GRANTS,Children Young People and Families Early Years Extended Schools and Special Needs,PORTSMOUTH CITY COUNCIL,4000047227,14893.00
Department for Education,DEPARTMENT FOR EDUCATION,24-Feb-11,CURRENT GRANTS,Children Young People and Families Early Years Extended Schools and Special Needs,PORTSMOUTH CITY COUNCIL,4000047227,43823.00
Department for Education,DEPARTMENT FOR EDUCATION,24-Feb-11,CURRENT GRANTS,Children Young People and Families Early Years Extended Schools and Special Needs,PORTSMOUTH CITY COUNCIL,4000047227,1254551.00
Department for Education,DEPARTMENT FOR EDUCATION,24-Feb-11,CURRENT GRANTS,Children Young People and Families Early Years Extended Schools and Special Needs,PORTSMOUTH CITY COUNCIL,4000047227,272435.00
Department for Education,DEPARTMENT FOR EDUCATION,24-Feb-11,CURRENT GRANTS,Children Young People and Families Early Years Extended Schools and Special Needs,READING BOROUGH COUNCIL,4000047228,117925.00
Department for Education,DEPARTMENT FOR EDUCATION,24-Feb-11,CAPITAL GRANTS,Children Young People and Families Early Years Extended Schools and Special Needs,READING BOROUGH COUNCIL,4000047228,26050.00
Department for Education,DEPARTMENT FOR EDUCATION,24-Feb-11,CURRENT GRANTS,Children Young People and Families Early Years Extended Schools and Special Needs,READING BOROUGH COUNCIL,4000047228,14893.00
Department for Education,DEPARTMENT FOR EDUCATION,24-Feb-11,CURRENT GRANTS,Children Young People and Families Early Years Extended Schools and Special Needs,READING BOROUGH COUNCIL,4000047228,34175.00
Department for Education,DEPARTMENT FOR EDUCATION,24-Feb-11,CURRENT GRANTS,Children Young People and Families Early Years Extended Schools and Special Needs,READING BOROUGH COUNCIL,4000047228,1025789.00
Department for Education,DEPARTMENT FOR EDUCATION,24-Feb-11,CURRENT GRANTS,Children Young People and Families Early Years Extended Schools and Special Needs,READING BOROUGH COUNCIL,4000047228,114312.00
Department for Education,DEPARTMENT FOR EDUCATION,24-Feb-11,CURRENT GRANTS,Children Young People and Families Early Years Extended Schools and Special Needs,ROCHDALE MBC,4000047229,206550.00
Department for Education,DEPARTMENT FOR EDUCATION,24-Feb-11,CAPITAL GRANTS,Children Young People and Families Early Years Extended Schools and Special Needs,ROCHDALE MBC,4000047229,-3400.00
Department for Education,DEPARTMENT FOR EDUCATION,24-Feb-11,CURRENT GRANTS,Children Young People and Families Early Years Extended Schools and Special Needs,ROCHDALE MBC,4000047229,22340.00
Department for Education,DEPARTMENT FOR EDUCATION,24-Feb-11,CURRENT GRANTS,Children Young People and Families Early Years Extended Schools and Special Needs,ROCHDALE MBC,4000047229,63696.00
Department for Education,DEPARTMENT FOR EDUCATION,24-Feb-11,CURRENT GRANTS,Children Young People and Families Early Years Extended Schools and Special Needs,ROCHDALE MBC,4000047229,1569572.00
Department for Education,DEPARTMENT FOR EDUCATION,24-Feb-11,CURRENT GRANTS,Children Young People and Families Early Years Extended Schools and Special Needs,ROCHDALE MBC,4000047229,616623.00
Department for Education,DEPARTMENT FOR EDUCATION,24-Feb-11,CURRENT GRANTS,Children Young People and Families Early Years Extended Schools and Special Needs,ROYAL BOROUGH OF KINGSTON UPON THAMES COUNCIL,4000047230,118825.00
Department for Education,DEPARTMENT FOR EDUCATION,24-Feb-11,CAPITAL GRANTS,Children Young People and Families Early Years Extended Schools and Special Needs,ROYAL BOROUGH OF KINGSTON UPON THAMES COUNCIL,4000047230,-28267.00
Department for Education,DEPARTMENT FOR EDUCATION,24-Feb-11,CURRENT GRANTS,Children Young People and Families Early Years Extended Schools and Special Needs,ROYAL BOROUGH OF KINGSTON UPON THAMES COUNCIL,4000047230,14893.00
Department for Education,DEPARTMENT FOR EDUCATION,24-Feb-11,CURRENT GRANTS,Children Young People and Families Early Years Extended Schools and Special Needs,ROYAL BOROUGH OF KINGSTON UPON THAMES COUNCIL,4000047230,2941.00
Department for Education,DEPARTMENT FOR EDUCATION,24-Feb-11,CURRENT GRANTS,Children Young People and Families Early Years Extended Schools and Special Needs,ROYAL BOROUGH OF KINGSTON UPON THAMES COUNCIL,4000047230,766350.00
Department for Education,DEPARTMENT FOR EDUCATION,24-Feb-11,CURRENT GRANTS,Children Young People and Families Early Years Extended Schools and Special Needs,ROYAL BOROUGH OF KINGSTON UPON THAMES COUNCIL,4000047230,-140390.00
Department for Education,DEPARTMENT FOR EDUCATION,24-Feb-11,CURRENT GRANTS,Children Young People and Families Early Years Extended Schools and Special Needs,RUTLAND COUNTY COUNCIL,4000047231,28000.00
Department for Education,DEPARTMENT FOR EDUCATION,24-Feb-11,CAPITAL GRANTS,Children Young People and Families Early Years Extended Schools and Special Needs,RUTLAND COUNTY COUNCIL,4000047231,-250.00
Department for Education,DEPARTMENT FOR EDUCATION,24-Feb-11,CURRENT GRANTS,Children Young People and Families Early Years Extended Schools and Special Needs,RUTLAND COUNTY COUNCIL,4000047231,14893.00
Department for Education,DEPARTMENT FOR EDUCATION,24-Feb-11,CURRENT GRANTS,Children Young People and Families Early Years Extended Schools and Special Needs,RUTLAND COUNTY COUNCIL,4000047231,-82339.00
Department for Education,DEPARTMENT FOR EDUCATION,24-Feb-11,CURRENT GRANTS,Children Young People and Families Early Years Extended Schools and Special Needs,RUTLAND COUNTY COUNCIL,4000047231,213996.00
Department for Education,DEPARTMENT FOR EDUCATION,24-Feb-11,CURRENT GRANTS,Children Young People and Families Early Years Extended Schools and Special Needs,SALFORD CITY COUNCIL,4000047232,219985.00
Department for Education,DEPARTMENT FOR EDUCATION,24-Feb-11,CAPITAL GRANTS,Children Young People and Families Early Years Extended Schools and Special Needs,SALFORD CITY COUNCIL,4000047232,33923.00
Department for Education,DEPARTMENT FOR EDUCATION,24-Feb-11,CURRENT GRANTS,Children Young People and Families Early Years Extended Schools and Special Needs,SALFORD CITY COUNCIL,4000047232,22340.00
Department for Education,DEPARTMENT FOR EDUCATION,24-Feb-11,CURRENT GRANTS,Children Young People and Families Early Years Extended Schools and Special Needs,SALFORD CITY COUNCIL,4000047232,-91302.00
Department for Education,DEPARTMENT FOR EDUCATION,24-Feb-11,CURRENT GRANTS,Children Young People and Families Early Years Extended Schools and Special Needs,SALFORD CITY COUNCIL,4000047232,1549406.00
Department for Education,DEPARTMENT FOR EDUCATION,24-Feb-11,CURRENT GRANTS,Children Young People and Families Early Years Extended Schools and Special Needs,SALFORD CITY COUNCIL,4000047232,602728.00
Department for Education,DEPARTMENT FOR EDUCATION,24-Feb-11,CURRENT GRANTS,Children Young People and Families Early Years Extended Schools and Special Needs,SEFTON COUNCIL,4000047233,269150.00
Department for Education,DEPARTMENT FOR EDUCATION,24-Feb-11,CAPITAL GRANTS,Children Young People and Families Early Years Extended Schools and Special Needs,SEFTON COUNCIL,4000047233,94664.00
Department for Education,DEPARTMENT FOR EDUCATION,24-Feb-11,CURRENT GRANTS,Children Young People and Families Early Years Extended Schools and Special Needs,SEFTON COUNCIL,4000047233,-133201.00
Department for Education,DEPARTMENT FOR EDUCATION,24-Feb-11,CURRENT GRANTS,Children Young People and Families Early Years Extended Schools and Special Needs,SEFTON COUNCIL,4000047233,48880.00
Department for Education,DEPARTMENT FOR EDUCATION,24-Feb-11,CURRENT GRANTS,Children Young People and Families Early Years Extended Schools and Special Needs,SEFTON COUNCIL,4000047233,1300794.00
Department for Education,DEPARTMENT FOR EDUCATION,24-Feb-11,CURRENT GRANTS,Children Young People and Families Early Years Extended Schools and Special Needs,SEFTON COUNCIL,4000047233,456480.00
Department for Education,DEPARTMENT FOR EDUCATION,24-Feb-11,CURRENT GRANTS,Children Young People and Families Early Years Extended Schools and Special Needs,SHEFFIELD CITY COUNCIL,4000047234,566666.00
Department for Education,DEPARTMENT FOR EDUCATION,24-Feb-11,CURRENT GRANTS,Children Young People and Families Early Years Extended Schools and Special Needs,SHEFFIELD CITY COUNCIL,4000047234,506375.00
Department for Education,DEPARTMENT FOR EDUCATION,24-Feb-11,CAPITAL GRANTS,Children Young People and Families Early Years Extended Schools and Special Needs,SHEFFIELD CITY COUNCIL,4000047234,-118575.00
Department for Education,DEPARTMENT FOR EDUCATION,24-Feb-11,CURRENT GRANTS,Children Young People and Families Early Years Extended Schools and Special Needs,SHEFFIELD CITY COUNCIL,4000047234,29787.00
Department for Education,DEPARTMENT FOR EDUCATION,24-Feb-11,CURRENT GRANTS,Children Young People and Families Early Years Extended Schools and Special Needs,SHEFFIELD CITY COUNCIL,4000047234,173076.00
Department for Education,DEPARTMENT FOR EDUCATION,24-Feb-11,CURRENT GRANTS,Children Young People and Families Early Years Extended Schools and Special Needs,SHEFFIELD CITY COUNCIL,4000047234,3166840.00
Department for Education,DEPARTMENT FOR EDUCATION,24-Feb-11,CURRENT GRANTS,Children Young People and Families Early Years Extended Schools and Special Needs,SHEFFIELD CITY COUNCIL,4000047234,958541.00
Department for Education,DEPARTMENT FOR EDUCATION,24-Feb-11,CURRENT GRANTS,Children Young People and Families Early Years Extended Schools and Special Needs,SHROPSHIRE COUNCIL,4000047235,218350.00
Department for Education,DEPARTMENT FOR EDUCATION,24-Feb-11,CAPITAL GRANTS,Children Young People and Families Early Years Extended Schools and Special Needs,SHROPSHIRE COUNCIL,4000047235,-14450.00
Department for Education,DEPARTMENT FOR EDUCATION,24-Feb-11,CURRENT GRANTS,Children Young People and Families Early Years Extended Schools and Special Needs,SHROPSHIRE COUNCIL,4000047235,29787.00
Department for Education,DEPARTMENT FOR EDUCATION,24-Feb-11,CURRENT GRANTS,Children Young People and Families Early Years Extended Schools and Special Needs,SHROPSHIRE COUNCIL,4000047235,45473.00
Department for Education,DEPARTMENT FOR EDUCATION,24-Feb-11,CURRENT GRANTS,Children Young People and Families Early Years Extended Schools and Special Needs,SHROPSHIRE COUNCIL,4000047235,1577126.00
Department for Education,DEPARTMENT FOR EDUCATION,24-Feb-11,CURRENT GRANTS,Children Young People and Families Early Years Extended Schools and Special Needs,SHROPSHIRE COUNCIL,4000047235,256812.00
Department for Education,DEPARTMENT FOR EDUCATION,24-Feb-11,CURRENT GRANTS,Children Young People and Families Early Years Extended Schools and Special Needs,SOLIHULL MBC,4000047236,163825.00
Department for Education,DEPARTMENT FOR EDUCATION,24-Feb-11,CAPITAL GRANTS,Children Young People and Families Early Years Extended Schools and Special Needs,SOLIHULL MBC,4000047236,10905.00
Department for Education,DEPARTMENT FOR EDUCATION,24-Feb-11,CURRENT GRANTS,Children Young People and Families Early Years Extended Schools and Special Needs,SOLIHULL MBC,4000047236,362673.00
Department for Education,DEPARTMENT FOR EDUCATION,24-Feb-11,CURRENT GRANTS,Children Young People and Families Early Years Extended Schools and Special Needs,SOLIHULL MBC,4000047236,42247.00
Department for Education,DEPARTMENT FOR EDUCATION,24-Feb-11,CURRENT GRANTS,Children Young People and Families Early Years Extended Schools and Special Needs,SOLIHULL MBC,4000047236,1126539.00
Department for Education,DEPARTMENT FOR EDUCATION,24-Feb-11,CURRENT GRANTS,Children Young People and Families Early Years Extended Schools and Special Needs,SOLIHULL MBC,4000047236,114312.00
Department for Education,DEPARTMENT FOR EDUCATION,24-Feb-11,CURRENT GRANTS,Children Young People and Families Early Years Extended Schools and Special Needs,SOUTH GLOUCEST,4000047237,208289.00
Department for Education,DEPARTMENT FOR EDUCATION,24-Feb-11,CAPITAL GRANTS,Children Young People and Families Early Years Extended Schools and Special Needs,SOUTH GLOUCEST,4000047237,-37482.00
Department for Education,DEPARTMENT FOR EDUCATION,24-Feb-11,CURRENT GRANTS,Children Young People and Families Early Years Extended Schools and Special Needs,SOUTH GLOUCEST,4000047237,22340.00
Department for Education,DEPARTMENT FOR EDUCATION,24-Feb-11,CURRENT GRANTS,Children Young People and Families Early Years Extended Schools and Special Needs,SOUTH GLOUCEST,4000047237,40858.00
Department for Education,DEPARTMENT FOR EDUCATION,24-Feb-11,CURRENT GRANTS,Children Young People and Families Early Years Extended Schools and Special Needs,SOUTH GLOUCEST,4000047237,1262710.00
Department for Education,DEPARTMENT FOR EDUCATION,24-Feb-11,CURRENT GRANTS,Children Young People and Families Early Years Extended Schools and Special Needs,SOUTH TYNESIDE,4000047238,134850.00
Department for Education,DEPARTMENT FOR EDUCATION,24-Feb-11,CAPITAL GRANTS,Children Young People and Families Early Years Extended Schools and Special Needs,SOUTH TYNESIDE,4000047238,49100.00
Department for Education,DEPARTMENT FOR EDUCATION,24-Feb-11,CURRENT GRANTS,Children Young People and Families Early Years Extended Schools and Special Needs,SOUTH TYNESIDE,4000047238,14893.00
Department for Education,DEPARTMENT FOR EDUCATION,24-Feb-11,CURRENT GRANTS,Children Young People and Families Early Years Extended Schools and Special Needs,SOUTH TYNESIDE,4000047238,5308.00
Department for Education,DEPARTMENT FOR EDUCATION,24-Feb-11,CURRENT GRANTS,Children Young People and Families Early Years Extended Schools and Special Needs,SOUTH TYNESIDE,4000047238,1022203.00
Department for Education,DEPARTMENT FOR EDUCATION,24-Feb-11,CURRENT GRANTS,Children Young People and Families Early Years Extended Schools and Special Needs,SOUTH TYNESIDE,4000047238,591310.00
Department for Education,DEPARTMENT FOR EDUCATION,24-Feb-11,CURRENT GRANTS,Children Young People and Families Early Years Extended Schools and Special Needs,SOUTHAMPTON CITY COUNCIL,4000047239,176724.00
Department for Education,DEPARTMENT FOR EDUCATION,24-Feb-11,CAPITAL GRANTS,Children Young People and Families Early Years Extended Schools and Special Needs,SOUTHAMPTON CITY COUNCIL,4000047239,64550.00
Department for Education,DEPARTMENT FOR EDUCATION,24-Feb-11,CURRENT GRANTS,Children Young People and Families Early Years Extended Schools and Special Needs,SOUTHAMPTON CITY COUNCIL,4000047239,22340.00
Department for Education,DEPARTMENT FOR EDUCATION,24-Feb-11,CURRENT GRANTS,Children Young People and Families Early Years Extended Schools and Special Needs,SOUTHAMPTON CITY COUNCIL,4000047239,-30524.00
Department for Education,DEPARTMENT FOR EDUCATION,24-Feb-11,CURRENT GRANTS,Children Young People and Families Early Years Extended Schools and Special Needs,SOUTHAMPTON CITY COUNCIL,4000047239,1439623.00
Department for Education,DEPARTMENT FOR EDUCATION,24-Feb-11,CURRENT GRANTS,Children Young People and Families Early Years Extended Schools and Special Needs,SOUTHAMPTON CITY COUNCIL,4000047239,342936.00
Department for Education,DEPARTMENT FOR EDUCATION,24-Feb-11,CURRENT GRANTS,Children Young People and Families Early Years Extended Schools and Special Needs,SOUTHAMPTON CITY COUNCIL,4000047239,16414.00
Department for Education,DEPARTMENT FOR EDUCATION,24-Feb-11,CURRENT GRANTS,Children Young People and Families Early Years Extended Schools and Special Needs,SOUTHEND ON SEA BOROUGH COUNCIL,4000047240,139188.00
Department for Education,DEPARTMENT FOR EDUCATION,24-Feb-11,CAPITAL GRANTS,Children Young People and Families Early Years Extended Schools and Special Needs,SOUTHEND ON SEA BOROUGH COUNCIL,4000047240,51925.00
Department for Education,DEPARTMENT FOR EDUCATION,24-Feb-11,CURRENT GRANTS,Children Young People and Families Early Years Extended Schools and Special Needs,SOUTHEND ON SEA BOROUGH COUNCIL,4000047240,14893.00
Department for Education,DEPARTMENT FOR EDUCATION,24-Feb-11,CURRENT GRANTS,Children Young People and Families Early Years Extended Schools and Special Needs,SOUTHEND ON SEA BOROUGH COUNCIL,4000047240,37144.00
Department for Education,DEPARTMENT FOR EDUCATION,24-Feb-11,CURRENT GRANTS,Children Young People and Families Early Years Extended Schools and Special Needs,SOUTHEND ON SEA BOROUGH COUNCIL,4000047240,1055187.00
Department for Education,DEPARTMENT FOR EDUCATION,24-Feb-11,CURRENT GRANTS,Children Young People and Families Early Years Extended Schools and Special Needs,SOUTHEND ON SEA BOROUGH COUNCIL,4000047240,114303.00
Department for Education,DEPARTMENT FOR EDUCATION,24-Feb-11,CURRENT GRANTS,Children Young People and Families Early Years Extended Schools and Special Needs,ST HELENS MBC,4000047241,172375.00
Department for Education,DEPARTMENT FOR EDUCATION,24-Feb-11,CAPITAL GRANTS,Children Young People and Families Early Years Extended Schools and Special Needs,ST HELENS MBC,4000047241,-36118.00
Department for Education,DEPARTMENT FOR EDUCATION,24-Feb-11,CURRENT GRANTS,Children Young People and Families Early Years Extended Schools and Special Needs,ST HELENS MBC,4000047241,14893.00
Department for Education,DEPARTMENT FOR EDUCATION,24-Feb-11,CURRENT GRANTS,Children Young People and Families Early Years Extended Schools and Special Needs,ST HELENS MBC,4000047241,-19562.00
Department for Education,DEPARTMENT FOR EDUCATION,24-Feb-11,CURRENT GRANTS,Children Young People and Families Early Years Extended Schools and Special Needs,ST HELENS MBC,4000047241,1208850.00
Department for Education,DEPARTMENT FOR EDUCATION,24-Feb-11,CURRENT GRANTS,Children Young People and Families Early Years Extended Schools and Special Needs,ST HELENS MBC,4000047241,616623.00
Department for Education,DEPARTMENT FOR EDUCATION,24-Feb-11,CURRENT GRANTS,Children Young People and Families Early Years Extended Schools and Special Needs,STAFFORDSHIRE COUNCIL,4000047242,642175.00
Department for Education,DEPARTMENT FOR EDUCATION,24-Feb-11,CAPITAL GRANTS,Children Young People and Families Early Years Extended Schools and Special Needs,STAFFORDSHIRE COUNCIL,4000047242,-25884.00
Department for Education,DEPARTMENT FOR EDUCATION,24-Feb-11,CURRENT GRANTS,Children Young People and Families Early Years Extended Schools and Special Needs,STAFFORDSHIRE COUNCIL,4000047242,29787.00
Department for Education,DEPARTMENT FOR EDUCATION,24-Feb-11,CURRENT GRANTS,Children Young People and Families Early Years Extended Schools and Special Needs,STAFFORDSHIRE COUNCIL,4000047242,-136296.00
Department for Education,DEPARTMENT FOR EDUCATION,24-Feb-11,CURRENT GRANTS,Children Young People and Families Early Years Extended Schools and Special Needs,STAFFORDSHIRE COUNCIL,4000047242,4289841.00
Department for Education,DEPARTMENT FOR EDUCATION,24-Feb-11,CURRENT GRANTS,Children Young People and Families Early Years Extended Schools and Special Needs,STAFFORDSHIRE COUNCIL,4000047242,-15545.00
Department for Education,DEPARTMENT FOR EDUCATION,24-Feb-11,CURRENT GRANTS,Children Young People and Families Early Years Extended Schools and Special Needs,STAFFORDSHIRE COUNCIL,4000047242,571560.00
Department for Education,DEPARTMENT FOR EDUCATION,24-Feb-11,CURRENT GRANTS,Children Young People and Families Early Years Extended Schools and Special Needs,STOCKPORT MBC,4000047243,250825.00
Department for Education,DEPARTMENT FOR EDUCATION,24-Feb-11,CAPITAL GRANTS,Children Young People and Families Early Years Extended Schools and Special Needs,STOCKPORT MBC,4000047243,91325.00
Department for Education,DEPARTMENT FOR EDUCATION,24-Feb-11,CURRENT GRANTS,Children Young People and Families Early Years Extended Schools and Special Needs,STOCKPORT MBC,4000047243,22340.00
Department for Education,DEPARTMENT FOR EDUCATION,24-Feb-11,CURRENT GRANTS,Children Young People and Families Early Years Extended Schools and Special Needs,STOCKPORT MBC,4000047243,52845.00
Department for Education,DEPARTMENT FOR EDUCATION,24-Feb-11,CURRENT GRANTS,Children Young People and Families Early Years Extended Schools and Special Needs,STOCKPORT MBC,4000047243,1587596.00
Department for Education,DEPARTMENT FOR EDUCATION,24-Feb-11,CURRENT GRANTS,Children Young People and Families Early Years Extended Schools and Special Needs,STOCKPORT MBC,4000047243,114312.00
Department for Education,DEPARTMENT FOR EDUCATION,24-Feb-11,CURRENT GRANTS,Children Young People and Families Early Years Extended Schools and Special Needs,STOCKTON ON TEES,4000047244,203025.00
Department for Education,DEPARTMENT FOR EDUCATION,24-Feb-11,CAPITAL GRANTS,Children Young People and Families Early Years Extended Schools and Special Needs,STOCKTON ON TEES,4000047244,48204.00
Department for Education,DEPARTMENT FOR EDUCATION,24-Feb-11,CURRENT GRANTS,Children Young People and Families Early Years Extended Schools and Special Needs,STOCKTON ON TEES,4000047244,14893.00
Department for Education,DEPARTMENT FOR EDUCATION,24-Feb-11,CURRENT GRANTS,Children Young People and Families Early Years Extended Schools and Special Needs,STOCKTON ON TEES,4000047244,38478.00
Department for Education,DEPARTMENT FOR EDUCATION,24-Feb-11,CURRENT GRANTS,Children Young People and Families Early Years Extended Schools and Special Needs,STOCKTON ON TEES,4000047244,1130787.00
Department for Education,DEPARTMENT FOR EDUCATION,24-Feb-11,CURRENT GRANTS,Children Young People and Families Early Years Extended Schools and Special Needs,STOCKTON ON TEES,4000047244,607248.00
Department for Education,DEPARTMENT FOR EDUCATION,24-Feb-11,CURRENT GRANTS,Children Young People and Families Early Years Extended Schools and Special Needs,STOKE ON TRENT CITY COUNCIL,4000047245,188500.00
Department for Education,DEPARTMENT FOR EDUCATION,24-Feb-11,CAPITAL GRANTS,Children Young People and Families Early Years Extended Schools and Special Needs,STOKE ON TRENT CITY COUNCIL,4000047245,37406.00
Department for Education,DEPARTMENT FOR EDUCATION,24-Feb-11,CURRENT GRANTS,Children Young People and Families Early Years Extended Schools and Special Needs,STOKE ON TRENT CITY COUNCIL,4000047245,22340.00
Department for Education,DEPARTMENT FOR EDUCATION,24-Feb-11,CURRENT GRANTS,Children Young People and Families Early Years Extended Schools and Special Needs,STOKE ON TRENT CITY COUNCIL,4000047245,81976.00
Department for Education,DEPARTMENT FOR EDUCATION,24-Feb-11,CURRENT GRANTS,Children Young People and Families Early Years Extended Schools and Special Needs,STOKE ON TRENT CITY COUNCIL,4000047245,1698807.00
Department for Education,DEPARTMENT FOR EDUCATION,24-Feb-11,CURRENT GRANTS,Children Young People and Families Early Years Extended Schools and Special Needs,STOKE ON TRENT CITY COUNCIL,4000047245,696247.00
Department for Education,DEPARTMENT FOR EDUCATION,24-Feb-11,CURRENT GRANTS,Children Young People and Families Early Years Extended Schools and Special Needs,SUFFOLK COUNTY COUNCIL,4000047246,615500.00
Department for Education,DEPARTMENT FOR EDUCATION,24-Feb-11,CURRENT GRANTS,Children Young People and Families Early Years Extended Schools and Special Needs,SUFFOLK COUNTY COUNCIL,4000047246,29787.00
Department for Education,DEPARTMENT FOR EDUCATION,24-Feb-11,CURRENT GRANTS,Children Young People and Families Early Years Extended Schools and Special Needs,SUFFOLK COUNTY COUNCIL,4000047246,107606.00
Department for Education,DEPARTMENT FOR EDUCATION,24-Feb-11,CURRENT GRANTS,Children Young People and Families Early Years Extended Schools and Special Needs,SUFFOLK COUNTY COUNCIL,4000047246,3702780.00
Department for Education,DEPARTMENT FOR EDUCATION,24-Feb-11,CURRENT GRANTS,Children Young People and Families Early Years Extended Schools and Special Needs,SUFFOLK COUNTY COUNCIL,4000047246,360811.00
Department for Education,DEPARTMENT FOR EDUCATION,24-Feb-11,CURRENT GRANTS,Children Young People and Families Early Years Extended Schools and Special Needs,SURREY COUNTY COUNCIL,4000047247,998425.00
Department for Education,DEPARTMENT FOR EDUCATION,24-Feb-11,CAPITAL GRANTS,Children Young People and Families Early Years Extended Schools and Special Needs,SURREY COUNTY COUNCIL,4000047247,-170097.00
Department for Education,DEPARTMENT FOR EDUCATION,24-Feb-11,CURRENT GRANTS,Children Young People and Families Early Years Extended Schools and Special Needs,SURREY COUNTY COUNCIL,4000047247,29787.00
Department for Education,DEPARTMENT FOR EDUCATION,24-Feb-11,CURRENT GRANTS,Children Young People and Families Early Years Extended Schools and Special Needs,SURREY COUNTY COUNCIL,4000047247,-36224.00
Department for Education,DEPARTMENT FOR EDUCATION,24-Feb-11,CURRENT GRANTS,Children Young People and Families Early Years Extended Schools and Special Needs,SURREY COUNTY COUNCIL,4000047247,5233218.00
Department for Education,DEPARTMENT FOR EDUCATION,24-Feb-11,CURRENT GRANTS,Children Young People and Families Early Years Extended Schools and Special Needs,SWINDON BOROUGH COUNCIL,4000047248,148175.00
Department for Education,DEPARTMENT FOR EDUCATION,24-Feb-11,CAPITAL GRANTS,Children Young People and Families Early Years Extended Schools and Special Needs,SWINDON BOROUGH COUNCIL,4000047248,52816.00
Department for Education,DEPARTMENT FOR EDUCATION,24-Feb-11,CURRENT GRANTS,Children Young People and Families Early Years Extended Schools and Special Needs,SWINDON BOROUGH COUNCIL,4000047248,14893.00
Department for Education,DEPARTMENT FOR EDUCATION,24-Feb-11,CURRENT GRANTS,Children Young People and Families Early Years Extended Schools and Special Needs,SWINDON BOROUGH COUNCIL,4000047248,25881.00
Department for Education,DEPARTMENT FOR EDUCATION,24-Feb-11,CURRENT GRANTS,Children Young People and Families Early Years Extended Schools and Special Needs,SWINDON BOROUGH COUNCIL,4000047248,1166708.00
Department for Education,DEPARTMENT FOR EDUCATION,24-Feb-11,CURRENT GRANTS,Children Young People and Families Early Years Extended Schools and Special Needs,SWINDON BOROUGH COUNCIL,4000047248,114312.00
Department for Education,DEPARTMENT FOR EDUCATION,24-Feb-11,CURRENT GRANTS,Children Young People and Families Early Years Extended Schools and Special Needs,TELFORD & WREKIN COUNCIL,4000047249,167482.00
Department for Education,DEPARTMENT FOR EDUCATION,24-Feb-11,CAPITAL GRANTS,Children Young People and Families Early Years Extended Schools and Special Needs,TELFORD & WREKIN COUNCIL,4000047249,-9530.00
Department for Education,DEPARTMENT FOR EDUCATION,24-Feb-11,CURRENT GRANTS,Children Young People and Families Early Years Extended Schools and Special Needs,TELFORD & WREKIN COUNCIL,4000047249,14893.00
Department for Education,DEPARTMENT FOR EDUCATION,24-Feb-11,CURRENT GRANTS,Children Young People and Families Early Years Extended Schools and Special Needs,TELFORD & WREKIN COUNCIL,4000047249,38299.00
Department for Education,DEPARTMENT FOR EDUCATION,24-Feb-11,CURRENT GRANTS,Children Young People and Families Early Years Extended Schools and Special Needs,TELFORD & WREKIN COUNCIL,4000047249,1125687.00
Department for Education,DEPARTMENT FOR EDUCATION,24-Feb-11,CURRENT GRANTS,Children Young People and Families Early Years Extended Schools and Special Needs,TELFORD & WREKIN COUNCIL,4000047249,268999.00
Department for Education,DEPARTMENT FOR EDUCATION,24-Feb-11,CURRENT GRANTS,Children Young People and Families Early Years Extended Schools and Special Needs,THE LONDON BOROUGH OF HACKNEY,4000047250,297250.00
Department for Education,DEPARTMENT FOR EDUCATION,24-Feb-11,CAPITAL GRANTS,Children Young People and Families Early Years Extended Schools and Special Needs,THE LONDON BOROUGH OF HACKNEY,4000047250,-77650.00
Department for Education,DEPARTMENT FOR EDUCATION,24-Feb-11,CURRENT GRANTS,Children Young People and Families Early Years Extended Schools and Special Needs,THE LONDON BOROUGH OF HACKNEY,4000047250,22340.00
Department for Education,DEPARTMENT FOR EDUCATION,24-Feb-11,CURRENT GRANTS,Children Young People and Families Early Years Extended Schools and Special Needs,THE LONDON BOROUGH OF HACKNEY,4000047250,114357.00
Department for Education,DEPARTMENT FOR EDUCATION,24-Feb-11,CURRENT GRANTS,Children Young People and Families Early Years Extended Schools and Special Needs,THE LONDON BOROUGH OF HACKNEY,4000047250,2839542.00
Department for Education,DEPARTMENT FOR EDUCATION,24-Feb-11,CURRENT GRANTS,Children Young People and Families Early Years Extended Schools and Special Needs,THE LONDON BOROUGH OF HACKNEY,4000047250,821809.00
Department for Education,DEPARTMENT FOR EDUCATION,24-Feb-11,CURRENT GRANTS,Children Young People and Families Early Years Extended Schools and Special Needs,THE ROYAL BOROUGH OF KENSINGTON & CHELSEA COUNCIL,4000047251,101375.00
Department for Education,DEPARTMENT FOR EDUCATION,24-Feb-11,CAPITAL GRANTS,Children Young People and Families Early Years Extended Schools and Special Needs,THE ROYAL BOROUGH OF KENSINGTON & CHELSEA COUNCIL,4000047251,37050.00
Department for Education,DEPARTMENT FOR EDUCATION,24-Feb-11,CURRENT GRANTS,Children Young People and Families Early Years Extended Schools and Special Needs,THE ROYAL BOROUGH OF KENSINGTON & CHELSEA COUNCIL,4000047251,14893.00
Department for Education,DEPARTMENT FOR EDUCATION,24-Feb-11,CURRENT GRANTS,Children Young People and Families Early Years Extended Schools and Special Needs,THE ROYAL BOROUGH OF KENSINGTON & CHELSEA COUNCIL,4000047251,54090.00
Department for Education,DEPARTMENT FOR EDUCATION,24-Feb-11,CURRENT GRANTS,Children Young People and Families Early Years Extended Schools and Special Needs,THE ROYAL BOROUGH OF KENSINGTON & CHELSEA COUNCIL,4000047251,741569.00
Department for Education,DEPARTMENT FOR EDUCATION,24-Feb-11,CURRENT GRANTS,Children Young People and Families Early Years Extended Schools and Special Needs,THE ROYAL BOROUGH OF KENSINGTON & CHELSEA COUNCIL,4000047251,228624.00
Department for Education,DEPARTMENT FOR EDUCATION,24-Feb-11,CURRENT GRANTS,Children Young People and Families Early Years Extended Schools and Special Needs,TORBAY COUNCIL,4000047252,100375.00
Department for Education,DEPARTMENT FOR EDUCATION,24-Feb-11,CAPITAL GRANTS,Children Young People and Families Early Years Extended Schools and Special Needs,TORBAY COUNCIL,4000047252,31935.00
Department for Education,DEPARTMENT FOR EDUCATION,24-Feb-11,CURRENT GRANTS,Children Young People and Families Early Years Extended Schools and Special Needs,TORBAY COUNCIL,4000047252,14893.00
Department for Education,DEPARTMENT FOR EDUCATION,24-Feb-11,CURRENT GRANTS,Children Young People and Families Early Years Extended Schools and Special Needs,TORBAY COUNCIL,4000047252,9374.00
Department for Education,DEPARTMENT FOR EDUCATION,24-Feb-11,CURRENT GRANTS,Children Young People and Families Early Years Extended Schools and Special Needs,TORBAY COUNCIL,4000047252,726686.00
Department for Education,DEPARTMENT FOR EDUCATION,24-Feb-11,CURRENT GRANTS,Children Young People and Families Early Years Extended Schools and Special Needs,TORBAY COUNCIL,4000047252,228624.00
Department for Education,DEPARTMENT FOR EDUCATION,24-Feb-11,CURRENT GRANTS,Children Young People and Families Early Years Extended Schools and Special Needs,WAKEFIELD MDC,4000047253,278771.00
Department for Education,DEPARTMENT FOR EDUCATION,24-Feb-11,CAPITAL GRANTS,Children Young People and Families Early Years Extended Schools and Special Needs,WAKEFIELD MDC,4000047253,100800.00
Department for Education,DEPARTMENT FOR EDUCATION,24-Feb-11,CURRENT GRANTS,Children Young People and Families Early Years Extended Schools and Special Needs,WAKEFIELD MDC,4000047253,22340.00
Department for Education,DEPARTMENT FOR EDUCATION,24-Feb-11,CURRENT GRANTS,Children Young People and Families Early Years Extended Schools and Special Needs,WAKEFIELD MDC,4000047253,69622.00
Department for Education,DEPARTMENT FOR EDUCATION,24-Feb-11,CURRENT GRANTS,Children Young People and Families Early Years Extended Schools and Special Needs,WAKEFIELD MDC,4000047253,2011368.00
Department for Education,DEPARTMENT FOR EDUCATION,24-Feb-11,CURRENT GRANTS,Children Young People and Families Early Years Extended Schools and Special Needs,WAKEFIELD MDC,4000047253,502311.00
Department for Education,DEPARTMENT FOR EDUCATION,24-Feb-11,CURRENT GRANTS,Children Young People and Families Early Years Extended Schools and Special Needs,WALSALL MBC,4000047254,187950.00
Department for Education,DEPARTMENT FOR EDUCATION,24-Feb-11,CAPITAL GRANTS,Children Young People and Families Early Years Extended Schools and Special Needs,WALSALL MBC,4000047254,-48900.00
Department for Education,DEPARTMENT FOR EDUCATION,24-Feb-11,CURRENT GRANTS,Children Young People and Families Early Years Extended Schools and Special Needs,WALSALL MBC,4000047254,22340.00
Department for Education,DEPARTMENT FOR EDUCATION,24-Feb-11,CURRENT GRANTS,Children Young People and Families Early Years Extended Schools and Special Needs,WALSALL MBC,4000047254,22655.00
Department for Education,DEPARTMENT FOR EDUCATION,24-Feb-11,CURRENT GRANTS,Children Young People and Families Early Years Extended Schools and Special Needs,WALSALL MBC,4000047254,2003122.00
Department for Education,DEPARTMENT FOR EDUCATION,24-Feb-11,CURRENT GRANTS,Children Young People and Families Early Years Extended Schools and Special Needs,WALSALL MBC,4000047254,613810.00
Department for Education,DEPARTMENT FOR EDUCATION,24-Feb-11,CURRENT GRANTS,Children Young People and Families Early Years Extended Schools and Special Needs,WARWICKSHIRE COUNTY COUNCIL,4000047255,424200.00
Department for Education,DEPARTMENT FOR EDUCATION,24-Feb-11,CAPITAL GRANTS,Children Young People and Families Early Years Extended Schools and Special Needs,WARWICKSHIRE COUNTY COUNCIL,4000047255,52527.00
Department for Education,DEPARTMENT FOR EDUCATION,24-Feb-11,CURRENT GRANTS,Children Young People and Families Early Years Extended Schools and Special Needs,WARWICKSHIRE COUNTY COUNCIL,4000047255,29787.00
Department for Education,DEPARTMENT FOR EDUCATION,24-Feb-11,CURRENT GRANTS,Children Young People and Families Early Years Extended Schools and Special Needs,WARWICKSHIRE COUNTY COUNCIL,4000047255,37630.00
Department for Education,DEPARTMENT FOR EDUCATION,24-Feb-11,CURRENT GRANTS,Children Young People and Families Early Years Extended Schools and Special Needs,WARWICKSHIRE COUNTY COUNCIL,4000047255,2787328.00
Department for Education,DEPARTMENT FOR EDUCATION,24-Feb-11,CURRENT GRANTS,Children Young People and Families Early Years Extended Schools and Special Needs,WARWICKSHIRE COUNTY COUNCIL,4000047255,238999.00
Department for Education,DEPARTMENT FOR EDUCATION,24-Feb-11,CURRENT GRANTS,Children Young People and Families Early Years Extended Schools and Special Needs,WEST BERKSHIRE COUNCIL,4000047256,129125.00
Department for Education,DEPARTMENT FOR EDUCATION,24-Feb-11,CAPITAL GRANTS,Children Young People and Families Early Years Extended Schools and Special Needs,WEST BERKSHIRE COUNCIL,4000047256,3387.00
Department for Education,DEPARTMENT FOR EDUCATION,24-Feb-11,CURRENT GRANTS,Children Young People and Families Early Years Extended Schools and Special Needs,WEST BERKSHIRE COUNCIL,4000047256,14893.00
Department for Education,DEPARTMENT FOR EDUCATION,24-Feb-11,CURRENT GRANTS,Children Young People and Families Early Years Extended Schools and Special Needs,WEST BERKSHIRE COUNCIL,4000047256,-40299.00
Department for Education,DEPARTMENT FOR EDUCATION,24-Feb-11,CURRENT GRANTS,Children Young People and Families Early Years Extended Schools and Special Needs,WEST BERKSHIRE COUNCIL,4000047256,688492.00
Department for Education,DEPARTMENT FOR EDUCATION,24-Feb-11,CURRENT GRANTS,Children Young People and Families Early Years Extended Schools and Special Needs,WIGAN MBC,4000047257,285134.00
Department for Education,DEPARTMENT FOR EDUCATION,24-Feb-11,CAPITAL GRANTS,Children Young People and Families Early Years Extended Schools and Special Needs,WIGAN MBC,4000047257,103275.00
Department for Education,DEPARTMENT FOR EDUCATION,24-Feb-11,CURRENT GRANTS,Children Young People and Families Early Years Extended Schools and Special Needs,WIGAN MBC,4000047257,22340.00
Department for Education,DEPARTMENT FOR EDUCATION,24-Feb-11,CURRENT GRANTS,Children Young People and Families Early Years Extended Schools and Special Needs,WIGAN MBC,4000047257,22120.00
Department for Education,DEPARTMENT FOR EDUCATION,24-Feb-11,CURRENT GRANTS,Children Young People and Families Early Years Extended Schools and Special Needs,WIGAN MBC,4000047257,2190069.00
Department for Education,DEPARTMENT FOR EDUCATION,24-Feb-11,CURRENT GRANTS,Children Young People and Families Early Years Extended Schools and Special Needs,WIGAN MBC,4000047257,228624.00
Department for Education,DEPARTMENT FOR EDUCATION,24-Feb-11,CURRENT GRANTS,Children Young People and Families Early Years Extended Schools and Special Needs,WILTSHIRE COUNCIL,4000047258,362925.00
Department for Education,DEPARTMENT FOR EDUCATION,24-Feb-11,CAPITAL GRANTS,Children Young People and Families Early Years Extended Schools and Special Needs,WILTSHIRE COUNCIL,4000047258,-40992.00
Department for Education,DEPARTMENT FOR EDUCATION,24-Feb-11,CURRENT GRANTS,Children Young People and Families Early Years Extended Schools and Special Needs,WILTSHIRE COUNCIL,4000047258,29787.00
Department for Education,DEPARTMENT FOR EDUCATION,24-Feb-11,CURRENT GRANTS,Children Young People and Families Early Years Extended Schools and Special Needs,WILTSHIRE COUNCIL,4000047258,21383.00
Department for Education,DEPARTMENT FOR EDUCATION,24-Feb-11,CURRENT GRANTS,Children Young People and Families Early Years Extended Schools and Special Needs,WILTSHIRE COUNCIL,4000047258,2618309.00
Department for Education,DEPARTMENT FOR EDUCATION,24-Feb-11,CURRENT GRANTS,Children Young People and Families Early Years Extended Schools and Special Needs,WOKINGHAM BOROUGH COUNCIL,4000047259,133425.00
Department for Education,DEPARTMENT FOR EDUCATION,24-Feb-11,CAPITAL GRANTS,Children Young People and Families Early Years Extended Schools and Special Needs,WOKINGHAM BOROUGH COUNCIL,4000047259,46677.00
Department for Education,DEPARTMENT FOR EDUCATION,24-Feb-11,CURRENT GRANTS,Children Young People and Families Early Years Extended Schools and Special Needs,WOKINGHAM BOROUGH COUNCIL,4000047259,14893.00
Department for Education,DEPARTMENT FOR EDUCATION,24-Feb-11,CURRENT GRANTS,Children Young People and Families Early Years Extended Schools and Special Needs,WOKINGHAM BOROUGH COUNCIL,4000047259,-31051.00
Department for Education,DEPARTMENT FOR EDUCATION,24-Feb-11,CURRENT GRANTS,Children Young People and Families Early Years Extended Schools and Special Needs,WOKINGHAM BOROUGH COUNCIL,4000047259,703007.00
Department for Education,DEPARTMENT FOR EDUCATION,24-Feb-11,CURRENT GRANTS,Children Young People and Families Early Years Extended Schools and Special Needs,WOLVERHAMPTON CITY COUNCIL,4000047260,145421.00
Department for Education,DEPARTMENT FOR EDUCATION,24-Feb-11,CAPITAL GRANTS,Children Young People and Families Early Years Extended Schools and Special Needs,WOLVERHAMPTON CITY COUNCIL,4000047260,-42646.00
Department for Education,DEPARTMENT FOR EDUCATION,24-Feb-11,CURRENT GRANTS,Children Young People and Families Early Years Extended Schools and Special Needs,WOLVERHAMPTON CITY COUNCIL,4000047260,22340.00
Department for Education,DEPARTMENT FOR EDUCATION,24-Feb-11,CURRENT GRANTS,Children Young People and Families Early Years Extended Schools and Special Needs,WOLVERHAMPTON CITY COUNCIL,4000047260,23453.00
Department for Education,DEPARTMENT FOR EDUCATION,24-Feb-11,CURRENT GRANTS,Children Young People and Families Early Years Extended Schools and Special Needs,WOLVERHAMPTON CITY COUNCIL,4000047260,1503770.00
Department for Education,DEPARTMENT FOR EDUCATION,24-Feb-11,CURRENT GRANTS,Children Young People and Families Early Years Extended Schools and Special Needs,WOLVERHAMPTON CITY COUNCIL,4000047260,523902.00
Department for Education,DEPARTMENT FOR EDUCATION,24-Feb-11,CURRENT GRANTS,Children Young People and Families Early Years Extended Schools and Special Needs,WORCESTERSHIRE COUNTY COUNCIL,4000047261,475750.00
Department for Education,DEPARTMENT FOR EDUCATION,24-Feb-11,CAPITAL GRANTS,Children Young People and Families Early Years Extended Schools and Special Needs,WORCESTERSHIRE COUNTY COUNCIL,4000047261,115950.00
Department for Education,DEPARTMENT FOR EDUCATION,24-Feb-11,CURRENT GRANTS,Children Young People and Families Early Years Extended Schools and Special Needs,WORCESTERSHIRE COUNTY COUNCIL,4000047261,29787.00
Department for Education,DEPARTMENT FOR EDUCATION,24-Feb-11,CURRENT GRANTS,Children Young People and Families Early Years Extended Schools and Special Needs,WORCESTERSHIRE COUNTY COUNCIL,4000047261,82794.00
Department for Education,DEPARTMENT FOR EDUCATION,24-Feb-11,CURRENT GRANTS,Children Young People and Families Early Years Extended Schools and Special Needs,WORCESTERSHIRE COUNTY COUNCIL,4000047261,2920148.00
Department for Education,DEPARTMENT FOR EDUCATION,24-Feb-11,CURRENT GRANTS,Children Young People and Families Early Years Extended Schools and Special Needs,WORCESTERSHIRE COUNTY COUNCIL,4000047261,342936.00
Department for Education,DEPARTMENT FOR EDUCATION,24-Feb-11,CURRENT GRANTS,Children Young People and Families Early Years Extended Schools and Special Needs,YORK CITY COUNCIL,4000047262,118200.00
Department for Education,DEPARTMENT FOR EDUCATION,24-Feb-11,CAPITAL GRANTS,Children Young People and Families Early Years Extended Schools and Special Needs,YORK CITY COUNCIL,4000047262,2833.00
Department for Education,DEPARTMENT FOR EDUCATION,24-Feb-11,CURRENT GRANTS,Children Young People and Families Early Years Extended Schools and Special Needs,YORK CITY COUNCIL,4000047262,14893.00
Department for Education,DEPARTMENT FOR EDUCATION,24-Feb-11,CURRENT GRANTS,Children Young People and Families Early Years Extended Schools and Special Needs,YORK CITY COUNCIL,4000047262,-342590.00
Department for Education,DEPARTMENT FOR EDUCATION,24-Feb-11,CURRENT GRANTS,Children Young People and Families Early Years Extended Schools and Special Needs,YORK CITY COUNCIL,4000047262,887826.00
Department for Education,DEPARTMENT FOR EDUCATION,24-Feb-11,CURRENT GRANTS,Children Young People and Families Early Years Extended Schools and Special Needs,YORK CITY COUNCIL,4000047262,114312.00
Department for Education,DEPARTMENT FOR EDUCATION,24-Feb-11,CAPITAL GRANTS,Children Young People and Families Early Years Extended Schools and Special Needs,BEDFORD BOROUGH COUNCIL,4000047301,504888.00
Department for Education,DEPARTMENT FOR EDUCATION,24-Feb-11,CAPITAL GRANTS,Children Young People and Families Early Years Extended Schools and Special Needs,BOURNEMOUTH BOROUGH COUNCIL,4000047302,175208.00
Department for Education,DEPARTMENT FOR EDUCATION,24-Feb-11,CAPITAL GRANTS,Children Young People and Families Early Years Extended Schools and Special Needs,BURY MBC,4000047303,217553.00
Department for Education,DEPARTMENT FOR EDUCATION,24-Feb-11,CAPITAL GRANTS,Children Young People and Families Early Years Extended Schools and Special Needs,CALDERDALE MBC,4000047304,70241.00
Department for Education,DEPARTMENT FOR EDUCATION,24-Feb-11,CAPITAL GRANTS,Children Young People and Families Early Years Extended Schools and Special Needs,CAMBRIDGESHIRE COUNTY COUNCIL,4000047305,2099277.00
Department for Education,DEPARTMENT FOR EDUCATION,24-Feb-11,CAPITAL GRANTS,Children Young People and Families Early Years Extended Schools and Special Needs,CENTRAL BEDFORDSHIRE COUNCIL,4000047306,625760.00
Department for Education,DEPARTMENT FOR EDUCATION,24-Feb-11,CAPITAL GRANTS,Children Young People and Families Early Years Extended Schools and Special Needs,CHESHIRE WEST & CHESTER COUNCIL,4000047307,218090.00
Department for Education,DEPARTMENT FOR EDUCATION,24-Feb-11,CAPITAL GRANTS,Children Young People and Families Early Years Extended Schools and Special Needs,CITY OF BRADFORD METROPOLITAN DISTRICT COUNCIL,4000047308,2462961.00
Department for Education,DEPARTMENT FOR EDUCATION,24-Feb-11,CAPITAL GRANTS,Children Young People and Families Early Years Extended Schools and Special Needs,CORNWALL COUNCIL,4000047309,1859138.00
Department for Education,DEPARTMENT FOR EDUCATION,24-Feb-11,CAPITAL GRANTS,Children Young People and Families Early Years Extended Schools and Special Needs,COVENTRY CITY COUNCIL,4000047310,642065.00
Department for Education,DEPARTMENT FOR EDUCATION,24-Feb-11,CAPITAL GRANTS,Children Young People and Families Early Years Extended Schools and Special Needs,DEVON COUNTY COUNCIL,4000047311,2667644.00
Department for Education,DEPARTMENT FOR EDUCATION,24-Feb-11,CAPITAL GRANTS,Children Young People and Families Early Years Extended Schools and Special Needs,DONCASTER MBC,4000047312,239738.00
Department for Education,DEPARTMENT FOR EDUCATION,24-Feb-11,CAPITAL GRANTS,Children Young People and Families Early Years Extended Schools and Special Needs,DORSET COUNTY COUNCIL,4000047313,1175933.00
Department for Education,DEPARTMENT FOR EDUCATION,24-Feb-11,CAPITAL GRANTS,Children Young People and Families Early Years Extended Schools and Special Needs,DUDLEY MBC,4000047314,220000.00
Department for Education,DEPARTMENT FOR EDUCATION,24-Feb-11,CAPITAL GRANTS,Children Young People and Families Early Years Extended Schools and Special Needs,EAST RIDING OF YORKSHIRE,4000047315,680292.00
Department for Education,DEPARTMENT FOR EDUCATION,24-Feb-11,CAPITAL GRANTS,Children Young People and Families Early Years Extended Schools and Special Needs,GLOUCESTERSHIRE COUNTY COUNCIL,4000047316,932745.00
Department for Education,DEPARTMENT FOR EDUCATION,24-Feb-11,CAPITAL GRANTS,Children Young People and Families Early Years Extended Schools and Special Needs,HAMPSHIRE COUNTY COUNCIL,4000047317,3475123.00
Department for Education,DEPARTMENT FOR EDUCATION,24-Feb-11,CAPITAL GRANTS,Children Young People and Families Early Years Extended Schools and Special Needs,HEREFORDSHIRE COUNCIL,4000047318,205429.00
Department for Education,DEPARTMENT FOR EDUCATION,24-Feb-11,CAPITAL GRANTS,Children Young People and Families Early Years Extended Schools and Special Needs,KENT COUNTY COUNCIL,4000047319,2817653.00
Department for Education,DEPARTMENT FOR EDUCATION,24-Feb-11,CAPITAL GRANTS,Children Young People and Families Early Years Extended Schools and Special Needs,LEEDS CITY COUNCIL,4000047320,849788.00
Department for Education,DEPARTMENT FOR EDUCATION,24-Feb-11,CAPITAL GRANTS,Children Young People and Families Early Years Extended Schools and Special Needs,LEICESTERSHIRE COUNTY COUNCIL,4000047321,1390365.00
Department for Education,DEPARTMENT FOR EDUCATION,24-Feb-11,CAPITAL GRANTS,Children Young People and Families Early Years Extended Schools and Special Needs,LIVERPOOL CITY COUNCIL,4000047322,72247.00
Department for Education,DEPARTMENT FOR EDUCATION,24-Feb-11,CAPITAL GRANTS,Children Young People and Families Early Years Extended Schools and Special Needs,LONDON BOROUGH OF BARNET COUNCIL,4000047323,587452.00
Department for Education,DEPARTMENT FOR EDUCATION,24-Feb-11,CAPITAL GRANTS,Children Young People and Families Early Years Extended Schools and Special Needs,LONDON BOROUGH OF GREENWICH,4000047324,1472547.00
Department for Education,DEPARTMENT FOR EDUCATION,24-Feb-11,CAPITAL GRANTS,Children Young People and Families Early Years Extended Schools and Special Needs,LONDON BOROUGH OF ISLINGTON COUNCIL,4000047325,626951.00
Department for Education,DEPARTMENT FOR EDUCATION,24-Feb-11,CAPITAL GRANTS,Children Young People and Families Early Years Extended Schools and Special Needs,LONDON BOROUGH OF NEWHAM,4000047326,670831.00
Department for Education,DEPARTMENT FOR EDUCATION,24-Feb-11,CAPITAL GRANTS,Children Young People and Families Early Years Extended Schools and Special Needs,LONDON BOROUGH OF SOUTHWARK COUNCIL,4000047327,1127871.00
Department for Education,DEPARTMENT FOR EDUCATION,24-Feb-11,CAPITAL GRANTS,Children Young People and Families Early Years Extended Schools and Special Needs,LONDON BOROUGH OF SUTTON,4000047328,400306.00
Department for Education,DEPARTMENT FOR EDUCATION,24-Feb-11,CAPITAL GRANTS,Children Young People and Families Early Years Extended Schools and Special Needs,LONDON BOROUGH OF WALTHAM FOREST COUNCIL,4000047329,555284.00
Department for Education,DEPARTMENT FOR EDUCATION,24-Feb-11,CAPITAL GRANTS,Children Young People and Families Early Years Extended Schools and Special Needs,LUTON BOROUGH COUNCIL,4000047330,562925.00
Department for Education,DEPARTMENT FOR EDUCATION,24-Feb-11,CAPITAL GRANTS,Children Young People and Families Early Years Extended Schools and Special Needs,MANCHESTER CITY COUNCIL,4000047331,387273.00
Department for Education,DEPARTMENT FOR EDUCATION,24-Feb-11,CAPITAL GRANTS,Children Young People and Families Early Years Extended Schools and Special Needs,MEDWAY COUNCIL,4000047332,158040.00
Department for Education,DEPARTMENT FOR EDUCATION,24-Feb-11,CAPITAL GRANTS,Children Young People and Families Early Years Extended Schools and Special Needs,NORTH YORKSHIRE COUNTY COUNCIL,4000047333,1712518.00
Department for Education,DEPARTMENT FOR EDUCATION,24-Feb-11,CAPITAL GRANTS,Children Young People and Families Early Years Extended Schools and Special Needs,NORTHAMPTONSHIRE COUNTY COUNCIL,4000047334,3145298.00
Department for Education,DEPARTMENT FOR EDUCATION,24-Feb-11,CAPITAL GRANTS,Children Young People and Families Early Years Extended Schools and Special Needs,NORTHUMBERLAND COUNTY COUNCIL,4000047335,93662.00
Department for Education,DEPARTMENT FOR EDUCATION,24-Feb-11,CAPITAL GRANTS,Children Young People and Families Early Years Extended Schools and Special Needs,NOTTINGHAM CITY COUNCIL,4000047336,227849.00
Department for Education,DEPARTMENT FOR EDUCATION,24-Feb-11,CAPITAL GRANTS,Children Young People and Families Early Years Extended Schools and Special Needs,NOTTINGHAMSHIRE COUNTY COUNCIL,4000047337,207911.00
Department for Education,DEPARTMENT FOR EDUCATION,24-Feb-11,CAPITAL GRANTS,Children Young People and Families Early Years Extended Schools and Special Needs,PORTSMOUTH CITY COUNCIL,4000047338,948104.00
Department for Education,DEPARTMENT FOR EDUCATION,24-Feb-11,CAPITAL GRANTS,Children Young People and Families Early Years Extended Schools and Special Needs,ROCHDALE MBC,4000047339,855734.00
Department for Education,DEPARTMENT FOR EDUCATION,24-Feb-11,CAPITAL GRANTS,Children Young People and Families Early Years Extended Schools and Special Needs,ROYAL BOROUGH OF KINGSTON UPON THAMES COUNCIL,4000047340,485331.00
Department for Education,DEPARTMENT FOR EDUCATION,24-Feb-11,CAPITAL GRANTS,Children Young People and Families Early Years Extended Schools and Special Needs,SALFORD CITY COUNCIL,4000047341,322085.00
Department for Education,DEPARTMENT FOR EDUCATION,24-Feb-11,CAPITAL GRANTS,Children Young People and Families Early Years Extended Schools and Special Needs,SHEFFIELD CITY COUNCIL,4000047342,1357061.00
Department for Education,DEPARTMENT FOR EDUCATION,24-Feb-11,CAPITAL GRANTS,Children Young People and Families Early Years Extended Schools and Special Needs,SHROPSHIRE COUNCIL,4000047343,322000.00
Department for Education,DEPARTMENT FOR EDUCATION,24-Feb-11,CAPITAL GRANTS,Children Young People and Families Early Years Extended Schools and Special Needs,SOLIHULL MBC,4000047344,235318.00
Department for Education,DEPARTMENT FOR EDUCATION,24-Feb-11,CAPITAL GRANTS,Children Young People and Families Early Years Extended Schools and Special Needs,SOUTH GLOUCEST,4000047345,672491.00
Department for Education,DEPARTMENT FOR EDUCATION,24-Feb-11,CAPITAL GRANTS,Children Young People and Families Early Years Extended Schools and Special Needs,SOUTHEND ON SEA BOROUGH COUNCIL,4000047347,355569.00
Department for Education,DEPARTMENT FOR EDUCATION,24-Feb-11,CAPITAL GRANTS,Children Young People and Families Early Years Extended Schools and Special Needs,ST HELENS MBC,4000047348,796830.00
Department for Education,DEPARTMENT FOR EDUCATION,24-Feb-11,CAPITAL GRANTS,Children Young People and Families Early Years Extended Schools and Special Needs,STAFFORDSHIRE COUNCIL,4000047349,5442831.00
Department for Education,DEPARTMENT FOR EDUCATION,24-Feb-11,CAPITAL GRANTS,Children Young People and Families Early Years Extended Schools and Special Needs,STOCKPORT MBC,4000047350,388891.00
Department for Education,DEPARTMENT FOR EDUCATION,24-Feb-11,CAPITAL GRANTS,Children Young People and Families Early Years Extended Schools and Special Needs,SUFFOLK COUNTY COUNCIL,4000047352,284496.00
Department for Education,DEPARTMENT FOR EDUCATION,24-Feb-11,CAPITAL GRANTS,Children Young People and Families Early Years Extended Schools and Special Needs,SWINDON BOROUGH COUNCIL,4000047353,555862.00
Department for Education,DEPARTMENT FOR EDUCATION,24-Feb-11,CAPITAL GRANTS,Children Young People and Families Early Years Extended Schools and Special Needs,TELFORD & WREKIN COUNCIL,4000047354,234889.00
Department for Education,DEPARTMENT FOR EDUCATION,24-Feb-11,CAPITAL GRANTS,Children Young People and Families Early Years Extended Schools and Special Needs,THE ROYAL BOROUGH OF KENSINGTON & CHELSEA COUNCIL,4000047355,60000.00
Department for Education,DEPARTMENT FOR EDUCATION,24-Feb-11,CAPITAL GRANTS,Children Young People and Families Early Years Extended Schools and Special Needs,TORBAY COUNCIL,4000047356,394757.00
Department for Education,DEPARTMENT FOR EDUCATION,24-Feb-11,CAPITAL GRANTS,Children Young People and Families Early Years Extended Schools and Special Needs,WAKEFIELD MDC,4000047357,160480.00
Department for Education,DEPARTMENT FOR EDUCATION,24-Feb-11,CAPITAL GRANTS,Children Young People and Families Early Years Extended Schools and Special Needs,WALSALL MBC,4000047358,976978.00
Department for Education,DEPARTMENT FOR EDUCATION,24-Feb-11,CAPITAL GRANTS,Children Young People and Families Early Years Extended Schools and Special Needs,WARWICKSHIRE COUNTY COUNCIL,4000047359,2158188.00
Department for Education,DEPARTMENT FOR EDUCATION,24-Feb-11,CAPITAL GRANTS,Children Young People and Families Early Years Extended Schools and Special Needs,WIGAN MBC,4000047360,118977.00
Department for Education,DEPARTMENT FOR EDUCATION,24-Feb-11,CAPITAL GRANTS,Children Young People and Families Early Years Extended Schools and Special Needs,WOLVERHAMPTON CITY COUNCIL,4000047361,998103.00
Department for Education,DEPARTMENT FOR EDUCATION,24-Feb-11,CAPITAL GRANTS,Children Young People and Families Early Years Extended Schools and Special Needs,WORCESTERSHIRE COUNTY COUNCIL,4000047362,1812766.00
Department for Education,DEPARTMENT FOR EDUCATION,24-Feb-11,CAPITAL GRANTS,Children Young People and Families Early Years Extended Schools and Special Needs,CUMBRIA COUNTY COUNCIL,4000047373,1987570.00
Department for Education,DEPARTMENT FOR EDUCATION,24-Feb-11,CAPITAL GRANTS,Children Young People and Families Early Years Extended Schools and Special Needs,LONDON BOROUGH OF HOUNSLOW COUNCIL,4000047391,64502.00
Department for Education,DEPARTMENT FOR EDUCATION,24-Feb-11,CONTRACT PROGRAMME EXPENDITURE,Supporting Children and Young People Group 2,NATIONAL TREATMENT AGENCY,4000047398,86000.00
Department for Education,DEPARTMENT FOR EDUCATION,24-Feb-11,CAPITAL GRANTS,Children Young People and Families Early Years Extended Schools and Special Needs,NORTH LINCOLNSHIRE COUNCIL,4000047401,110663.00
Department for Education,DEPARTMENT FOR EDUCATION,24-Feb-11,CAPITAL GRANTS,Children Young People and Families Early Years Extended Schools and Special Needs,SANDWELL MBC,4000047409,332926.00
Department for Education,DEPARTMENT FOR EDUCATION,24-Feb-11,CAPITAL GRANTS,Children Young People and Families Early Years Extended Schools and Special Needs,THE LONDON BOROUGH OF HACKNEY,4000047413,797271.00
Department for Education,DEPARTMENT FOR EDUCATION,24-Feb-11,CONTRACT PROGRAMME EXPENDITURE,Children Young People and Families Group,THE TAVISTOCK INSTITUTE OF HUMAN RELATIONS,4000047414,51575.75
Department for Education,DEPARTMENT FOR EDUCATION,24-Feb-11,CAPITAL GRANTS,Supporting Children and Young People Group 2,BARNSLEY MBC,4000047425,186898.13
Department for Education,DEPARTMENT FOR EDUCATION,24-Feb-11,CAPITAL GRANTS,Supporting Children and Young People Group 2,BEDFORD BOROUGH COUNCIL,4000047426,166700.00
Department for Education,DEPARTMENT FOR EDUCATION,24-Feb-11,CAPITAL GRANTS,Supporting Children and Young People Group 2,BIRMINGHAM CITY COUNCIL,4000047427,193589.38
Department for Education,DEPARTMENT FOR EDUCATION,24-Feb-11,CAPITAL GRANTS,Supporting Children and Young People Group 2,BLACKPOOL BOROUGH COUNCIL,4000047428,277163.75
Department for Education,DEPARTMENT FOR EDUCATION,24-Feb-11,CAPITAL GRANTS,Supporting Children and Young People Group 2,BOLTON MBC,4000047429,137565.94
Department for Education,DEPARTMENT FOR EDUCATION,24-Feb-11,CAPITAL GRANTS,Supporting Children and Young People Group 2,BOURNEMOUTH BOROUGH COUNCIL,4000047430,185862.50
Department for Education,DEPARTMENT FOR EDUCATION,24-Feb-11,CAPITAL GRANTS,Supporting Children and Young People Group 2,BRACKNELL FOREST BOROUGH COUNCIL,4000047431,184402.19
Department for Education,DEPARTMENT FOR EDUCATION,24-Feb-11,CAPITAL GRANTS,Supporting Children and Young People Group 2,BRIGHTON & HOVE CITY COUNCIL,4000047432,186730.32
Department for Education,DEPARTMENT FOR EDUCATION,24-Feb-11,CAPITAL GRANTS,Supporting Children and Young People Group 2,BUCKINGHAMSHIRE COUNTY COUNCIL,4000047433,298302.50
Department for Education,DEPARTMENT FOR EDUCATION,24-Feb-11,CAPITAL GRANTS,Supporting Children and Young People Group 2,BURY MBC,4000047434,137055.63
Department for Education,DEPARTMENT FOR EDUCATION,24-Feb-11,CAPITAL GRANTS,Supporting Children and Young People Group 2,CALDERDALE MBC,4000047435,137178.75
Department for Education,DEPARTMENT FOR EDUCATION,24-Feb-11,CAPITAL GRANTS,Supporting Children and Young People Group 2,CENTRAL BEDFORDSHIRE COUNCIL,4000047436,218205.00
Department for Education,DEPARTMENT FOR EDUCATION,24-Feb-11,CAPITAL GRANTS,Supporting Children and Young People Group 2,CHESHIRE EAST COUNCIL,4000047437,166700.00
Department for Education,DEPARTMENT FOR EDUCATION,24-Feb-11,CAPITAL GRANTS,Supporting Children and Young People Group 2,CHESHIRE WEST & CHESTER COUNCIL,4000047438,166700.00
Department for Education,DEPARTMENT FOR EDUCATION,24-Feb-11,CAPITAL GRANTS,Supporting Children and Young People Group 2,CITY OF BRADFORD METROPOLITAN DISTRICT COUNCIL,4000047439,189915.94
Department for Education,DEPARTMENT FOR EDUCATION,24-Feb-11,CAPITAL GRANTS,Supporting Children and Young People Group 2,CITY OF WESTMINSTER,4000047440,188878.75
Department for Education,DEPARTMENT FOR EDUCATION,24-Feb-11,CAPITAL GRANTS,Supporting Children and Young People Group 2,CORNWALL COUNCIL,4000047441,276809.38
Department for Education,DEPARTMENT FOR EDUCATION,24-Feb-11,CAPITAL GRANTS,Supporting Children and Young People Group 2,CORPORATION OF LONDON,4000047442,31250.00
Department for Education,DEPARTMENT FOR EDUCATION,24-Feb-11,CAPITAL GRANTS,Supporting Children and Young People Group 2,COUNCIL OF THE ISLES OF SCILLY,4000047443,40000.00
Department for Education,DEPARTMENT FOR EDUCATION,24-Feb-11,CAPITAL GRANTS,Supporting Children and Young People Group 2,COVENTRY CITY COUNCIL,4000047444,137503.75
Department for Education,DEPARTMENT FOR EDUCATION,24-Feb-11,CAPITAL GRANTS,Supporting Children and Young People Group 2,CUMBRIA COUNTY COUNCIL,4000047445,288423.00
Department for Education,DEPARTMENT FOR EDUCATION,24-Feb-11,CAPITAL GRANTS,Supporting Children and Young People Group 2,DARLINGTON BOROUGH COUNCIL,4000047446,186848.44
Department for Education,DEPARTMENT FOR EDUCATION,24-Feb-11,CAPITAL GRANTS,Supporting Children and Young People Group 2,DERBY CITY COUNCIL,4000047447,137059.07
Department for Education,DEPARTMENT FOR EDUCATION,24-Feb-11,CAPITAL GRANTS,Supporting Children and Young People Group 2,DERBYSHIRE COUNTY COUNCIL,4000047448,188473.75
Department for Education,DEPARTMENT FOR EDUCATION,24-Feb-11,CAPITAL GRANTS,Supporting Children and Young People Group 2,DEVON COUNTY COUNCIL,4000047449,288000.00
Department for Education,DEPARTMENT FOR EDUCATION,24-Feb-11,CAPITAL GRANTS,Supporting Children and Young People Group 2,DONCASTER MBC,4000047450,188057.82
Department for Education,DEPARTMENT FOR EDUCATION,24-Feb-11,CAPITAL GRANTS,Supporting Children and Young People Group 2,DORSET COUNTY COUNCIL,4000047451,204909.50
Department for Education,DEPARTMENT FOR EDUCATION,24-Feb-11,CAPITAL GRANTS,Supporting Children and Young People Group 2,DURHAM COUNTY COUNCIL,4000047452,301789.50
Department for Education,DEPARTMENT FOR EDUCATION,24-Feb-11,CAPITAL GRANTS,Supporting Children and Young People Group 2,ESSEX COUNTY COUNCIL,4000047453,307479.00
Department for Education,DEPARTMENT FOR EDUCATION,24-Feb-11,CAPITAL GRANTS,Supporting Children and Young People Group 2,GATESHEAD MBC,4000047454,137287.19
Department for Education,DEPARTMENT FOR EDUCATION,24-Feb-11,CAPITAL GRANTS,Supporting Children and Young People Group 2,GLOUCESTERSHIRE COUNTY COUNCIL,4000047455,255305.50
Department for Education,DEPARTMENT FOR EDUCATION,24-Feb-11,CAPITAL GRANTS,Supporting Children and Young People Group 2,HALTON BOROUGH COUNCIL,4000047456,136805.32
Department for Education,DEPARTMENT FOR EDUCATION,24-Feb-11,CAPITAL GRANTS,Supporting Children and Young People Group 2,HAMPSHIRE C C,4000047457,140205.00
Department for Education,DEPARTMENT FOR EDUCATION,24-Feb-11,CAPITAL GRANTS,Supporting Children and Young People Group 2,HARTLEPOOL BOROUGH COUNCIL,4000047458,231419.00
Department for Education,DEPARTMENT FOR EDUCATION,24-Feb-11,CAPITAL GRANTS,Supporting Children and Young People Group 2,HEREFORDSHIRE COUNCIL,4000047459,193600.00
Department for Education,DEPARTMENT FOR EDUCATION,24-Feb-11,CAPITAL GRANTS,Supporting Children and Young People Group 2,HERTFORDSHIRE,4000047460,190535.00
Department for Education,DEPARTMENT FOR EDUCATION,24-Feb-11,CAPITAL GRANTS,Supporting Children and Young People Group 2,ISLE OF WIGHT COUNCIL,4000047461,197500.00
Department for Education,DEPARTMENT FOR EDUCATION,24-Feb-11,CAPITAL GRANTS,Supporting Children and Young People Group 2,KENT COUNTY COUNCIL,4000047462,193165.63
Department for Education,DEPARTMENT FOR EDUCATION,24-Feb-11,CAPITAL GRANTS,Supporting Children and Young People Group 2,KINGSTON UPON HULL COUNCIL,4000047463,188755.63
Department for Education,DEPARTMENT FOR EDUCATION,24-Feb-11,CAPITAL GRANTS,Supporting Children and Young People Group 2,KIRKLEES COUNCIL,4000047464,277024.50
Department for Education,DEPARTMENT FOR EDUCATION,24-Feb-11,CAPITAL GRANTS,Supporting Children and Young People Group 2,LANCASHIRE COUNTY COUNCIL,4000047465,241798.50
Department for Education,DEPARTMENT FOR EDUCATION,24-Feb-11,CAPITAL GRANTS,Supporting Children and Young People Group 2,LEEDS CITY COUNCIL,4000047466,189722.50
Department for Education,DEPARTMENT FOR EDUCATION,24-Feb-11,CAPITAL GRANTS,Supporting Children and Young People Group 2,LEICESTER CITY COUNCIL,4000047467,141937.82
Department for Education,DEPARTMENT FOR EDUCATION,24-Feb-11,CAPITAL GRANTS,Supporting Children and Young People Group 2,LEICESTERSHIRE COUNTY COUNCIL,4000047468,301925.00
Department for Education,DEPARTMENT FOR EDUCATION,24-Feb-11,CAPITAL GRANTS,Supporting Children and Young People Group 2,LINCOLNSHIRE COUNTY COUNCIL,4000047469,206588.00
Department for Education,DEPARTMENT FOR EDUCATION,24-Feb-11,CAPITAL GRANTS,Supporting Children and Young People Group 2,LIVERPOOL CITY COUNCIL,4000047470,188711.25
Department for Education,DEPARTMENT FOR EDUCATION,24-Feb-11,CAPITAL GRANTS,Supporting Children and Young People Group 2,LONDON BOROUGH OF BARKING & DAGENHAM COUNCIL,4000047471,215037.50
Department for Education,DEPARTMENT FOR EDUCATION,24-Feb-11,CAPITAL GRANTS,Supporting Children and Young People Group 2,LONDON BOROUGH OF BARNET COUNCIL,4000047472,186943.44
Department for Education,DEPARTMENT FOR EDUCATION,24-Feb-11,CAPITAL GRANTS,Supporting Children and Young People Group 2,LONDON BOROUGH OF BEXLEY COUNCIL,4000047473,281500.00
Department for Education,DEPARTMENT FOR EDUCATION,24-Feb-11,CAPITAL GRANTS,Supporting Children and Young People Group 2,LONDON BOROUGH OF BRENT,4000047474,138147.82
Department for Education,DEPARTMENT FOR EDUCATION,24-Feb-11,CAPITAL GRANTS,Supporting Children and Young People Group 2,LONDON BOROUGH OF BROMLEY COUNCIL,4000047475,185973.44
Department for Education,DEPARTMENT FOR EDUCATION,24-Feb-11,CAPITAL GRANTS,Supporting Children and Young People Group 2,LONDON BOROUGH OF CROYDON COUNCIL,4000047476,137913.44
Department for Education,DEPARTMENT FOR EDUCATION,24-Feb-11,CAPITAL GRANTS,Supporting Children and Young People Group 2,LONDON BOROUGH OF EALING COUNCIL,4000047477,300177.00
Department for Education,DEPARTMENT FOR EDUCATION,24-Feb-11,CAPITAL GRANTS,Supporting Children and Young People Group 2,LONDON BOROUGH OF GREENWICH,4000047478,188805.94
Department for Education,DEPARTMENT FOR EDUCATION,24-Feb-11,CAPITAL GRANTS,Supporting Children and Young People Group 2,LONDON BOROUGH OF HAMMERSMITH & FULHAM COUNCIL,4000047479,263629.50
Department for Education,DEPARTMENT FOR EDUCATION,24-Feb-11,CAPITAL GRANTS,Supporting Children and Young People Group 2,LONDON BOROUGH OF HARINGEY,4000047480,188462.19
Department for Education,DEPARTMENT FOR EDUCATION,24-Feb-11,CAPITAL GRANTS,Supporting Children and Young People Group 2,LONDON BOROUGH OF HARROW COUNCIL,4000047481,297714.00
Department for Education,DEPARTMENT FOR EDUCATION,24-Feb-11,CAPITAL GRANTS,Supporting Children and Young People Group 2,LONDON BOROUGH OF HAVERING COUNCIL,4000047482,185672.19
Department for Education,DEPARTMENT FOR EDUCATION,24-Feb-11,CAPITAL GRANTS,Supporting Children and Young People Group 2,LONDON BOROUGH OF HILLINGDON  COUNCIL,4000047483,298581.50
Department for Education,DEPARTMENT FOR EDUCATION,24-Feb-11,CAPITAL GRANTS,Supporting Children and Young People Group 2,LONDON BOROUGH OF HOUNSLOW COUNCIL,4000047484,186974.07
Department for Education,DEPARTMENT FOR EDUCATION,24-Feb-11,CAPITAL GRANTS,Supporting Children and Young People Group 2,LONDON BOROUGH OF ISLINGTON,4000047485,143941.88
Department for Education,DEPARTMENT FOR EDUCATION,24-Feb-11,CAPITAL GRANTS,Supporting Children and Young People Group 2,LONDON BOROUGH OF LAMBETH COUNCIL,4000047486,298565.50
Department for Education,DEPARTMENT FOR EDUCATION,24-Feb-11,CAPITAL GRANTS,Supporting Children and Young People Group 2,LONDON BOROUGH OF LEWISHAM,4000047487,200681.50
Department for Education,DEPARTMENT FOR EDUCATION,24-Feb-11,CAPITAL GRANTS,Supporting Children and Young People Group 2,LONDON BOROUGH OF MERTON COUNCIL,4000047488,314618.75
Department for Education,DEPARTMENT FOR EDUCATION,24-Feb-11,CAPITAL GRANTS,Supporting Children and Young People Group 2,LONDON BOROUGH OF NEWHAM,4000047489,189831.57
Department for Education,DEPARTMENT FOR EDUCATION,24-Feb-11,CAPITAL GRANTS,Supporting Children and Young People Group 2,LONDON BOROUGH OF REDBRIDGE,4000047490,220489.50
Department for Education,DEPARTMENT FOR EDUCATION,24-Feb-11,CAPITAL GRANTS,Supporting Children and Young People Group 2,LONDON BOROUGH OF RICHMOND UPON THAMES,4000047491,184670.94
Department for Education,DEPARTMENT FOR EDUCATION,24-Feb-11,CAPITAL GRANTS,Supporting Children and Young People Group 2,LONDON BOROUGH OF SOUTHWARK COUNCIL,4000047492,189680.63
Department for Education,DEPARTMENT FOR EDUCATION,24-Feb-11,CAPITAL GRANTS,Supporting Children and Young People Group 2,LONDON BOROUGH OF SUTTON,4000047493,296470.00
Department for Education,DEPARTMENT FOR EDUCATION,24-Feb-11,CAPITAL GRANTS,Supporting Children and Young People Group 2,LONDON BOROUGH OF WALTHAM FOREST COUNCIL,4000047494,187926.88
Department for Education,DEPARTMENT FOR EDUCATION,24-Feb-11,CAPITAL GRANTS,Supporting Children and Young People Group 2,LONDON BOROUGH OF WANDSWORTH COUNCIL,4000047495,137805.00
Department for Education,DEPARTMENT FOR EDUCATION,24-Feb-11,CAPITAL GRANTS,Supporting Children and Young People Group 2,LUTON BOROUGH COUNCIL,4000047496,293299.00
Department for Education,DEPARTMENT FOR EDUCATION,24-Feb-11,CAPITAL GRANTS,Supporting Children and Young People Group 2,MANCHESTER CITY COUNCIL,4000047497,190159.07
Department for Education,DEPARTMENT FOR EDUCATION,24-Feb-11,CAPITAL GRANTS,Supporting Children and Young People Group 2,MEDWAY COUNCIL,4000047498,186809.07
Department for Education,DEPARTMENT FOR EDUCATION,24-Feb-11,CAPITAL GRANTS,Supporting Children and Young People Group 2,METROPOLITAN BOROUGH OF WIRRAL,4000047499,186995.32
Department for Education,DEPARTMENT FOR EDUCATION,24-Feb-11,CAPITAL GRANTS,Supporting Children and Young People Group 2,MIDDLESBROUGH COUNCIL,4000047500,227732.00
Department for Education,DEPARTMENT FOR EDUCATION,24-Feb-11,CAPITAL GRANTS,Supporting Children and Young People Group 2,MILTON KEYNES COUNCIL,4000047501,186067.50
Department for Education,DEPARTMENT FOR EDUCATION,24-Feb-11,CAPITAL GRANTS,Supporting Children and Young People Group 2,NEWCASTLE CITY COUNCIL,4000047502,278440.63
Department for Education,DEPARTMENT FOR EDUCATION,24-Feb-11,CAPITAL GRANTS,Supporting Children and Young People Group 2,NORFOLK COUNTY COUNCIL,4000047503,188858.13
Department for Education,DEPARTMENT FOR EDUCATION,24-Feb-11,CAPITAL GRANTS,Supporting Children and Young People Group 2,NORTH EAST LINCOLNSHIRE COUNCIL,4000047504,186732.19
Department for Education,DEPARTMENT FOR EDUCATION,24-Feb-11,CAPITAL GRANTS,Supporting Children and Young People Group 2,NORTH LINCOLNSHIRE COUNCIL,4000047505,296691.00
Department for Education,DEPARTMENT FOR EDUCATION,24-Feb-11,CAPITAL GRANTS,Supporting Children and Young People Group 2,NORTH SOMERSET COUNCIL,4000047506,184922.50
Department for Education,DEPARTMENT FOR EDUCATION,24-Feb-11,CAPITAL GRANTS,Supporting Children and Young People Group 2,NORTH YORKSHIRE COUNTY COUNCIL,4000047507,300169.50
Department for Education,DEPARTMENT FOR EDUCATION,24-Feb-11,CAPITAL GRANTS,Supporting Children and Young People Group 2,NORTHAMPTONSHIRE COUNTY COUNCIL,4000047508,221850.00
Department for Education,DEPARTMENT FOR EDUCATION,24-Feb-11,CAPITAL GRANTS,Supporting Children and Young People Group 2,NORTHUMBERLAND COUNTY COUNCIL,4000047509,220491.00
Department for Education,DEPARTMENT FOR EDUCATION,24-Feb-11,CAPITAL GRANTS,Supporting Children and Young People Group 2,NOTTINGHAMSHIRE COUNTY COUNCIL,4000047510,138450.94
Department for Education,DEPARTMENT FOR EDUCATION,24-Feb-11,CAPITAL GRANTS,Supporting Children and Young People Group 2,OLDHAM MBC,4000047511,275000.00
Department for Education,DEPARTMENT FOR EDUCATION,24-Feb-11,CAPITAL GRANTS,Supporting Children and Young People Group 2,OXFORDSHIRE COUNTY COUNCIL,4000047512,431129.00
Department for Education,DEPARTMENT FOR EDUCATION,24-Feb-11,CAPITAL GRANTS,Supporting Children and Young People Group 2,PETERBOROUGH CITY COUNCIL,4000047513,137021.88
Department for Education,DEPARTMENT FOR EDUCATION,24-Feb-11,CAPITAL GRANTS,Supporting Children and Young People Group 2,PLYMOUTH CITY COUNCIL,4000047514,137102.19
Department for Education,DEPARTMENT FOR EDUCATION,24-Feb-11,CAPITAL GRANTS,Supporting Children and Young People Group 2,POOLE BOROUGH COUNCIL,4000047515,185070.00
Department for Education,DEPARTMENT FOR EDUCATION,24-Feb-11,CAPITAL GRANTS,Supporting Children and Young People Group 2,READING BOROUGH COUNCIL,4000047516,151828.50
Department for Education,DEPARTMENT FOR EDUCATION,24-Feb-11,CAPITAL GRANTS,Supporting Children and Young People Group 2,REDCAR & CLEVELAND BOROUGH COUNCIL,4000047517,186942.50
Department for Education,DEPARTMENT FOR EDUCATION,24-Feb-11,CAPITAL GRANTS,Supporting Children and Young People Group 2,ROYAL BOROUGH OF KINGSTON UPON THAMES COUNCIL,4000047518,184656.57
Department for Education,DEPARTMENT FOR EDUCATION,24-Feb-11,CAPITAL GRANTS,Supporting Children and Young People Group 2,RUTLAND COUNTY COUNCIL,4000047519,31250.00
Department for Education,DEPARTMENT FOR EDUCATION,24-Feb-11,CAPITAL GRANTS,Supporting Children and Young People Group 2,SALFORD CITY COUNCIL,4000047520,187173.13
Department for Education,DEPARTMENT FOR EDUCATION,24-Feb-11,CAPITAL GRANTS,Supporting Children and Young People Group 2,SANDWELL MBC,4000047521,325311.25
Department for Education,DEPARTMENT FOR EDUCATION,24-Feb-11,CAPITAL GRANTS,Supporting Children and Young People Group 2,SEFTON COUNCIL,4000047522,137520.63
Department for Education,DEPARTMENT FOR EDUCATION,24-Feb-11,CAPITAL GRANTS,Supporting Children and Young People Group 2,SHEFFIELD CITY COUNCIL,4000047523,188827.50
Department for Education,DEPARTMENT FOR EDUCATION,24-Feb-11,CAPITAL GRANTS,Supporting Children and Young People Group 2,SHROPSHIRE COUNCIL,4000047524,185591.88
Department for Education,DEPARTMENT FOR EDUCATION,24-Feb-11,CAPITAL GRANTS,Supporting Children and Young People Group 2,SLOUGH BOROUGH COUNCIL,4000047525,219505.00
Department for Education,DEPARTMENT FOR EDUCATION,24-Feb-11,CAPITAL GRANTS,Supporting Children and Young People Group 2,SOLIHULL MBC,4000047526,137558.75
Department for Education,DEPARTMENT FOR EDUCATION,24-Feb-11,CAPITAL GRANTS,Supporting Children and Young People Group 2,SOMERSET COUNTY COUNCIL,4000047527,138005.94
Department for Education,DEPARTMENT FOR EDUCATION,24-Feb-11,CAPITAL GRANTS,Supporting Children and Young People Group 2,SOUTH GLOUCEST,4000047528,295787.00
Department for Education,DEPARTMENT FOR EDUCATION,24-Feb-11,CAPITAL GRANTS,Supporting Children and Young People Group 2,SOUTH TYNESIDE,4000047529,187047.50
Department for Education,DEPARTMENT FOR EDUCATION,24-Feb-11,CAPITAL GRANTS,Supporting Children and Young People Group 2,SOUTHAMPTON CITY COUNCIL,4000047530,137220.94
Department for Education,DEPARTMENT FOR EDUCATION,24-Feb-11,CAPITAL GRANTS,Supporting Children and Young People Group 2,SOUTHEND ON SEA BOROUGH COUNCIL,4000047531,219688.50
Department for Education,DEPARTMENT FOR EDUCATION,24-Feb-11,CAPITAL GRANTS,Supporting Children and Young People Group 2,ST HELENS MBC,4000047532,186203.13
Department for Education,DEPARTMENT FOR EDUCATION,24-Feb-11,CAPITAL GRANTS,Supporting Children and Young People Group 2,STAFFORDSHIRE COUNCIL,4000047533,138674.38
Department for Education,DEPARTMENT FOR EDUCATION,24-Feb-11,CAPITAL GRANTS,Supporting Children and Young People Group 2,STOCKPORT MBC,4000047534,296918.00
Department for Education,DEPARTMENT FOR EDUCATION,24-Feb-11,CAPITAL GRANTS,Supporting Children and Young People Group 2,STOCKTON ON TEES,4000047535,219772.50
Department for Education,DEPARTMENT FOR EDUCATION,24-Feb-11,CAPITAL GRANTS,Supporting Children and Young People Group 2,STOKE ON TRENT CITY COUNCIL,4000047536,187575.00
Department for Education,DEPARTMENT FOR EDUCATION,24-Feb-11,CAPITAL GRANTS,Supporting Children and Young People Group 2,SUFFOLK COUNTY COUNCIL,4000047537,221614.50
Department for Education,DEPARTMENT FOR EDUCATION,24-Feb-11,CAPITAL GRANTS,Supporting Children and Young People Group 2,SURREY COUNTY COUNCIL,4000047538,189965.63
Department for Education,DEPARTMENT FOR EDUCATION,24-Feb-11,CAPITAL GRANTS,Supporting Children and Young People Group 2,SWINDON BOROUGH COUNCIL,4000047539,201759.50
Department for Education,DEPARTMENT FOR EDUCATION,24-Feb-11,CAPITAL GRANTS,Supporting Children and Young People Group 2,TAMESIDE MBC,4000047540,136987.82
Department for Education,DEPARTMENT FOR EDUCATION,24-Feb-11,CAPITAL GRANTS,Supporting Children and Young People Group 2,TELFORD & WREKIN COUNCIL,4000047541,186149.69
Department for Education,DEPARTMENT FOR EDUCATION,24-Feb-11,CAPITAL GRANTS,Supporting Children and Young People Group 2,THE ROYAL BOROUGH OF WINDSOR & MAIDENHEAD,4000047542,205817.50
Department for Education,DEPARTMENT FOR EDUCATION,24-Feb-11,CAPITAL GRANTS,Supporting Children and Young People Group 2,THURROCK COUNCIL,4000047543,163000.00
Department for Education,DEPARTMENT FOR EDUCATION,24-Feb-11,CAPITAL GRANTS,Supporting Children and Young People Group 2,TORBAY COUNCIL,4000047544,249752.50
Department for Education,DEPARTMENT FOR EDUCATION,24-Feb-11,CAPITAL GRANTS,Supporting Children and Young People Group 2,TRAFFORD MB COUNCIL,4000047545,185481.88
Department for Education,DEPARTMENT FOR EDUCATION,24-Feb-11,CAPITAL GRANTS,Supporting Children and Young People Group 2,WAKEFIELD MDC,4000047546,187220.94
Department for Education,DEPARTMENT FOR EDUCATION,24-Feb-11,CAPITAL GRANTS,Supporting Children and Young People Group 2,WALSALL MBC,4000047547,187269.07
Department for Education,DEPARTMENT FOR EDUCATION,24-Feb-11,CAPITAL GRANTS,Supporting Children and Young People Group 2,WARRINGTON BOROUGH COUNCIL,4000047548,286500.00
Department for Education,DEPARTMENT FOR EDUCATION,24-Feb-11,CAPITAL GRANTS,Supporting Children and Young People Group 2,WARWICKSHIRE COUNTY COUNCIL,4000047549,298934.00
Department for Education,DEPARTMENT FOR EDUCATION,24-Feb-11,CAPITAL GRANTS,Supporting Children and Young People Group 2,WEST BERKSHIRE COUNCIL,4000047550,292835.50
Department for Education,DEPARTMENT FOR EDUCATION,24-Feb-11,CAPITAL GRANTS,Supporting Children and Young People Group 2,WEST SUSSEX COUNTY COUNCIL,4000047551,188624.69
Department for Education,DEPARTMENT FOR EDUCATION,24-Feb-11,CAPITAL GRANTS,Supporting Children and Young People Group 2,WIGAN MBC,4000047552,316024.69
Department for Education,DEPARTMENT FOR EDUCATION,24-Feb-11,CAPITAL GRANTS,Supporting Children and Young People Group 2,WILTSHIRE COUNCIL,4000047553,186117.50
Department for Education,DEPARTMENT FOR EDUCATION,24-Feb-11,CAPITAL GRANTS,Supporting Children and Young People Group 2,WOKINGHAM BOROUGH COUNCIL,4000047554,183551.57
Department for Education,DEPARTMENT FOR EDUCATION,24-Feb-11,CAPITAL GRANTS,Supporting Children and Young People Group 2,WORCESTERSHIRE COUNTY COUNCIL,4000047555,215540.50
Department for Education,DEPARTMENT FOR EDUCATION,24-Feb-11,CAPITAL GRANTS,Supporting Children and Young People Group 2,YORK CITY COUNCIL,4000047556,185506.25
Department for Education,DEPARTMENT FOR EDUCATION,25-Feb-11,TEMPORARY (TEMP) STAFF COSTS,Children Young People and Families Group,CAPITA RESOURCING LTD,4000047586,22395.69
Department for Education,DEPARTMENT FOR EDUCATION,25-Feb-11,TEMPORARY (TEMP) STAFF COSTS,Children Young People and Families Group,CAPITA RESOURCING LTD,4000047586,16316.99
Department for Education,DEPARTMENT FOR EDUCATION,25-Feb-11,CONTRACT PROGRAMME EXPENDITURE,Children Young People and Families Group,CAPITA RESOURCING LTD,4000047586,23658.82
Department for Education,DEPARTMENT FOR EDUCATION,25-Feb-11,CURRENT GRANTS,Supporting Children and Young People Group 2,CITY OF BRADFORD METROPOLITAN DISTRICT COUNCIL,4000047588,587467.00
